Workbook

Sheet Main
B10: 2019-07-26
B12: Sheet No. | C12: Template Name | D12: Summary
B13: 1 | C13: Future Intra | D13: For Intraday trading in F&O segment
B14: 2 | C14: Cash Intra | D14: For Intraday trading in cash market segment
B15: 3 | C15: Mid-cap Intra | D15: For Intraday trading in Mid-cap stocks
B16: 4 | C16: Bulk Deals | D16: Reveals Bulk Deals carried on NSE & BSE
B17: 5 | C17: Call Tracker
K27: `

Sheet Future Intra
M5: Back to Main Page
A6: FOR INTRA DAY TRADING | L6: =Main!B10 -> 2019-07-26
A9: Sr.no | B9: Sector | C9: Scrip | D9: CLOSE RATE | E9: Pivot Point | F9: Supports | I9: Resistances
B10: Sector | D10: Point | E10: Point | F10: S1 | G10: S2 | H10: S3 | I10: R1 | J10: R2 | K10: R3 | L10: HIGH | M10: LOW | N10: OI | O10: % Change in OI
A11: 1 | B11: Index | C11: BANKNIFTY | D11: 29201.15 | E11: 29178.37 | F11: 29044.03 | G11: 28886.92 | H11: 28752.58 | I11: 29335.48 | J11: 29469.82 | K11: 29626.93 | L11: 29312.7 | M11: 29021.25 | N11: 1407760 | O11: -29.06%
A12: 2 | B12: Index | C12: NIFTY | D12: 11301.05 | E12: 11322.47 | F12: 11258.68 | G12: 11216.32 | H12: 11152.53 | I12: 11364.83 | J12: 11428.62 | K12: 11470.98 | L12: 11386.25 | M12: 11280.1 | N12: 17915850 | O12: -18.25%
A13: 3 | B13: Index | C13: NIFTYIT | D13: 15569.00 | E13: 15536.33 | F13: 15477.67 | G13: 15386.33 | H13: 15327.67 | I13: 15627.67 | J13: 15686.33 | K13: 15777.67 | L13: 15595 | M13: 15445 | N13: 12350 | O13: -28.20%
A14: 4 | B14: Cement | C14: ACC | D14: 1581.40 | E14: 1585.35 | F14: 1565.20 | G14: 1549.00 | H14: 1528.85 | I14: 1601.55 | J14: 1621.70 | K14: 1637.90 | L14: 1605.5 | M14: 1569.15 | N14: 2071200 | O14: -5.37%
A15: 5 | B15: Others | C15: ADANIENT | D15: 129.35 | E15: 129.38 | F15: 127.47 | G15: 125.58 | H15: 123.67 | I15: 131.27 | J15: 133.18 | K15: 135.07 | L15: 131.3 | M15: 127.5 | N15: 28692000 | O15: -9.16%
A16: 6 | B16: Others | C16: ADANIPORTS | D16: 382.60 | E16: 383.18 | F16: 378.62 | G16: 374.63 | H16: 370.07 | I16: 387.17 | J16: 391.73 | K16: 395.72 | L16: 387.75 | M16: 379.2 | N16: 15502500 | O16: -4.89%
A17: 7 | B17: Power | C17: ADANIPOWER | D17: 62.15 | E17: 62.15 | F17: 60.20 | G17: 58.25 | H17: 56.30 | I17: 64.10 | J17: 66.05 | K17: 68.00 | L17: 64.1 | M17: 60.2 | N17: 114120000 | O17: -12.26%
A18: 8 | B18: Automobile | C18: AMARAJABAT | D18: 631.25 | E18: 628.15 | F18: 622.65 | G18: 614.05 | H18: 608.55 | I18: 636.75 | J18: 642.25 | K18: 650.85 | L18: 633.65 | M18: 619.55 | N18: 1491700 | O18: -7.87%
A19: 9 | B19: Cement | C19: AMBUJACEM | D19: 215.15 | E19: 215.98 | F19: 210.82 | G19: 206.48 | H19: 201.32 | I19: 220.32 | J19: 225.48 | K19: 229.82 | L19: 221.15 | M19: 211.65 | N19: 18170000 | O19: -4.18%
A20: 10 | B20: Others | C20: APOLLOHOSP | D20: 1352.20 | E20: 1344.37 | F20: 1330.83 | G20: 1309.47 | H20: 1295.93 | I20: 1365.73 | J20: 1379.27 | K20: 1400.63 | L20: 1357.9 | M20: 1323 | N20: 1401500 | O20: -11.55%
A21: 11 | B21: Automobile | C21: APOLLOTYRE | D21: 162.40 | E21: 163.38 | F21: 160.67 | G21: 158.93 | H21: 156.22 | I21: 165.12 | J21: 167.83 | K21: 169.57 | L21: 166.1 | M21: 161.65 | N21: 8955000 | O21: -22.65%
A22: 12 | B22: Textile | C22: ARVIND | D22: 56.70 | E22: 57.15 | F22: 55.60 | G22: 54.50 | H22: 52.95 | I22: 58.25 | J22: 59.80 | K22: 60.90 | L22: 58.7 | M22: 56.05 | N22: 7956000 | O22: -7.85%
A23: 13 | B23: Automobile | C23: ASHOKLEY | D23: 72.60 | E23: 72.67 | F23: 71.83 | G23: 71.07 | H23: 70.23 | I23: 73.43 | J23: 74.27 | K23: 75.03 | L23: 73.5 | M23: 71.9 | N23: 79002000 | O23: -6.40%
A24: 14 | B24: FMCG | C24: ASIANPAINT | D24: 1500.85 | E24: 1491.58 | F24: 1474.82 | G24: 1448.78 | H24: 1432.02 | I24: 1517.62 | J24: 1534.38 | K24: 1560.42 | L24: 1508.35 | M24: 1465.55 | N24: 6522600 | O24: -6.69%
A25: 15 | B25: Pharma | C25: AUROPHARMA | D25: 556.65 | E25: 558.18 | F25: 551.57 | G25: 546.48 | H25: 539.87 | I25: 563.27 | J25: 569.88 | K25: 574.97 | L25: 564.8 | M25: 553.1 | N25: 16483000 | O25: -4.05%
A26: 16 | B26: Banking | C26: AXISBANK | D26: 727.65 | E26: 722.68 | F26: 715.37 | G26: 703.08 | H26: 695.77 | I26: 734.97 | J26: 742.28 | K26: 754.57 | L26: 730 | M26: 710.4 | N26: 48042000 | O26: -8.08%
A27: 17 | B27: Automobile | C27: BAJAJ-AUTO | D27: 2562.25 | E27: 2558.15 | F27: 2532.40 | G27: 2502.55 | H27: 2476.80 | I27: 2588.00 | J27: 2613.75 | K27: 2643.60 | L27: 2583.9 | M27: 2528.3 | N27: 2225250 | O27: -11.67%
A28: 18 | B28: Finance | C28: BAJAJFINSV | D28: 6825.45 | E28: 6946.85 | F28: 6686.60 | G28: 6547.75 | H28: 6287.50 | I28: 7085.70 | J28: 7345.95 | K28: 7484.80 | L28: 7207.1 | M28: 6808 | N28: 915000 | O28: 4.72%
A29: 19 | B29: Finance | C29: BAJFINANCE | D29: 3057.35 | E29: 3102.53 | F29: 2949.97 | G29: 2842.58 | H29: 2690.02 | I29: 3209.92 | J29: 3362.48 | K29: 3469.87 | L29: 3255.1 | M29: 2995.15 | N29: 7556000 | O29: 10.78%
A30: 20 | B30: Automobile | C30: BALKRISIND | D30: 722.90 | E30: 718.50 | F30: 710.10 | G30: 697.30 | H30: 688.90 | I30: 731.30 | J30: 739.70 | K30: 752.50 | L30: 726.9 | M30: 705.7 | N30: 1825600 | O30: -5.70%
A31: 21 | B31: Banking | C31: BANKBARODA | D31: 110.00 | E31: 110.07 | F31: 108.58 | G31: 107.17 | H31: 105.68 | I31: 111.48 | J31: 112.97 | K31: 114.38 | L31: 111.55 | M31: 108.65 | N31: 55984500 | O31: -4.28%
A32: 22 | B32: Banking | C32: BANKINDIA | D32: 75.25 | E32: 75.83 | F32: 73.87 | G32: 72.48 | H32: 70.52 | I32: 77.22 | J32: 79.18 | K32: 80.57 | L32: 77.8 | M32: 74.45 | N32: 27558000 | O32: -7.79%
A33: 23 | B33: FMCG | C33: BATAINDIA | D33: 1309.65 | E33: 1310.18 | F33: 1299.47 | G33: 1289.28 | H33: 1278.57 | I33: 1320.37 | J33: 1331.08 | K33: 1341.27 | L33: 1320.9 | M33: 1300 | N33: 2613050 | O33: -11.72%
A34: 24 | B34: Capital_Goods | C34: BEL | D34: 97.80 | E34: 97.43 | F34: 96.17 | G34: 94.53 | H34: 93.27 | I34: 99.07 | J34: 100.33 | K34: 101.97 | L34: 98.7 | M34: 95.8 | N34: 30018000 | O34: -14.94%
A35: 25 | B35: FMCG | C35: BERGEPAINT | D35: 325.35 | E35: 325.77 | F35: 322.73 | G35: 320.12 | H35: 317.08 | I35: 328.38 | J35: 331.42 | K35: 334.03 | L35: 328.8 | M35: 323.15 | N35: 2259400 | O35: -0.19%
A36: 26 | B36: Automobile | C36: BHARATFORG | D36: 428.00 | E36: 429.67 | F36: 424.33 | G36: 420.67 | H36: 415.33 | I36: 433.33 | J36: 438.67 | K36: 442.33 | L36: 435 | M36: 426 | N36: 8065200 | O36: -5.80%
A37: 27 | B37: Telecom | C37: BHARTIARTL | D37: 340.50 | E37: 340.70 | F37: 336.75 | G37: 333.00 | H37: 329.05 | I37: 344.45 | J37: 348.40 | K37: 352.15 | L37: 344.65 | M37: 336.95 | N37: 29988051 | O37: -6.74%
A38: 28 | B38: Capital_Goods | C38: BHEL | D38: 61.40 | E38: 61.57 | F38: 60.58 | G38: 59.77 | H38: 58.78 | I38: 62.38 | J38: 63.37 | K38: 64.18 | L38: 62.55 | M38: 60.75 | N38: 42825000 | O38: -30.69%
A39: 29 | B39: Pharma | C39: BIOCON | D39: 239.85 | E39: 237.88 | F39: 234.57 | G39: 229.28 | H39: 225.97 | I39: 243.17 | J39: 246.48 | K39: 251.77 | L39: 241.2 | M39: 232.6 | N39: 10963800 | O39: -4.53%
A40: 30 | B40: Automobile | C40: BOSCHLTD | D40: 14962.10 | E40: 14867.30 | F40: 14721.75 | G40: 14481.40 | H40: 14335.85 | I40: 15107.65 | J40: 15253.20 | K40: 15493.55 | L40: 15012.85 | M40: 14626.95 | N40: 157710 | O40: -1.33%
A41: 31 | B41: Oil_Gas | C41: BPCL | D41: 334.60 | E41: 337.42 | F41: 330.83 | G41: 327.07 | H41: 320.48 | I41: 341.18 | J41: 347.77 | K41: 351.53 | L41: 344 | M41: 333.65 | N41: 12195000 | O41: -2.81%
A42: 32 | B42: FMCG | C42: BRITANNIA | D42: 2664.05 | E42: 2650.48 | F42: 2632.97 | G42: 2601.88 | H42: 2584.37 | I42: 2681.57 | J42: 2699.08 | K42: 2730.17 | L42: 2668 | M42: 2619.4 | N42: 2002800 | O42: -26.36%
A43: 33 | B43: Technology | C43: CADILAHC | D43: 231.70 | E43: 232.22 | F43: 228.53 | G43: 225.37 | H43: 221.68 | I43: 235.38 | J43: 239.07 | K43: 242.23 | L43: 235.9 | M43: 229.05 | N43: 14249600 | O43: -5.13%
A44: 34 | B44: Pharma | C44: CANBK | D44: 240.15 | E44: 242.38 | F44: 233.77 | G44: 227.38 | H44: 218.77 | I44: 248.77 | J44: 257.38 | K44: 263.77 | L44: 251 | M44: 236 | N44: 9248000 | O44: -2.05%
A45: 35 | B45: Banking | C45: CASTROLIND | D45: 123.10 | E45: 122.87 | F45: 120.88 | G45: 118.67 | H45: 116.68 | I45: 125.08 | J45: 127.07 | K45: 129.28 | L45: 124.85 | M45: 120.65 | N45: 8459200 | O45: -19.17%
A46: 36 | B46: Oil_Gas | C46: CENTURYTEX | D46: 895.35 | E46: 896.08 | F46: 885.57 | G46: 875.78 | H46: 865.27 | I46: 905.87 | J46: 916.38 | K46: 926.17 | L46: 906.6 | M46: 886.3 | N46: 4103400 | O46: -1.13%
A47: 37 | B47: Textile | C47: CESC | D47: 763.05 | E47: 760.87 | F47: 754.28 | G47: 745.52 | H47: 738.93 | I47: 769.63 | J47: 776.22 | K47: 784.98 | L47: 767.45 | M47: 752.1 | N47: 927200 | O47: -9.52%
A48: 38 | B48: Power | C48: CHOLAFIN | D48: 246.15 | E48: 244.32 | F48: 236.03 | G48: 225.92 | H48: 217.63 | I48: 254.43 | J48: 262.72 | K48: 272.83 | L48: 252.6 | M48: 234.2 | N48: 2592500 | O48: -32.75%
A49: 39 | B49: Finance | C49: CIPLA | D49: 535.85 | E49: 531.38 | F49: 523.62 | G49: 511.38 | H49: 503.62 | I49: 543.62 | J49: 551.38 | K49: 563.62 | L49: 539.15 | M49: 519.15 | N49: 10854000 | O49: 1.49%
A50: 40 | B50: Pharma | C50: COALINDIA | D50: 210.30 | E50: 212.42 | F50: 207.28 | G50: 204.27 | H50: 199.13 | I50: 215.43 | J50: 220.57 | K50: 223.58 | L50: 217.55 | M50: 209.4 | N50: 34951400 | O50: -9.32%
A51: 41 | B51: Others | C51: COLPAL | D51: 1149.50 | E51: 1153.15 | F51: 1142.40 | G51: 1135.30 | H51: 1124.55 | I51: 1160.25 | J51: 1171.00 | K51: 1178.10 | L51: 1163.9 | M51: 1146.05 | N51: 1936900 | O51: -8.65%
A52: 42 | B52: FMCG | C52: CONCOR | D52: 522.80 | E52: 526.28 | F52: 517.52 | G52: 512.23 | H52: 503.47 | I52: 531.57 | J52: 540.33 | K52: 545.62 | L52: 535.05 | M52: 521 | N52: 1559874 | O52: -44.25%
A53: 43 | B53: Others | C53: CUMMINSIND | D53: 719.00 | E53: 713.25 | F53: 704.50 | G53: 690.00 | H53: 681.25 | I53: 727.75 | J53: 736.50 | K53: 751.00 | L53: 722 | M53: 698.75 | N53: 1914500 | O53: -12.14%
A54: 44 | B54: Capital_Goods | C54: DABUR | D54: 423.95 | E54: 423.70 | F54: 420.40 | G54: 416.85 | H54: 413.55 | I54: 427.25 | J54: 430.55 | K54: 434.10 | L54: 427 | M54: 420.15 | N54: 13106250 | O54: -9.25%
A55: 45 | B55: FMCG | C55: DHFL | D55: 52.50 | E55: 52.18 | F55: 49.87 | G55: 47.23 | H55: 44.92 | I55: 54.82 | J55: 57.13 | K55: 59.77 | L55: 54.5 | M55: 49.55 | N55: 15128000 | O55: -3.57%
A56: 46 | B56: Finance | C56: DISHTV | D56: 32.65 | E56: 32.62 | F56: 32.23 | G56: 31.82 | H56: 31.43 | I56: 33.03 | J56: 33.42 | K56: 33.83 | L56: 33 | M56: 32.2 | N56: 95452000 | O56: -7.62%
A57: 47 | B57: Media | C57: DIVISLAB | D57: 1634.45 | E57: 1622.65 | F57: 1605.65 | G57: 1576.85 | H57: 1559.85 | I57: 1651.45 | J57: 1668.45 | K57: 1697.25 | L57: 1639.65 | M57: 1593.85 | N57: 2596000 | O57: -0.87%
A58: 48 | B58: Pharma | C58: DLF | D58: 177.55 | E58: 177.95 | F58: 175.15 | G58: 172.75 | H58: 169.95 | I58: 180.35 | J58: 183.15 | K58: 185.55 | L58: 180.75 | M58: 175.55 | N58: 31990000 | O58: -13.81%
A59: 49 | B59: Realty | C59: DRREDDY | D59: 2662.60 | E59: 2655.77 | F59: 2631.98 | G59: 2601.37 | H59: 2577.58 | I59: 2686.38 | J59: 2710.17 | K59: 2740.78 | L59: 2679.55 | M59: 2625.15 | N59: 3280250 | O59: -4.15%
A60: 50 | B60: Pharma | C60: EICHERMOT | D60: 16523.40 | E60: 16499.87 | F60: 16225.83 | G60: 15928.27 | H60: 15654.23 | I60: 16797.43 | J60: 17071.47 | K60: 17369.03 | L60: 16773.9 | M60: 16202.3 | N60: 383575 | O60: -10.70%
A61: 51 | B61: Automobile | C61: ENGINERSIN | D61: 104.45 | E61: 104.48 | F61: 103.07 | G61: 101.68 | H61: 100.27 | I61: 105.87 | J61: 107.28 | K61: 108.67 | L61: 105.9 | M61: 103.1 | N61: 7364600 | O61: -20.59%
A62: 52 | B62: Infrastructure | C62: EQUITAS | D62: 113.15 | E62: 113.75 | F62: 111.75 | G62: 110.35 | H62: 108.35 | I62: 115.15 | J62: 117.15 | K62: 118.55 | L62: 115.75 | M62: 112.35 | N62: 12592000 | O62: -4.17%
A63: 53 | B63: Finance | C63: ESCORTS | D63: 472.80 | E63: 478.60 | F63: 464.90 | G63: 457.00 | H63: 443.30 | I63: 486.50 | J63: 500.20 | K63: 508.10 | L63: 492.3 | M63: 470.7 | N63: 5201900 | O63: -9.28%
A64: 54 | B64: Automobile | C64: EXIDEIND | D64: 182.60 | E64: 183.52 | F64: 181.08 | G64: 179.57 | H64: 177.13 | I64: 185.03 | J64: 187.47 | K64: 188.98 | L64: 185.95 | M64: 182 | N64: 8385600 | O64: -5.31%
A65: 55 | B65: Automobile | C65: FEDERALBNK | D65: 93.00 | E65: 93.12 | F65: 92.03 | G65: 91.07 | H65: 89.98 | I65: 94.08 | J65: 95.17 | K65: 96.13 | L65: 94.2 | M65: 92.15 | N65: 38136000 | O65: -6.33%
A66: 56 | B66: Banking | C66: GAIL | D66: 134.85 | E66: 135.52 | F66: 133.58 | G66: 132.32 | H66: 130.38 | I66: 136.78 | J66: 138.72 | K66: 139.98 | L66: 137.45 | M66: 134.25 | N66: 33262824 | O66: -4.47%
A67: 57 | B67: Oil_Gas | C67: GLENMARK | D67: 424.95 | E67: 422.60 | F67: 418.70 | G67: 412.45 | H67: 408.55 | I67: 428.85 | J67: 432.75 | K67: 439.00 | L67: 426.5 | M67: 416.35 | N67: 5195000 | O67: -17.30%
A68: 58 | B68: Pharma | C68: GMRINFRA | D68: 14.60 | E68: 14.67 | F68: 14.43 | G68: 14.27 | H68: 14.03 | I68: 14.83 | J68: 15.07 | K68: 15.23 | L68: 14.9 | M68: 14.5 | N68: 163620000 | O68: -16.36%
A69: 59 | B69: Infrastructure | C69: GODREJCP | D69: 617.80 | E69: 618.23 | F69: 610.72 | G69: 603.63 | H69: 596.12 | I69: 625.32 | J69: 632.83 | K69: 639.92 | L69: 625.75 | M69: 611.15 | N69: 5621600 | O69: -6.29%
A70: 60 | B70: FMCG | C70: GRASIM | D70: 870.90 | E70: 873.40 | F70: 863.15 | G70: 855.40 | H70: 845.15 | I70: 881.15 | J70: 891.40 | K70: 899.15 | L70: 883.65 | M70: 865.65 | N70: 12385500 | O70: -4.52%
A71: 61 | B71: Cement | C71: HAVELLS | D71: 692.15 | E71: 694.17 | F71: 685.98 | G71: 679.82 | H71: 671.63 | I71: 700.33 | J71: 708.52 | K71: 714.68 | L71: 702.35 | M71: 688 | N71: 5868000 | O71: -2.62%
A72: 62 | B72: Others | C72: HCLTECH | D72: 1013.20 | E72: 1016.97 | F72: 1004.38 | G72: 995.57 | H72: 982.98 | I72: 1025.78 | J72: 1038.37 | K72: 1047.18 | L72: 1029.55 | M72: 1008.15 | N72: 9054500 | O72: -11.90%
A73: 63 | B73: Technology | C73: HDFC | D73: 2203.95 | E73: 2204.65 | F73: 2185.30 | G73: 2166.65 | H73: 2147.30 | I73: 2223.30 | J73: 2242.65 | K73: 2261.30 | L73: 2224 | M73: 2186 | N73: 28305000 | O73: -1.17%
A74: 64 | B74: Finance | C74: HDFCBANK | D74: 2294.50 | E74: 2300.90 | F74: 2282.25 | G74: 2270.00 | H74: 2251.35 | I74: 2313.15 | J74: 2331.80 | K74: 2344.05 | L74: 2319.55 | M74: 2288.65 | N74: 15626750 | O74: -14.00%
A75: 65 | B75: Banking | C75: HEROMOTOCO | D75: 2400.40 | E75: 2416.72 | F75: 2376.43 | G75: 2352.47 | H75: 2312.18 | I75: 2440.68 | J75: 2480.97 | K75: 2504.93 | L75: 2457 | M75: 2392.75 | N75: 2121200 | O75: -11.62%
A76: 66 | B76: Automobile | C76: HEXAWARE | D76: 353.60 | E76: 351.98 | F76: 346.62 | G76: 339.63 | H76: 334.27 | I76: 358.97 | J76: 364.33 | K76: 371.32 | L76: 357.35 | M76: 345 | N76: 1963500 | O76: -5.76%
A77: 67 | B77: Technology | C77: HINDALCO | D77: 195.60 | E77: 196.75 | F77: 193.75 | G77: 191.90 | H77: 188.90 | I77: 198.60 | J77: 201.60 | K77: 203.45 | L77: 199.75 | M77: 194.9 | N77: 32494000 | O77: -2.17%
A78: 68 | B78: Metals | C78: HINDPETRO | D78: 268.45 | E78: 272.38 | F78: 262.87 | G78: 257.28 | H78: 247.77 | I78: 277.97 | J78: 287.48 | K78: 293.07 | L78: 281.9 | M78: 266.8 | N78: 16098600 | O78: 0.25%
A79: 69 | B79: Oil_Gas | C79: HINDUNILVR | D79: 1747.15 | E79: 1746.72 | F79: 1735.78 | G79: 1724.42 | H79: 1713.48 | I79: 1758.08 | J79: 1769.02 | K79: 1780.38 | L79: 1757.65 | M79: 1735.35 | N79: 10804200 | O79: -3.34%
A80: 70 | B80: FMCG | C80: HINDZINC | D80: 218.50 | E80: 219.53 | F80: 216.42 | G80: 214.33 | H80: 211.22 | I80: 221.62 | J80: 224.73 | K80: 226.82 | L80: 222.65 | M80: 217.45 | N80: 6828800 | O80: -7.62%
A81: 71 | B81: Metals | C81: IBULHSGFIN | D81: 608.10 | E81: 609.50 | F81: 598.25 | G81: 588.40 | H81: 577.15 | I81: 619.35 | J81: 630.60 | K81: 640.45 | L81: 620.75 | M81: 599.65 | N81: 16469600 | O81: -3.72%
A82: 72 | B82: Finance | C82: ICICIBANK | D82: 411.40 | E82: 411.23 | F82: 407.07 | G82: 402.73 | H82: 398.57 | I82: 415.57 | J82: 419.73 | K82: 424.07 | L82: 415.4 | M82: 406.9 | N82: 80209250 | O82: -10.07%
A83: 73 | B83: Banking | C83: ICICIPRULI | D83: 394.10 | E83: 394.67 | F83: 384.53 | G83: 374.97 | H83: 364.83 | I83: 404.23 | J83: 414.37 | K83: 423.93 | L83: 404.8 | M83: 385.1 | N83: 4636500 | O83: -8.01%
A84: 74 | B84: Finance | C84: IDBI | D84: 30.25 | E84: 30.62 | F84: 29.48 | G84: 28.72 | H84: 27.58 | I84: 31.38 | J84: 32.52 | K84: 33.28 | L84: 31.75 | M84: 29.85 | N84: 21900000 | O84: -9.16%
A85: 75 | B85: Banking | C85: IDEA | D85: 9.75 | E85: 9.88 | F85: 9.57 | G85: 9.38 | H85: 9.07 | I85: 10.07 | J85: 10.38 | K85: 10.57 | L85: 10.2 | M85: 9.7 | N85: 379960000 | O85: -22.96%
A86: 76 | B86: Telecom | C86: IDFCFIRSTB | D86: 38.90 | E86: 38.10 | F86: 36.40 | G86: 33.90 | H86: 32.20 | I86: 40.60 | J86: 42.30 | K86: 44.80 | L86: 39.8 | M86: 35.6 | N86: 134436000 | O86: -8.40%
A87: 77 | B87: Banking | C87: IGL | D87: 307.20 | E87: 305.47 | F87: 299.93 | G87: 292.67 | H87: 287.13 | I87: 312.73 | J87: 318.27 | K87: 325.53 | L87: 311 | M87: 298.2 | N87: 3192750 | O87: -21.02%
A88: 78 | B88: Oil_Gas | C88: INDIGO | D88: 1587.20 | E88: 1595.43 | F88: 1568.87 | G88: 1550.53 | H88: 1523.97 | I88: 1613.77 | J88: 1640.33 | K88: 1658.67 | L88: 1622 | M88: 1577.1 | N88: 2650200 | O88: -39.83%
A89: 79 | B89: Others | C89: INDUSINDBK | D89: 1393.00 | E89: 1394.23 | F89: 1367.52 | G89: 1342.03 | H89: 1315.32 | I89: 1419.72 | J89: 1446.43 | K89: 1471.92 | L89: 1420.95 | M89: 1368.75 | N89: 10814000 | O89: -11.52%
A90: 80 | B90: Banking | C90: INFRATEL | D90: 263.35 | E90: 268.33 | F90: 256.37 | G90: 249.38 | H90: 237.42 | I90: 275.32 | J90: 287.28 | K90: 294.27 | L90: 280.3 | M90: 261.35 | N90: 6556000 | O90: -5.53%
A91: 81 | B91: Telecom | C91: INFY | D91: 799.50 | E91: 798.28 | F91: 793.62 | G91: 787.73 | H91: 783.07 | I91: 804.17 | J91: 808.83 | K91: 814.72 | L91: 802.95 | M91: 792.4 | N91: 60604800 | O91: -2.46%
A92: 82 | B92: Technology | C92: IOC | D92: 143.90 | E92: 144.63 | F92: 142.62 | G92: 141.33 | H92: 139.32 | I92: 145.92 | J92: 147.93 | K92: 149.22 | L92: 146.65 | M92: 143.35 | N92: 63266000 | O92: 5.67%
A93: 83 | B93: Oil_Gas | C93: ITC | D93: 269.55 | E93: 270.63 | F93: 267.67 | G93: 265.78 | H93: 262.82 | I93: 272.52 | J93: 275.48 | K93: 277.37 | L93: 273.6 | M93: 268.75 | N93: 85046400 | O93: -2.22%
A94: 84 | B94: FMCG | C94: JINDALSTEL | D94: 135.50 | E94: 135.43 | F94: 133.37 | G94: 131.23 | H94: 129.17 | I94: 137.57 | J94: 139.63 | K94: 141.77 | L94: 137.5 | M94: 133.3 | N94: 33849600 | O94: -6.98%
A95: 85 | B95: Metals | C95: JSWSTEEL | D95: 250.30 | E95: 252.95 | F95: 246.85 | G95: 243.40 | H95: 237.30 | I95: 256.40 | J95: 262.50 | K95: 265.95 | L95: 259.05 | M95: 249.5 | N95: 50012000 | O95: -2.03%
A96: 86 | B96: Metals | C96: JUBLFOOD | D96: 1145.25 | E96: 1134.92 | F96: 1105.83 | G96: 1066.42 | H96: 1037.33 | I96: 1174.33 | J96: 1203.42 | K96: 1242.83 | L96: 1164 | M96: 1095.5 | N96: 2949000 | O96: -12.71%
A97: 87 | B97: Others | C97: JUSTDIAL | D97: 683.65 | E97: 675.93 | F97: 665.82 | G97: 647.98 | H97: 637.87 | I97: 693.77 | J97: 703.88 | K97: 721.72 | L97: 686.05 | M97: 658.1 | N97: 2518600 | O97: -23.28%
A98: 88 | B98: Others | C98: KAJARIACER | D98: 473.70 | E98: 468.38 | F98: 458.82 | G98: 443.93 | H98: 434.37 | I98: 483.27 | J98: 492.83 | K98: 507.72 | L98: 477.95 | M98: 453.5 | N98: 2208700 | O98: -22.91%
A99: 89 | B99: Others | C99: KOTAKBANK | D99: 1494.05 | E99: 1497.67 | F99: 1487.03 | G99: 1480.02 | H99: 1469.38 | I99: 1504.68 | J99: 1515.32 | K99: 1522.33 | L99: 1508.3 | M99: 1490.65 | N99: 7793200 | O99: -17.50%
A100: 90 | B100: Banking | C100: BSOFT | D100: 73.40 | E100: 73.47 | F100: 72.43 | G100: 71.47 | H100: 70.43 | I100: 74.43 | J100: 75.47 | K100: 76.43 | L100: 74.5 | M100: 72.5 | N100: 2024700 | O100: -8.94%
A101: 91 | B101: Finance | C101: L&TFH | D101: 102.15 | E101: 102.08 | F101: 100.62 | G101: 99.08 | H101: 97.62 | I101: 103.62 | J101: 105.08 | K101: 106.62 | L101: 103.55 | M101: 100.55 | N101: 32589000 | O101: -13.30%
A102: 92 | B102: Finance | C102: LICHSGFIN | D102: 519.70 | E102: 518.22 | F102: 514.58 | G102: 509.47 | H102: 505.83 | I102: 523.33 | J102: 526.97 | K102: 532.08 | L102: 521.85 | M102: 513.1 | N102: 7832000 | O102: -12.29%
A103: 93 | B103: Capital_Goods | C103: LT | D103: 1381.40 | E103: 1388.53 | F103: 1367.17 | G103: 1352.93 | H103: 1331.57 | I103: 1402.77 | J103: 1424.13 | K103: 1438.37 | L103: 1409.9 | M103: 1374.3 | N103: 13380000 | O103: -6.48%
A104: 94 | B104: Pharma | C104: LUPIN | D104: 767.90 | E104: 759.45 | F104: 743.45 | G104: 719.00 | H104: 703.00 | I104: 783.90 | J104: 799.90 | K104: 824.35 | L104: 775.45 | M104: 735 | N104: 8293600 | O104: -4.41%
A105: 95 | B105: Automobile | C105: M&M | D105: 550.10 | E105: 550.23 | F105: 544.87 | G105: 539.63 | H105: 534.27 | I105: 555.47 | J105: 560.83 | K105: 566.07 | L105: 555.6 | M105: 545 | N105: 22411000 | O105: -4.07%
A106: 96 | B106: Finance | C106: M&MFIN | D106: 305.85 | E106: 305.52 | F106: 298.93 | G106: 292.02 | H106: 285.43 | I106: 312.43 | J106: 319.02 | K106: 325.93 | L106: 312.1 | M106: 298.6 | N106: 15762500 | O106: -1.21%
A107: 97 | B107: Finance | C107: MANAPPURAM | D107: 114.50 | E107: 116.03 | F107: 112.67 | G107: 110.83 | H107: 107.47 | I107: 117.87 | J107: 121.23 | K107: 123.07 | L107: 119.4 | M107: 114.2 | N107: 12240000 | O107: -20.65%
A108: 98 | B108: FMCG | C108: MARICO | D108: 362.90 | E108: 363.75 | F108: 360.25 | G108: 357.60 | H108: 354.10 | I108: 366.40 | J108: 369.90 | K108: 372.55 | L108: 367.25 | M108: 361.1 | N108: 8333000 | O108: -8.38%
A109: 99 | B109: Automobile | C109: MARUTI | D109: 5711.85 | E109: 5720.05 | F109: 5642.80 | G109: 5573.75 | H109: 5496.50 | I109: 5789.10 | J109: 5866.35 | K109: 5935.40 | L109: 5797.3 | M109: 5651 | N109: 3276975 | O109: -2.26%
A110: 100 | B110: FMCG | C110: MCDOWELL-N | D110: 585.85 | E110: 585.72 | F110: 577.38 | G110: 568.92 | H110: 560.58 | I110: 594.18 | J110: 602.52 | K110: 610.98 | L110: 594.05 | M110: 577.25 | N110: 10572500 | O110: -4.33%
A111: 101 | B111: Others | C111: MCX | D111: 838.80 | E111: 836.17 | F111: 828.33 | G111: 817.87 | H111: 810.03 | I111: 846.63 | J111: 854.47 | K111: 864.93 | L111: 844 | M111: 825.7 | N111: 1619800 | O111: -34.02%
A112: 102 | B112: Finance | C112: MFSL | D112: 416.35 | E112: 415.60 | F112: 407.35 | G112: 398.35 | H112: 390.10 | I112: 424.60 | J112: 432.85 | K112: 441.85 | L112: 423.85 | M112: 406.6 | N112: 2808000 | O112: -2.62%
A113: 103 | B113: Oil_Gas | C113: MGL | D113: 767.05 | E113: 770.33 | F113: 758.37 | G113: 749.68 | H113: 737.72 | I113: 779.02 | J113: 790.98 | K113: 799.67 | L113: 782.3 | M113: 761.65 | N113: 1075200 | O113: -12.59%
A114: 104 | B114: Technology | C114: MINDTREE | D114: 698.70 | E114: 695.58 | F114: 689.62 | G114: 680.53 | H114: 674.57 | I114: 704.67 | J114: 710.63 | K114: 719.72 | L114: 701.55 | M114: 686.5 | N114: 1759200 | O114: -5.21%
A115: 105 | B115: Automobile | C115: MOTHERSUMI | D115: 110.80 | E115: 110.37 | F115: 109.13 | G115: 107.47 | H115: 106.23 | I115: 112.03 | J115: 113.27 | K115: 114.93 | L115: 111.6 | M115: 108.7 | N115: 24891900 | O115: -5.91%
A116: 106 | B116: Automobile | C116: MRF | D116: 54156.90 | E116: 54027.32 | F116: 53639.63 | G116: 53122.37 | H116: 52734.68 | I116: 54544.58 | J116: 54932.27 | K116: 55449.53 | L116: 54415 | M116: 53510.05 | N116: 24100 | O116: -10.21%
A117: 107 | B117: Finance | C117: MUTHOOTFIN | D117: 596.95 | E117: 596.28 | F117: 586.02 | G117: 575.08 | H117: 564.82 | I117: 607.22 | J117: 617.48 | K117: 628.42 | L117: 606.55 | M117: 585.35 | N117: 2829000 | O117: -10.49%
A118: 108 | B118: Metals | C118: NATIONALUM | D118: 45.20 | E118: 45.38 | F118: 44.77 | G118: 44.33 | H118: 43.72 | I118: 45.82 | J118: 46.43 | K118: 46.87 | L118: 46 | M118: 44.95 | N118: 34080000 | O118: -19.24%
A119: 109 | B119: Infrastructure | C119: NBCC | D119: 48.25 | E119: 48.68 | F119: 47.47 | G119: 46.68 | H119: 45.47 | I119: 49.47 | J119: 50.68 | K119: 51.47 | L119: 49.9 | M119: 47.9 | N119: 34569500 | O119: -9.18%
A120: 110 | B120: Infrastructure | C120: NCC | D120: 73.60 | E120: 73.85 | F120: 71.90 | G120: 70.20 | H120: 68.25 | I120: 75.55 | J120: 77.50 | K120: 79.20 | L120: 75.8 | M120: 72.15 | N120: 37088000 | O120: -13.49%
A121: 111 | B121: FMCG | C121: NESTLEIND | D121: 11537.05 | E121: 11557.70 | F121: 11435.40 | G121: 11333.75 | H121: 11211.45 | I121: 11659.35 | J121: 11781.65 | K121: 11883.30 | L121: 11680 | M121: 11456.05 | N121: 342400 | O121: -5.30%
A122: 112 | B122: Technology | C122: NIITTECH | D122: 1219.50 | E122: 1213.65 | F122: 1195.85 | G122: 1172.20 | H122: 1154.40 | I122: 1237.30 | J122: 1255.10 | K122: 1278.75 | L122: 1231.45 | M122: 1190 | N122: 1295250 | O122: -23.04%
A123: 113 | B123: Metals | C123: NMDC | D123: 109.05 | E123: 109.78 | F123: 106.87 | G123: 104.68 | H123: 101.77 | I123: 111.97 | J123: 114.88 | K123: 117.07 | L123: 112.7 | M123: 107.6 | N123: 27456000 | O123: -8.24%
A124: 114 | B124: Power | C124: NTPC | D124: 127.90 | E124: 128.55 | F124: 126.05 | G124: 124.20 | H124: 121.70 | I124: 130.40 | J124: 132.90 | K124: 134.75 | L124: 131.05 | M124: 126.7 | N124: 73905600 | O124: -16.10%
A125: 115 | B125: Technology | C125: OFSS | D125: 3315.70 | E125: 3302.53 | F125: 3277.52 | G125: 3239.33 | H125: 3214.32 | I125: 3340.72 | J125: 3365.73 | K125: 3403.92 | L125: 3327.55 | M125: 3264.35 | N125: 238050 | O125: -7.14%
A126: 116 | B126: Oil_Gas | C126: OIL | D126: 155.00 | E126: 154.75 | F126: 153.70 | G126: 152.40 | H126: 151.35 | I126: 156.05 | J126: 157.10 | K126: 158.40 | L126: 155.8 | M126: 153.45 | N126: 8347944 | O126: -33.96%
A127: 117 | B127: Oil_Gas | C127: ONGC | D127: 144.40 | E127: 143.72 | F127: 142.33 | G127: 140.27 | H127: 138.88 | I127: 145.78 | J127: 147.17 | K127: 149.23 | L127: 145.1 | M127: 141.65 | N127: 57202500 | O127: -17.27%
A128: 118 | B128: Textile | C128: PAGEIND | D128: 18602.30 | E128: 18578.65 | F128: 18268.80 | G128: 17935.30 | H128: 17625.45 | I128: 18912.15 | J128: 19222.00 | K128: 19555.50 | L128: 18888.5 | M128: 18245.15 | N128: 188175 | O128: -6.39%
A129: 119 | B129: Pharma | C129: PEL | D129: 1761.00 | E129: 1767.07 | F129: 1726.93 | G129: 1692.87 | H129: 1652.73 | I129: 1801.13 | J129: 1841.27 | K129: 1875.33 | L129: 1807.2 | M129: 1733 | N129: 3371830 | O129: -5.97%
A130: 120 | B130: Oil_Gas | C130: PETRONET | D130: 229.25 | E130: 230.45 | F130: 227.40 | G130: 225.55 | H130: 222.50 | I130: 232.30 | J130: 235.35 | K130: 237.20 | L130: 233.5 | M130: 228.6 | N130: 18747000 | O130: -9.84%
A131: 121 | B131: Finance | C131: PFC | D131: 112.70 | E131: 112.28 | F131: 111.07 | G131: 109.43 | H131: 108.22 | I131: 113.92 | J131: 115.13 | K131: 116.77 | L131: 113.5 | M131: 110.65 | N131: 43524000 | O131: -15.11%
A132: 122 | B132: FMCG | C132: PIDILITIND | D132: 1232.75 | E132: 1230.30 | F132: 1218.00 | G132: 1203.25 | H132: 1190.95 | I132: 1245.05 | J132: 1257.35 | K132: 1272.10 | L132: 1242.6 | M132: 1215.55 | N132: 2630500 | O132: -1.39%
A133: 123 | B133: Banking | C133: PNB | D133: 66.50 | E133: 67.22 | F133: 65.08 | G133: 63.67 | H133: 61.53 | I133: 68.63 | J133: 70.77 | K133: 72.18 | L133: 69.35 | M133: 65.8 | N133: 105252000 | O133: -5.14%
A134: 124 | B134: Power | C134: POWERGRID | D134: 212.05 | E134: 211.37 | F134: 209.83 | G134: 207.62 | H134: 206.08 | I134: 213.58 | J134: 215.12 | K134: 217.33 | L134: 212.9 | M134: 209.15 | N134: 26512000 | O134: -20.13%
A135: 125 | B135: Media | C135: PVR | D135: 1757.30 | E135: 1751.17 | F135: 1728.33 | G135: 1699.37 | H135: 1676.53 | I135: 1780.13 | J135: 1802.97 | K135: 1831.93 | L135: 1774 | M135: 1722.2 | N135: 1018800 | O135: -11.07%
A136: 126 | B136: Cement | C136: RAMCOCEM | D136: 745.85 | E136: 747.60 | F136: 735.25 | G136: 724.65 | H136: 712.30 | I136: 758.20 | J136: 770.55 | K136: 781.15 | L136: 759.95 | M136: 737 | N136: 902400 | O136: -16.32%
A137: 127 | B137: Textile | C137: RAYMOND | D137: 664.30 | E137: 662.75 | F137: 650.70 | G137: 637.10 | H137: 625.05 | I137: 676.35 | J137: 688.40 | K137: 702.00 | L137: 674.8 | M137: 649.15 | N137: 2132800 | O137: -13.39%
A138: 128 | B138: Banking | C138: RBLBANK | D138: 457.80 | E138: 457.03 | F138: 448.07 | G138: 438.33 | H138: 429.37 | I138: 466.77 | J138: 475.73 | K138: 485.47 | L138: 466 | M138: 447.3 | N138: 8953200 | O138: -15.82%
A139: 129 | B139: Power | C139: RECLTD | D139: 144.65 | E139: 143.75 | F139: 142.60 | G139: 140.55 | H139: 139.40 | I139: 145.80 | J139: 146.95 | K139: 149.00 | L139: 144.9 | M139: 141.7 | N139: 29478000 | O139: -40.44%
A140: 130 | B140: Finance | C140: RELCAPITAL | D140: 45.70 | E140: 47.47 | F140: 43.03 | G140: 40.37 | H140: 35.93 | I140: 50.13 | J140: 54.57 | K140: 57.23 | L140: 51.9 | M140: 44.8 | N140: 11109000 | O140: -22.98%
A141: 131 | B141: Oil_Gas | C141: RELIANCE | D141: 1233.05 | E141: 1244.00 | F141: 1217.55 | G141: 1202.05 | H141: 1175.60 | I141: 1259.50 | J141: 1285.95 | K141: 1301.45 | L141: 1270.45 | M141: 1228.5 | N141: 41608500 | O141: -0.47%
A142: 132 | B142: Power | C142: RELINFRA | D142: 44.60 | E142: 45.05 | F142: 41.05 | G142: 37.50 | H142: 33.50 | I142: 48.60 | J142: 52.60 | K142: 56.15 | L142: 49.05 | M142: 41.5 | N142: 11380000 | O142: -20.77%
A143: 133 | B143: Metals | C143: SAIL | D143: 43.10 | E143: 43.35 | F143: 42.55 | G143: 42.00 | H143: 41.20 | I143: 43.90 | J143: 44.70 | K143: 45.25 | L143: 44.15 | M143: 42.8 | N143: 89388000 | O143: -20.25%
A144: 134 | B144: Banking | C144: SBIN | D144: 343.55 | E144: 342.43 | F144: 340.22 | G144: 336.88 | H144: 334.67 | I144: 345.77 | J144: 347.98 | K144: 351.32 | L144: 344.65 | M144: 339.1 | N144: 68850000 | O144: -10.25%
A145: 135 | B145: Cement | C145: SHREECEM | D145: 21234.25 | E145: 21078.92 | F145: 20832.33 | G145: 20430.42 | H145: 20183.83 | I145: 21480.83 | J145: 21727.42 | K145: 22129.33 | L145: 21325.5 | M145: 20677 | N145: 134000 | O145: -1.47%
A146: 136 | B146: Capital_Goods | C146: SIEMENS | D146: 1177.45 | E146: 1185.38 | F146: 1166.02 | G146: 1154.58 | H146: 1135.22 | I146: 1196.82 | J146: 1216.18 | K146: 1227.62 | L146: 1204.75 | M146: 1173.95 | N146: 1019700 | O146: -11.80%
A147: 137 | B147: Textile | C147: SRF | D147: 2667.80 | E147: 2677.30 | F147: 2645.65 | G147: 2623.50 | H147: 2591.85 | I147: 2699.45 | J147: 2731.10 | K147: 2753.25 | L147: 2708.95 | M147: 2655.15 | N147: 1055750 | O147: -7.88%
A148: 138 | B148: Finance | C148: SRTRANSFIN | D148: 988.45 | E148: 989.08 | F148: 960.87 | G148: 933.28 | H148: 905.07 | I148: 1016.67 | J148: 1044.88 | K148: 1072.47 | L148: 1017.3 | M148: 961.5 | N148: 5014200 | O148: 0.49%
A149: 139 | B149: Pharma | C149: STAR | D149: 342.55 | E149: 341.75 | F149: 337.80 | G149: 333.05 | H149: 329.10 | I149: 346.50 | J149: 350.45 | K149: 355.20 | L149: 345.7 | M149: 337 | N149: 2911200 | O149: -9.04%
A150: 140 | B150: Pharma | C150: SUNPHARMA | D150: 437.40 | E150: 433.83 | F150: 428.42 | G150: 419.43 | H150: 414.02 | I150: 442.82 | J150: 448.23 | K150: 457.22 | L150: 439.25 | M150: 424.85 | N150: 51466800 | O150: -9.83%
A151: 141 | B151: Media | C151: SUNTV | D151: 478.15 | E151: 479.67 | F151: 471.28 | G151: 464.42 | H151: 456.03 | I151: 486.53 | J151: 494.92 | K151: 501.78 | L151: 488.05 | M151: 472.8 | N151: 5739000 | O151: -18.76%
A152: 142 | B152: Fertilisers | C152: TATACHEM | D152: 597.80 | E152: 597.20 | F152: 594.15 | G152: 590.50 | H152: 587.45 | I152: 600.85 | J152: 603.90 | K152: 607.55 | L152: 600.25 | M152: 593.55 | N152: 2101500 | O152: -24.41%
A153: 143 | B153: Technology | C153: TATAELXSI | D153: 658.05 | E153: 659.10 | F153: 646.95 | G153: 635.85 | H153: 623.70 | I153: 670.20 | J153: 682.35 | K153: 693.45 | L153: 671.25 | M153: 648 | N153: 2502000 | O153: -0.83%
A154: 144 | B154: FMCG | C154: TATAGLOBAL | D154: 253.45 | E154: 252.57 | F154: 249.13 | G154: 244.82 | H154: 241.38 | I154: 256.88 | J154: 260.32 | K154: 264.63 | L154: 256 | M154: 248.25 | N154: 5543100 | O154: -11.85%
A155: 145 | B155: Automobile | C155: TATAMOTORS | D155: 144.80 | E155: 147.22 | F155: 141.73 | G155: 138.67 | H155: 133.18 | I155: 150.28 | J155: 155.77 | K155: 158.83 | L155: 152.7 | M155: 144.15 | N155: 65226000 | O155: 0.47%
A156: 146 | B156: Automobile | C156: TATAMTRDVR | D156: 69.90 | E156: 70.78 | F156: 68.47 | G156: 67.03 | H156: 64.72 | I156: 72.22 | J156: 74.53 | K156: 75.97 | L156: 73.1 | M156: 69.35 | N156: 29868000 | O156: -3.73%
A157: 147 | B157: Power | C157: TATAPOWER | D157: 61.75 | E157: 62.53 | F157: 60.67 | G157: 59.58 | H157: 57.72 | I157: 63.62 | J157: 65.48 | K157: 66.57 | L157: 64.4 | M157: 61.45 | N157: 54702000 | O157: -2.49%
A158: 148 | B158: Metals | C158: TATASTEEL | D158: 442.15 | E158: 445.22 | F158: 436.93 | G158: 431.72 | H158: 423.43 | I158: 450.43 | J158: 458.72 | K158: 463.93 | L158: 453.5 | M158: 440 | N158: 31251755 | O158: -3.74%
A159: 149 | B159: Technology | C159: TCS | D159: 2141.25 | E159: 2130.05 | F159: 2113.00 | G159: 2084.75 | H159: 2067.70 | I159: 2158.30 | J159: 2175.35 | K159: 2203.60 | L159: 2147.1 | M159: 2101.8 | N159: 15418500 | O159: -5.62%
A160: 150 | B160: Technology | C160: TECHM | D160: 655.35 | E160: 653.50 | F160: 647.15 | G160: 638.95 | H160: 632.60 | I160: 661.70 | J160: 668.05 | K160: 676.25 | L160: 659.85 | M160: 645.3 | N160: 15514800 | O160: -5.79%
A161: 151 | B161: FMCG | C161: TITAN | D161: 1091.10 | E161: 1091.90 | F161: 1084.80 | G161: 1078.50 | H161: 1071.40 | I161: 1098.20 | J161: 1105.30 | K161: 1111.60 | L161: 1099 | M161: 1085.6 | N161: 9084750 | O161: -7.58%
A162: 152 | B162: Pharma | C162: TORNTPHARM | D162: 1618.90 | E162: 1608.40 | F162: 1586.80 | G162: 1554.70 | H162: 1533.10 | I162: 1640.50 | J162: 1662.10 | K162: 1694.20 | L162: 1630 | M162: 1576.3 | N162: 756500 | O162: -22.57%
A163: 153 | B163: Power | C163: TORNTPOWER | D163: 302.80 | E163: 303.92 | F163: 298.43 | G163: 294.07 | H163: 288.58 | I163: 308.28 | J163: 313.77 | K163: 318.13 | L163: 309.4 | M163: 299.55 | N163: 3321000 | O163: -31.28%
A164: 154 | B164: Automobile | C164: TVSMOTOR | D164: 365.45 | E164: 362.60 | F164: 358.55 | G164: 351.65 | H164: 347.60 | I164: 369.50 | J164: 373.55 | K164: 380.45 | L164: 366.65 | M164: 355.7 | N164: 6116000 | O164: -22.65%
A165: 155 | B165: FMCG | C165: UBL | D165: 1402.10 | E165: 1399.62 | F165: 1385.78 | G165: 1369.47 | H165: 1355.63 | I165: 1415.93 | J165: 1429.77 | K165: 1446.08 | L165: 1413.45 | M165: 1383.3 | N165: 1031800 | O165: -6.23%
A166: 156 | B166: Finance | C166: UJJIVAN | D166: 261.85 | E166: 265.52 | F166: 255.43 | G166: 249.02 | H166: 238.93 | I166: 271.93 | J166: 282.02 | K166: 288.43 | L166: 275.6 | M166: 259.1 | N166: 5108800 | O166: -8.38%
A167: 157 | B167: Cement | C167: ULTRACEMCO | D167: 4483.10 | E167: 4500.65 | F167: 4449.30 | G167: 4415.50 | H167: 4364.15 | I167: 4534.45 | J167: 4585.80 | K167: 4619.60 | L167: 4552 | M167: 4466.85 | N167: 2133200 | O167: -6.16%
A168: 158 | B168: Banking | C168: UNIONBANK | D168: 69.90 | E168: 70.33 | F168: 68.87 | G168: 67.83 | H168: 66.37 | I168: 71.37 | J168: 72.83 | K168: 73.87 | L168: 71.8 | M168: 69.3 | N168: 30303000 | O168: -6.20%
A169: 159 | B169: Fertilisers | C169: UPL | D169: 608.30 | E169: 613.80 | F169: 599.75 | G169: 591.20 | H169: 577.15 | I169: 622.35 | J169: 636.40 | K169: 644.95 | L169: 627.85 | M169: 605.25 | N169: 11310300 | O169: -24.19%
A170: 160 | B170: Metals | C170: VEDL | D170: 172.45 | E170: 170.32 | F170: 167.43 | G170: 162.42 | H170: 159.53 | I170: 175.33 | J170: 178.22 | K170: 183.23 | L170: 173.2 | M170: 165.3 | N170: 69246000 | O170: -1.72%
A171: 161 | B171: Capital_Goods | C171: VOLTAS | D171: 577.80 | E171: 577.98 | F171: 573.07 | G171: 568.33 | H171: 563.42 | I171: 582.72 | J171: 587.63 | K171: 592.37 | L171: 582.9 | M171: 573.25 | N171: 3100000 | O171: -24.15%
A172: 162 | B172: Technology | C172: WIPRO | D172: 263.80 | E172: 264.53 | F172: 262.47 | G172: 261.13 | H172: 259.07 | I172: 265.87 | J172: 267.93 | K172: 269.27 | L172: 266.6 | M172: 263.2 | N172: 30534400 | O172: -5.33%
A173: 163 | B173: Banking | C173: YESBANK | D173: 88.20 | E173: 88.52 | F173: 86.03 | G173: 83.87 | H173: 81.38 | I173: 90.68 | J173: 93.17 | K173: 95.33 | L173: 91 | M173: 86.35 | N173: 114521000 | O173: -7.23%
A174: 164 | B174: Media | C174: ZEEL | D174: 392.35 | E174: 387.50 | F174: 380.55 | G174: 368.75 | H174: 361.80 | I174: 399.30 | J174: 406.25 | K174: 418.05 | L174: 394.45 | M174: 375.7 | N174: 21496800 | O174: -9.86%
A221: Pivot Point: This is trigger point for intra day buy/sell based on the price range of the previous day
A222: As per the tool,the trader should take BUY position just above Pivot and keep the stop loss of pivot point and the first target would be Resistance 1(R1)
A223: If R1 is crossed then R2 becomes the next target with stop loss of at R1
A224: Similarly if price goes below pivot point then the trader should sell and keep a stop loss of pivot point and the first target would be S1
A225: If S1 is crossed then S2 becomes the next target with stop loss of at S1
A227: Disclaimer:
A228: This document has been prepared by the Retail Research Desk of Asit C Mehta
A229: Investment Intermediates Ltd. and is meant for use of the recipient only
A230: and is not for circulation. This document is not to be reported or
A231: copied or made available to others. It should not be considered to be
A232: taken as an offer to sell or a solicitation to buy any security. The
A233: information contained herein is from sources believed reliable. We do
A234: not represent that it is accurate or complete and it should not be
A235: relied upon as such. We may from time to time have positions in and buy
A236: and sell securities referred to herein

Sheet Cash Intra
M5: Back to Main Page
A6: FOR INTRA DAY TRADING | K6: =Main!B10 -> 2019-07-26
A8: Sr.no | B8: Scrip | C8: CLOSE RATE | D8: Pivot Point | E8: Supports | H8: Resistances
C9: Point | E9: S1 | F9: S2 | G9: S3 | H9: R1 | I9: R2 | J9: R3 | K9: HIGH | L9: LOW | M9: Total Trade Quanity in Lakhs
A10: 1 | B10: Nifty 50 | C10: 11252.15 | D10: 11284.30 | E10: 11207.20 | F10: 11162.25 | G10: 11085.15 | H10: 11329.25 | I10: 11406.35 | J10: 11451.30 | K10: 11361.4 | L10: 11239.35
A11: 2 | B11: Nifty Bank | C11: 29043.05 | D11: 29071.63 | E11: 28902.47 | F11: 28761.88 | G11: 28592.72 | H11: 29212.22 | I11: 29381.38 | J11: 29521.97 | K11: 29240.8 | L11: 28931.05
A12: 3 | B12: Nifty CPSE | C12: 2074.4 | D12: 2081.00 | E12: 2056.80 | F12: 2039.20 | G12: 2015.00 | H12: 2098.60 | I12: 2122.80 | J12: 2140.40 | K12: 2105.2 | L12: 2063.4
A13: 4 | B13: Nifty Infra | C13: 3128.4 | D13: 3142.68 | E13: 3106.02 | F13: 3083.63 | G13: 3046.97 | H13: 3165.07 | I13: 3201.73 | J13: 3224.12 | K13: 3179.35 | L13: 3120.3
A14: 5 | B14: Nifty IT | C14: 15474.65 | D14: 15442.77 | E14: 15374.93 | F14: 15275.22 | G14: 15207.38 | H14: 15542.48 | I14: 15610.32 | J14: 15710.03 | K14: 15510.6 | L14: 15343.05
A15: 6 | B15: Nifty PSE | C15: 3296.25 | D15: 3305.92 | E15: 3273.18 | F15: 3250.12 | G15: 3217.38 | H15: 3328.98 | I15: 3361.72 | J15: 3384.78 | K15: 3338.65 | L15: 3282.85
A16: 7 | B16: Nifty Midcap 50 | C16: 4385.4 | D16: 4387.38 | E16: 4364.92 | F16: 4344.43 | G16: 4321.97 | H16: 4407.87 | I16: 4430.33 | J16: 4450.82 | K16: 4409.85 | L16: 4366.9
A17: 8 | B17: ABB | C17: 1402.8 | D17: 1394.27 | E17: 1374.63 | F17: 1346.47 | G17: 1326.83 | H17: 1422.43 | I17: 1442.07 | J17: 1470.23 | K17: 1413.9 | L17: 1366.1 | M17: 4.45967
A18: 9 | B18: ACC | C18: 1585.25 | D18: 1585.67 | E18: 1569.43 | F18: 1553.62 | G18: 1537.38 | H18: 1601.48 | I18: 1617.72 | J18: 1633.53 | K18: 1601.9 | L18: 1569.85 | M18: 9.06465
A19: 10 | B19: AUBANK | C19: 634.1 | D19: 638.03 | E19: 624.07 | F19: 614.03 | G19: 600.07 | H19: 648.07 | I19: 662.03 | J19: 672.07 | K19: 652 | L19: 628 | M19: 3.28573
A20: 11 | B20: ADANIPORTS | C20: 380.35 | D20: 380.97 | E20: 376.38 | F20: 372.42 | G20: 367.83 | H20: 384.93 | I20: 389.52 | J20: 393.48 | K20: 385.55 | L20: 377 | M20: 29.9897
A21: 12 | B21: ADANIPOWER | C21: 62.1 | D21: 62.03 | E21: 60.07 | F21: 58.03 | G21: 56.07 | H21: 64.07 | I21: 66.03 | J21: 68.07 | K21: 64 | L21: 60 | M21: 148.90472
A22: 13 | B22: ABCAPITAL | C22: 85.9 | D22: 85.30 | E22: 84.25 | F22: 82.60 | G22: 81.55 | H22: 86.95 | I22: 88.00 | J22: 89.65 | K22: 86.35 | L22: 83.65 | M22: 10.55567
A23: 14 | B23: ABFRL | C23: 204.95 | D23: 204.55 | E23: 202.40 | F23: 199.85 | G23: 197.70 | H23: 207.10 | I23: 209.25 | J23: 211.80 | K23: 206.7 | L23: 202 | M23: 2.60515
A24: 15 | B24: AJANTPHARM | C24: 884.05 | D24: 886.35 | E24: 864.70 | F24: 845.35 | G24: 823.70 | H24: 905.70 | I24: 927.35 | J24: 946.70 | K24: 908 | L24: 867 | M24: 2.42767
A25: 16 | B25: ALKEM | C25: 1815.15 | D25: 1807.08 | E25: 1789.37 | F25: 1763.58 | G25: 1745.87 | H25: 1832.87 | I25: 1850.58 | J25: 1876.37 | K25: 1824.8 | L25: 1781.3 | M25: 0.20147
A26: 17 | B26: AMARAJABAT | C26: 635.95 | D26: 634.77 | E26: 628.03 | F26: 620.12 | G26: 613.38 | H26: 642.68 | I26: 649.42 | J26: 657.33 | K26: 641.5 | L26: 626.85 | M26: 3.30436
A27: 18 | B27: AMBUJACEM | C27: 214.05 | D27: 215.02 | E27: 210.03 | F27: 206.02 | G27: 201.03 | H27: 219.03 | I27: 224.02 | J27: 228.03 | K27: 220 | L27: 211 | M27: 41.48175
A28: 19 | B28: APOLLOHOSP | C28: 1343.6 | D28: 1335.53 | E28: 1322.07 | F28: 1300.53 | G28: 1287.07 | H28: 1357.07 | I28: 1370.53 | J28: 1392.07 | K28: 1349 | L28: 1314 | M28: 3.91683
A29: 20 | B29: APOLLOTYRE | C29: 161.35 | D29: 162.48 | E29: 159.57 | F29: 157.78 | G29: 154.87 | H29: 164.27 | I29: 167.18 | J29: 168.97 | K29: 165.4 | L29: 160.7 | M29: 25.89689
A30: 21 | B30: ASHOKLEY | C30: 72.3 | D30: 72.35 | E30: 71.50 | F30: 70.70 | G30: 69.85 | H30: 73.15 | I30: 74.00 | J30: 74.80 | K30: 73.2 | L30: 71.55 | M30: 175.74892
A31: 22 | B31: ASIANPAINT | C31: 1495.85 | D31: 1486.25 | E31: 1468.65 | F31: 1441.45 | G31: 1423.85 | H31: 1513.45 | I31: 1531.05 | J31: 1558.25 | K31: 1503.85 | L31: 1459.05 | M31: 41.94809
A32: 23 | B32: AUROPHARMA | C32: 553.9 | D32: 555.42 | E32: 548.98 | F32: 544.07 | G32: 537.63 | H32: 560.33 | I32: 566.77 | J32: 571.68 | K32: 561.85 | L32: 550.5 | M32: 18.89831
A33: 24 | B33: DMART | C33: 1420.15 | D33: 1423.32 | E33: 1397.83 | F33: 1375.52 | G33: 1350.03 | H33: 1445.63 | I33: 1471.12 | J33: 1493.43 | K33: 1448.8 | L33: 1401 | M33: 3.31496
A34: 25 | B34: AXISBANK | C34: 723.15 | D34: 718.58 | E34: 710.92 | F34: 698.68 | G34: 691.02 | H34: 730.82 | I34: 738.48 | J34: 750.72 | K34: 726.25 | L34: 706.35 | M34: 99.72204
A35: 26 | B35: BAJAJ-AUTO | C35: 2547 | D35: 2542.63 | E35: 2517.37 | F35: 2487.73 | G35: 2462.47 | H35: 2572.27 | I35: 2597.53 | J35: 2627.17 | K35: 2567.9 | L35: 2513 | M35: 5.49808
A36: 27 | B36: BAJFINANCE | C36: 3046.5 | D36: 3095.37 | E36: 2947.33 | F36: 2848.17 | G36: 2700.13 | H36: 3194.53 | I36: 3342.57 | J36: 3441.73 | K36: 3243.4 | L36: 2996.2 | M36: 102.90577
A37: 28 | B37: BAJAJFINSV | C37: 6782.3 | D37: 6904.10 | E37: 6638.20 | F37: 6494.10 | G37: 6228.20 | H37: 7048.20 | I37: 7314.10 | J37: 7458.20 | K37: 7170 | L37: 6760 | M37: 10.95745
A38: 29 | B38: BAJAJHLDNG | C38: 3372.6 | D38: 3357.07 | E38: 3314.13 | F38: 3255.67 | G38: 3212.73 | H38: 3415.53 | I38: 3458.47 | J38: 3516.93 | K38: 3400 | L38: 3298.6 | M38: 0.34631
A39: 30 | B39: BALKRISIND | C39: 725.15 | D39: 721.15 | E39: 709.30 | F39: 693.45 | G39: 681.60 | H39: 737.00 | I39: 748.85 | J39: 764.70 | K39: 733 | L39: 705.3 | M39: 3.75145
A40: 31 | B40: BANDHANBNK | C40: 461.4 | D40: 457.13 | E40: 449.37 | F40: 437.33 | G40: 429.57 | H40: 469.17 | I40: 476.93 | J40: 488.97 | K40: 464.9 | L40: 445.1 | M40: 18.02292
A41: 32 | B41: BANKBARODA | C41: 109.55 | D41: 109.65 | E41: 108.20 | F41: 106.85 | G41: 105.40 | H41: 111.00 | I41: 112.45 | J41: 113.80 | K41: 111.1 | L41: 108.3 | M41: 189.73739
A42: 33 | B42: BANKINDIA | C42: 75.4 | D42: 75.77 | E42: 74.03 | F42: 72.67 | G42: 70.93 | H42: 77.13 | I42: 78.87 | J42: 80.23 | K42: 77.5 | L42: 74.4 | M42: 74.57025
A43: 34 | B43: BATAINDIA | C43: 1301.3 | D43: 1302.85 | E43: 1291.10 | F43: 1280.90 | G43: 1269.15 | H43: 1313.05 | I43: 1324.80 | J43: 1335.00 | K43: 1314.6 | L43: 1292.65 | M43: 5.7169
A44: 35 | B44: BERGEPAINT | C44: 327.05 | D44: 327.25 | E44: 323.80 | F44: 320.55 | G44: 317.10 | H44: 330.50 | I44: 333.95 | J44: 337.20 | K44: 330.7 | L44: 324 | M44: 22.37357
A45: 36 | B45: BEL | C45: 99.15 | D45: 98.87 | E45: 97.48 | F45: 95.82 | G45: 94.43 | H45: 100.53 | I45: 101.92 | J45: 103.58 | K45: 100.25 | L45: 97.2 | M45: 135.32297
A46: 37 | B46: BHARATFORG | C46: 428.25 | D46: 431.02 | E46: 424.03 | F46: 419.82 | G46: 412.83 | H46: 435.23 | I46: 442.22 | J46: 446.43 | K46: 438 | L46: 426.8 | M46: 9.54127
A47: 38 | B47: BHEL | C47: 61.15 | D47: 61.38 | E47: 60.37 | F47: 59.58 | G47: 58.57 | H47: 62.17 | I47: 63.18 | J47: 63.97 | K47: 62.4 | L47: 60.6 | M47: 83.19563
A48: 39 | B48: BPCL | C48: 340.3 | D48: 343.73 | E48: 335.97 | F48: 331.63 | G48: 323.87 | H48: 348.07 | I48: 355.83 | J48: 360.17 | K48: 351.5 | L48: 339.4 | M48: 35.1565
A49: 40 | B49: BHARTIARTL | C49: 339 | D49: 339.00 | E49: 334.55 | F49: 330.10 | G49: 325.65 | H49: 343.45 | I49: 347.90 | J49: 352.35 | K49: 343.45 | L49: 334.55 | M49: 74.6011
A50: 41 | B50: INFRATEL | C50: 261.9 | D50: 267.02 | E50: 254.18 | F50: 246.47 | G50: 233.63 | H50: 274.73 | I50: 287.57 | J50: 295.28 | K50: 279.85 | L50: 259.3 | M50: 84.54229
A51: 42 | B51: BIOCON | C51: 238.6 | D51: 237.17 | E51: 234.43 | F51: 230.27 | G51: 227.53 | H51: 241.33 | I51: 244.07 | J51: 248.23 | K51: 239.9 | L51: 233 | M51: 31.09298
A52: 43 | B52: BBTC | C52: 886.85 | D52: 890.47 | E52: 874.48 | F52: 862.12 | G52: 846.13 | H52: 902.83 | I52: 918.82 | J52: 931.18 | K52: 906.45 | L52: 878.1 | M52: 0.54701
A53: 44 | B53: BOSCHLTD | C53: 15002.45 | D53: 14897.13 | E53: 14720.32 | F53: 14438.18 | G53: 14261.37 | H53: 15179.27 | I53: 15356.08 | J53: 15638.22 | K53: 15073.95 | L53: 14615 | M53: 0.17367
A54: 45 | B54: BRITANNIA | C54: 2671.55 | D54: 2662.55 | E54: 2640.10 | F54: 2608.65 | G54: 2586.20 | H54: 2694.00 | I54: 2716.45 | J54: 2747.90 | K54: 2685 | L54: 2631.1 | M54: 7.71878
A55: 46 | B55: CADILAHC | C55: 230.2 | D55: 230.63 | E55: 226.07 | F55: 221.93 | G55: 217.37 | H55: 234.77 | I55: 239.33 | J55: 243.47 | K55: 235.2 | L55: 226.5 | M55: 14.60683
A56: 47 | B56: CANBK | C56: 239.25 | D56: 241.63 | E56: 233.27 | F56: 227.28 | G56: 218.92 | H56: 247.62 | I56: 255.98 | J56: 261.97 | K56: 250 | L56: 235.65 | M56: 120.27668
A57: 48 | B57: CASTROLIND | C57: 124.8 | D57: 124.50 | E57: 122.30 | F57: 119.80 | G57: 117.60 | H57: 127.00 | I57: 129.20 | J57: 131.70 | K57: 126.7 | L57: 122 | M57: 10.75232
A58: 49 | B58: CHOLAFIN | C58: 249.05 | D58: 247.50 | E58: 241.40 | F58: 233.75 | G58: 227.65 | H58: 255.15 | I58: 261.25 | J58: 268.90 | K58: 253.6 | L58: 239.85 | M58: 15.50083
A59: 50 | B59: CIPLA | C59: 536.65 | D59: 531.62 | E59: 524.03 | F59: 511.42 | G59: 503.83 | H59: 544.23 | I59: 551.82 | J59: 564.43 | K59: 539.2 | L59: 519 | M59: 31.8351
A60: 51 | B60: COALINDIA | C60: 209.05 | D60: 211.60 | E60: 205.55 | F60: 202.05 | G60: 196.00 | H60: 215.10 | I60: 221.15 | J60: 224.65 | K60: 217.65 | L60: 208.1 | M60: 192.51346
A61: 52 | B61: COLPAL | C61: 1143.35 | D61: 1148.87 | E61: 1133.43 | F61: 1123.52 | G61: 1108.08 | H61: 1158.78 | I61: 1174.22 | J61: 1184.13 | K61: 1164.3 | L61: 1138.95 | M61: 5.08201
A62: 53 | B62: CONCOR | C62: 528 | D62: 529.47 | E62: 523.43 | F62: 518.87 | G62: 512.83 | H62: 534.03 | I62: 540.07 | J62: 544.63 | K62: 535.5 | L62: 524.9 | M62: 17.24285
A63: 54 | B63: COROMANDEL | C63: 383.85 | D63: 385.23 | E63: 380.82 | F63: 377.78 | G63: 373.37 | H63: 388.27 | I63: 392.68 | J63: 395.72 | K63: 389.65 | L63: 382.2 | M63: 0.71589
A64: 55 | B64: CROMPTON | C64: 225.25 | D64: 226.57 | E64: 221.68 | F64: 218.12 | G64: 213.23 | H64: 230.13 | I64: 235.02 | J64: 238.58 | K64: 231.45 | L64: 223 | M64: 7.83221
A65: 56 | B65: CUMMINSIND | C65: 750.7 | D65: 748.90 | E65: 732.80 | F65: 714.90 | G65: 698.80 | H65: 766.80 | I65: 782.90 | J65: 800.80 | K65: 765 | L65: 731 | M65: 8.12365
A66: 57 | B66: DLF | C66: 176.35 | D66: 177.00 | E66: 174.15 | F66: 171.95 | G66: 169.10 | H66: 179.20 | I66: 182.05 | J66: 184.25 | K66: 179.85 | L66: 174.8 | M66: 72.73037
A67: 58 | B67: DABUR | C67: 422.85 | D67: 422.75 | E67: 419.15 | F67: 415.45 | G67: 411.85 | H67: 426.45 | I67: 430.05 | J67: 433.75 | K67: 426.35 | L67: 419.05 | M67: 20.74309
A68: 59 | B68: DHFL | C68: 55.2 | D68: 55.48 | E68: 53.17 | F68: 51.13 | G68: 48.82 | H68: 57.52 | I68: 59.83 | J68: 61.87 | K68: 57.8 | L68: 53.45 | M68: 373.78917
A69: 60 | B69: DBL | C69: 420 | D69: 420.67 | E69: 413.33 | F69: 406.67 | G69: 399.33 | H69: 427.33 | I69: 434.67 | J69: 441.33 | K69: 428 | L69: 414 | M69: 1.20805
A70: 61 | B70: DISHTV | C70: 32.25 | D70: 32.27 | E70: 31.78 | F70: 31.32 | G70: 30.83 | H70: 32.73 | I70: 33.22 | J70: 33.68 | K70: 32.75 | L70: 31.8 | M70: 168.27494
A71: 62 | B71: DIVISLAB | C71: 1641.75 | D71: 1631.57 | E71: 1613.18 | F71: 1584.62 | G71: 1566.23 | H71: 1660.13 | I71: 1678.52 | J71: 1707.08 | K71: 1649.95 | L71: 1603 | M71: 3.8213
A72: 63 | B72: DRREDDY | C72: 2654.1 | D72: 2642.45 | E72: 2618.90 | F72: 2583.70 | G72: 2560.15 | H72: 2677.65 | I72: 2701.20 | J72: 2736.40 | K72: 2666 | L72: 2607.25 | M72: 5.16388
A73: 64 | B73: EDELWEISS | C73: 149.2 | D73: 148.20 | E73: 145.55 | F73: 141.90 | G73: 139.25 | H73: 151.85 | I73: 154.50 | J73: 158.15 | K73: 150.85 | L73: 144.55 | M73: 11.37388
A74: 65 | B74: EICHERMOT | C74: 16436.85 | D74: 16448.15 | E74: 16176.45 | F74: 15916.05 | G74: 15644.35 | H74: 16708.55 | I74: 16980.25 | J74: 17240.65 | K74: 16719.85 | L74: 16187.75 | M74: 2.05968
A75: 66 | B75: ENDURANCE | C75: 931.15 | D75: 932.02 | E75: 906.68 | F75: 882.22 | G75: 856.88 | H75: 956.48 | I75: 981.82 | J75: 1006.28 | K75: 957.35 | L75: 907.55 | M75: 0.5415
A76: 67 | B76: ENGINERSIN | C76: 104.1 | D76: 104.32 | E76: 103.13 | F76: 102.17 | G76: 100.98 | H76: 105.28 | I76: 106.47 | J76: 107.43 | K76: 105.5 | L76: 103.35 | M76: 11.61003
A77: 68 | B77: ESCORTS | C77: 470.2 | D77: 476.03 | E77: 462.22 | F77: 454.23 | G77: 440.42 | H77: 484.02 | I77: 497.83 | J77: 505.82 | K77: 489.85 | L77: 468.05 | M77: 23.47765
A78: 69 | B78: EXIDEIND | C78: 181.4 | D78: 182.47 | E78: 179.93 | F78: 178.47 | G78: 175.93 | H78: 183.93 | I78: 186.47 | J78: 187.93 | K78: 185 | L78: 181 | M78: 18.61099
A79: 70 | B79: FEDERALBNK | C79: 92.45 | D79: 92.58 | E79: 91.52 | F79: 90.58 | G79: 89.52 | H79: 93.52 | I79: 94.58 | J79: 95.52 | K79: 93.65 | L79: 91.65 | M79: 113.6423
A80: 71 | B80: FCONSUMER | C80: 29.15 | D80: 30.32 | E80: 27.03 | F80: 24.92 | G80: 21.63 | H80: 32.43 | I80: 35.72 | J80: 37.83 | K80: 33.6 | L80: 28.2 | M80: 48.63577
A81: 72 | B81: FRETAIL | C81: 425.1 | D81: 423.37 | E81: 418.83 | F81: 412.57 | G81: 408.03 | H81: 429.63 | I81: 434.17 | J81: 440.43 | K81: 427.9 | L81: 417.1 | M81: 1.60336
A82: 73 | B82: GAIL | C82: 134.75 | D82: 135.47 | E82: 133.43 | F82: 132.12 | G82: 130.08 | H82: 136.78 | I82: 138.82 | J82: 140.13 | K82: 137.5 | L82: 134.15 | M82: 80.82602
A83: 74 | B83: GMRINFRA | C83: 14.6 | D83: 14.67 | E83: 14.43 | F83: 14.27 | G83: 14.03 | H83: 14.83 | I83: 15.07 | J83: 15.23 | K83: 14.9 | L83: 14.5 | M83: 125.30295
A84: 75 | B84: GICRE | C84: 212.8 | D84: 214.13 | E84: 209.67 | F84: 206.53 | G84: 202.07 | H84: 217.27 | I84: 221.73 | J84: 224.87 | K84: 218.6 | L84: 211 | M84: 0.43766
A85: 76 | B85: GSKCONS | C85: 7444.05 | D85: 7445.10 | E85: 7398.95 | F85: 7353.85 | G85: 7307.70 | H85: 7490.20 | I85: 7536.35 | J85: 7581.45 | K85: 7491.25 | L85: 7400 | M85: 0.11675
A86: 77 | B86: GLENMARK | C86: 425.6 | D86: 423.87 | E86: 416.73 | F86: 407.87 | G86: 400.73 | H86: 432.73 | I86: 439.87 | J86: 448.73 | K86: 431 | L86: 415 | M86: 12.01471
A87: 78 | B87: GODREJAGRO | C87: 461.55 | D87: 465.17 | E87: 456.48 | F87: 451.42 | G87: 442.73 | H87: 470.23 | I87: 478.92 | J87: 483.98 | K87: 473.85 | L87: 460.1 | M87: 0.32443
A88: 79 | B88: GODREJCP | C88: 616.7 | D88: 616.58 | E88: 608.57 | F88: 600.43 | G88: 592.42 | H88: 624.72 | I88: 632.73 | J88: 640.87 | K88: 624.6 | L88: 608.45 | M88: 8.05919
A89: 80 | B89: GODREJIND | C89: 458.25 | D89: 460.65 | E89: 448.15 | F89: 438.05 | G89: 425.55 | H89: 470.75 | I89: 483.25 | J89: 493.35 | K89: 473.15 | L89: 450.55 | M89: 1.3621
A90: 81 | B90: GRAPHITE | C90: 293.35 | D90: 291.37 | E90: 284.13 | F90: 274.92 | G90: 267.68 | H90: 300.58 | I90: 307.82 | J90: 317.03 | K90: 298.6 | L90: 282.15 | M90: 15.00333
A91: 82 | B91: GRASIM | C91: 868.65 | D91: 872.58 | E91: 859.27 | F91: 849.88 | G91: 836.57 | H91: 881.97 | I91: 895.28 | J91: 904.67 | K91: 885.9 | L91: 863.2 | M91: 9.69227
A92: 83 | B92: GRUH | C92: 252 | D92: 248.92 | E92: 243.88 | F92: 235.77 | G92: 230.73 | H92: 257.03 | I92: 262.07 | J92: 270.18 | K92: 253.95 | L92: 240.8 | M92: 8.20518
A93: 84 | B93: GSPL | C93: 205.9 | D93: 206.13 | E93: 203.97 | F93: 202.03 | G93: 199.87 | H93: 208.07 | I93: 210.23 | J93: 212.17 | K93: 208.3 | L93: 204.2 | M93: 6.09504
A94: 85 | B94: HEG | C94: 958.1 | D94: 954.92 | E94: 935.83 | F94: 913.57 | G94: 894.48 | H94: 977.18 | I94: 996.27 | J94: 1018.53 | K94: 974 | L94: 932.65 | M94: 6.54385
A95: 86 | B95: HCLTECH | C95: 1011.3 | D95: 1013.98 | E95: 1000.32 | F95: 989.33 | G95: 975.67 | H95: 1024.97 | I95: 1038.63 | J95: 1049.62 | K95: 1027.65 | L95: 1003 | M95: 30.2102
A96: 87 | B96: HDFCAMC | C96: 2091.15 | D96: 2096.78 | E96: 2059.57 | F96: 2027.98 | G96: 1990.77 | H96: 2128.37 | I96: 2165.58 | J96: 2197.17 | K96: 2134 | L96: 2065.2 | M96: 4.21226
A97: 88 | B97: HDFCBANK | C97: 2286.05 | D97: 2293.92 | E97: 2272.38 | F97: 2258.72 | G97: 2237.18 | H97: 2307.58 | I97: 2329.12 | J97: 2342.78 | K97: 2315.45 | L97: 2280.25 | M97: 48.65502
A98: 89 | B98: HDFCLIFE | C98: 501.2 | D98: 503.37 | E98: 496.03 | F98: 490.87 | G98: 483.53 | H98: 508.53 | I98: 515.87 | J98: 521.03 | K98: 510.7 | L98: 498.2 | M98: 26.30537
A99: 90 | B99: HAVELLS | C99: 691.45 | D99: 692.75 | E99: 686.80 | F99: 682.15 | G99: 676.20 | H99: 697.40 | I99: 703.35 | J99: 708.00 | K99: 698.7 | L99: 688.1 | M99: 9.90859
A100: 91 | B100: HEROMOTOCO | C100: 2386.5 | D100: 2404.87 | E100: 2361.73 | F100: 2336.97 | G100: 2293.83 | H100: 2429.63 | I100: 2472.77 | J100: 2497.53 | K100: 2448 | L100: 2380.1 | M100: 8.12832
A101: 92 | B101: HEXAWARE | C101: 361.4 | D101: 360.53 | E101: 352.07 | F101: 342.73 | G101: 334.27 | H101: 369.87 | I101: 378.33 | J101: 387.67 | K101: 369 | L101: 351.2 | M101: 14.3396
A102: 93 | B102: HINDALCO | C102: 196.75 | D102: 197.48 | E102: 194.72 | F102: 192.68 | G102: 189.92 | H102: 199.52 | I102: 202.28 | J102: 204.32 | K102: 200.25 | L102: 195.45 | M102: 57.20563
A103: 94 | B103: HINDPETRO | C103: 266.75 | D103: 270.78 | E103: 261.17 | F103: 255.58 | G103: 245.97 | H103: 276.37 | I103: 285.98 | J103: 291.57 | K103: 280.4 | L103: 265.2 | M103: 43.18233
A104: 95 | B104: HINDUNILVR | C104: 1736.65 | D104: 1738.18 | E104: 1726.47 | F104: 1716.28 | G104: 1704.57 | H104: 1748.37 | I104: 1760.08 | J104: 1770.27 | K104: 1749.9 | L104: 1728 | M104: 12.97267
A105: 96 | B105: HINDZINC | C105: 217.1 | D105: 218.25 | E105: 214.65 | F105: 212.20 | G105: 208.60 | H105: 220.70 | I105: 224.30 | J105: 226.75 | K105: 221.85 | L105: 215.8 | M105: 14.95203
A106: 97 | B106: HUDCO | C106: 34.7 | D106: 34.92 | E106: 34.38 | F106: 34.07 | G106: 33.53 | H106: 35.23 | I106: 35.77 | J106: 36.08 | K106: 35.45 | L106: 34.6 | M106: 4.538
A107: 98 | B107: HDFC | C107: 2195.35 | D107: 2190.62 | E107: 2166.03 | F107: 2136.72 | G107: 2112.13 | H107: 2219.93 | I107: 2244.52 | J107: 2273.83 | K107: 2215.2 | L107: 2161.3 | M107: 31.94769
A108: 99 | B108: ICICIBANK | C108: 409 | D108: 409.38 | E108: 404.92 | F108: 400.83 | G108: 396.37 | H108: 413.47 | I108: 417.93 | J108: 422.02 | K108: 413.85 | L108: 405.3 | M108: 168.52479
A109: 100 | B109: ICICIGI | C109: 1098.15 | D109: 1090.85 | E109: 1072.80 | F109: 1047.45 | G109: 1029.40 | H109: 1116.20 | I109: 1134.25 | J109: 1159.60 | K109: 1108.9 | L109: 1065.5 | M109: 7.03044
A110: 101 | B110: ICICIPRULI | C110: 396.1 | D110: 397.20 | E110: 386.05 | F110: 376.00 | G110: 364.85 | H110: 407.25 | I110: 418.40 | J110: 428.45 | K110: 408.35 | L110: 387.15 | M110: 107.41604
A111: 102 | B111: IDBI | C111: 30.8 | D111: 30.92 | E111: 29.88 | F111: 28.97 | G111: 27.93 | H111: 31.83 | I111: 32.87 | J111: 33.78 | K111: 31.95 | L111: 30 | M111: 93.28187
A112: 103 | B112: IDFCFIRSTB | C112: 38.95 | D112: 38.42 | E112: 36.53 | F112: 34.12 | G112: 32.23 | H112: 40.83 | I112: 42.72 | J112: 45.13 | K112: 40.3 | L112: 36 | M112: 574.027
A113: 104 | B113: ITC | C113: 267.85 | D113: 269.08 | E113: 265.67 | F113: 263.48 | G113: 260.07 | H113: 271.27 | I113: 274.68 | J113: 276.87 | K113: 272.5 | L113: 266.9 | M113: 176.69912
A114: 105 | B114: IBULHSGFIN | C114: 612 | D114: 614.43 | E114: 601.57 | F114: 591.13 | G114: 578.27 | H114: 624.87 | I114: 637.73 | J114: 648.17 | K114: 627.3 | L114: 604 | M114: 90.08608
A115: 106 | B115: IBVENTURES | C115: 268.8 | D115: 270.47 | E115: 264.03 | F115: 259.27 | G115: 252.83 | H115: 275.23 | I115: 281.67 | J115: 286.43 | K115: 276.9 | L115: 265.7 | M115: 4.08992
A116: 107 | B116: INDIANB | C116: 212.7 | D116: 214.90 | E116: 208.90 | F116: 205.10 | G116: 199.10 | H116: 218.70 | I116: 224.70 | J116: 228.50 | K116: 220.9 | L116: 211.1 | M116: 5.15116
A117: 108 | B117: INDHOTEL | C117: 145.45 | D117: 146.57 | E117: 143.28 | F117: 141.12 | G117: 137.83 | H117: 148.73 | I117: 152.02 | J117: 154.18 | K117: 149.85 | L117: 144.4 | M117: 3.91035
A118: 109 | B118: IOC | C118: 146.65 | D118: 146.67 | E118: 145.33 | F118: 144.02 | G118: 142.68 | H118: 147.98 | I118: 149.32 | J118: 150.63 | K118: 148 | L118: 145.35 | M118: 499.24633
A119: 110 | B119: IGL | C119: 314.85 | D119: 312.45 | E119: 301.65 | F119: 288.45 | G119: 277.65 | H119: 325.65 | I119: 336.45 | J119: 349.65 | K119: 323.25 | L119: 299.25 | M119: 42.91639
A120: 111 | B120: INDUSINDBK | C120: 1391.65 | D120: 1392.67 | E120: 1365.98 | F120: 1340.32 | G120: 1313.63 | H120: 1418.33 | I120: 1445.02 | J120: 1470.68 | K120: 1419.35 | L120: 1367 | M120: 68.16446
A121: 112 | B121: NAUKRI | C121: 2245.15 | D121: 2220.58 | E121: 2179.22 | F121: 2113.28 | G121: 2071.92 | H121: 2286.52 | I121: 2327.88 | J121: 2393.82 | K121: 2261.95 | L121: 2154.65 | M121: 2.80344
A122: 113 | B122: INFY | C122: 794.5 | D122: 794.12 | E122: 788.03 | F122: 781.57 | G122: 775.48 | H122: 800.58 | I122: 806.67 | J122: 813.13 | K122: 800.2 | L122: 787.65 | M122: 97.73568
A123: 114 | B123: INDIGO | C123: 1584.75 | D123: 1595.23 | E123: 1566.52 | F123: 1548.28 | G123: 1519.57 | H123: 1613.47 | I123: 1642.18 | J123: 1660.42 | K123: 1623.95 | L123: 1577 | M123: 28.77671
A124: 115 | B124: JSWENERGY | C124: 68.35 | D124: 69.03 | E124: 67.32 | F124: 66.28 | G124: 64.57 | H124: 70.07 | I124: 71.78 | J124: 72.82 | K124: 70.75 | L124: 68 | M124: 3.05496
A125: 116 | B125: JSWSTEEL | C125: 248.65 | D125: 251.45 | E125: 245.00 | F125: 241.35 | G125: 234.90 | H125: 255.10 | I125: 261.55 | J125: 265.20 | K125: 257.9 | L125: 247.8 | M125: 68.95024
A126: 117 | B126: JINDALSTEL | C126: 135.1 | D126: 134.93 | E126: 132.97 | F126: 130.83 | G126: 128.87 | H126: 137.07 | I126: 139.03 | J126: 141.17 | K126: 136.9 | L126: 132.8 | M126: 121.37941
A127: 118 | B127: JUBLFOOD | C127: 1177.25 | D127: 1161.75 | E127: 1123.50 | F127: 1069.75 | G127: 1031.50 | H127: 1215.50 | I127: 1253.75 | J127: 1307.50 | K127: 1200 | L127: 1108 | M127: 48.31694
A128: 119 | B128: JUBILANT | C128: 449.3 | D128: 443.72 | E128: 430.58 | F128: 411.87 | G128: 398.73 | H128: 462.43 | I128: 475.57 | J128: 494.28 | K128: 456.85 | L128: 425 | M128: 2.89898
A129: 120 | B129: KOTAKBANK | C129: 1485.05 | D129: 1489.67 | E129: 1475.33 | F129: 1465.62 | G129: 1451.28 | H129: 1499.38 | I129: 1513.72 | J129: 1523.43 | K129: 1504 | L129: 1479.95 | M129: 28.38923
A130: 121 | B130: L&TFH | C130: 102 | D130: 102.07 | E130: 100.13 | F130: 98.27 | G130: 96.33 | H130: 103.93 | I130: 105.87 | J130: 107.73 | K130: 104 | L130: 100.2 | M130: 85.15821
A131: 122 | B131: LTTS | C131: 1469.6 | D131: 1484.23 | E131: 1450.37 | F131: 1431.13 | G131: 1397.27 | H131: 1503.47 | I131: 1537.33 | J131: 1556.57 | K131: 1518.1 | L131: 1465 | M131: 1.08951
A132: 123 | B132: LICHSGFIN | C132: 525.15 | D132: 523.95 | E132: 520.40 | F132: 515.65 | G132: 512.10 | H132: 528.70 | I132: 532.25 | J132: 537.00 | K132: 527.5 | L132: 519.2 | M132: 12.66237
A133: 124 | B133: LTI | C133: 1526.95 | D133: 1522.48 | E133: 1480.47 | F133: 1433.98 | G133: 1391.97 | H133: 1568.97 | I133: 1610.98 | J133: 1657.47 | K133: 1564.5 | L133: 1476 | M133: 1.86296
A134: 125 | B134: LT | C134: 1372.4 | D134: 1381.43 | E134: 1359.97 | F134: 1347.53 | G134: 1326.07 | H134: 1393.87 | I134: 1415.33 | J134: 1427.77 | K134: 1402.9 | L134: 1369 | M134: 41.81824
A135: 126 | B135: LUPIN | C135: 773.05 | D135: 762.43 | E135: 747.17 | F135: 721.28 | G135: 706.02 | H135: 788.32 | I135: 803.58 | J135: 829.47 | K135: 777.7 | L135: 736.55 | M135: 25.78623
A136: 127 | B136: MRF | C136: 54112.9 | D136: 54132.17 | E136: 53780.73 | F136: 53448.57 | G136: 53097.13 | H136: 54464.33 | I136: 54815.77 | J136: 55147.93 | K136: 54483.6 | L136: 53800 | M136: 0.04636
A137: 128 | B137: MGL | C137: 772.8 | D137: 777.27 | E137: 763.63 | F137: 754.47 | G137: 740.83 | H137: 786.43 | I137: 800.07 | J137: 809.23 | K137: 790.9 | L137: 768.1 | M137: 3.59176
A138: 129 | B138: M&MFIN | C138: 304.5 | D138: 304.52 | E138: 298.08 | F138: 291.67 | G138: 285.23 | H138: 310.93 | I138: 317.37 | J138: 323.78 | K138: 310.95 | L138: 298.1 | M138: 63.42373
A139: 130 | B139: M&M | C139: 547.55 | D139: 547.48 | E139: 541.97 | F139: 536.38 | G139: 530.87 | H139: 553.07 | I139: 558.58 | J139: 564.17 | K139: 553 | L139: 541.9 | M139: 47.63735
A140: 131 | B140: MANAPPURAM | C140: 115.15 | D140: 116.27 | E140: 112.88 | F140: 110.62 | G140: 107.23 | H140: 118.53 | I140: 121.92 | J140: 124.18 | K140: 119.65 | L140: 114 | M140: 51.91603
A141: 132 | B141: MRPL | C141: 54.55 | D141: 54.18 | E141: 53.37 | F141: 52.18 | G141: 51.37 | H141: 55.37 | I141: 56.18 | J141: 57.37 | K141: 55 | L141: 53 | M141: 4.85734
A142: 133 | B142: MARICO | C142: 361.5 | D142: 362.07 | E142: 358.38 | F142: 355.27 | G142: 351.58 | H142: 365.18 | I142: 368.87 | J142: 371.98 | K142: 365.75 | L142: 358.95 | M142: 14.44408
A143: 134 | B143: MARUTI | C143: 5756.75 | D143: 5767.58 | E143: 5690.22 | F143: 5623.68 | G143: 5546.32 | H143: 5834.12 | I143: 5911.48 | J143: 5978.02 | K143: 5844.95 | L143: 5701.05 | M143: 9.90461
A144: 135 | B144: MFSL | C144: 414.15 | D144: 413.68 | E144: 406.47 | F144: 398.78 | G144: 391.57 | H144: 421.37 | I144: 428.58 | J144: 436.27 | K144: 420.9 | L144: 406 | M144: 4.28228
A145: 136 | B145: MINDTREE | C145: 695.15 | D145: 691.98 | E145: 685.37 | F145: 675.58 | G145: 668.97 | H145: 701.77 | I145: 708.38 | J145: 718.17 | K145: 698.6 | L145: 682.2 | M145: 13.43445
A146: 137 | B146: MOTHERSUMI | C146: 111.75 | D146: 111.33 | E146: 109.92 | F146: 108.08 | G146: 106.67 | H146: 113.17 | I146: 114.58 | J146: 116.42 | K146: 112.75 | L146: 109.5 | M146: 39.76952
A147: 138 | B147: MPHASIS | C147: 921.65 | D147: 922.55 | E147: 905.10 | F147: 888.55 | G147: 871.10 | H147: 939.10 | I147: 956.55 | J147: 973.10 | K147: 940 | L147: 906 | M147: 2.27303
A148: 139 | B148: MUTHOOTFIN | C148: 595.2 | D148: 595.30 | E148: 585.50 | F148: 575.80 | G148: 566.00 | H148: 605.00 | I148: 614.80 | J148: 624.50 | K148: 605.1 | L148: 585.6 | M148: 8.6834
A149: 140 | B149: NATCOPHARM | C149: 510.65 | D149: 509.02 | E149: 506.63 | F149: 502.62 | G149: 500.23 | H149: 513.03 | I149: 515.42 | J149: 519.43 | K149: 511.4 | L149: 505 | M149: 1.20072
A150: 141 | B150: NBCC | C150: 48 | D150: 48.47 | E150: 47.18 | F150: 46.37 | G150: 45.08 | H150: 49.28 | I150: 50.57 | J150: 51.38 | K150: 49.75 | L150: 47.65 | M150: 147.85356
A151: 142 | B151: NHPC | C151: 22.4 | D151: 22.63 | E151: 21.87 | F151: 21.33 | G151: 20.57 | H151: 23.17 | I151: 23.93 | J151: 24.47 | K151: 23.4 | L151: 22.1 | M151: 26.60276
A152: 143 | B152: NMDC | C152: 108.45 | D152: 109.55 | E152: 106.60 | F152: 104.75 | G152: 101.80 | H152: 111.40 | I152: 114.35 | J152: 116.20 | K152: 112.5 | L152: 107.7 | M152: 39.08566
A153: 144 | B153: NTPC | C153: 129.75 | D153: 130.33 | E153: 127.82 | F153: 125.88 | G153: 123.37 | H153: 132.27 | I153: 134.78 | J153: 136.72 | K153: 132.85 | L153: 128.4 | M153: 293.37351
A154: 145 | B154: NATIONALUM | C154: 45 | D154: 45.22 | E154: 44.43 | F154: 43.87 | G154: 43.08 | H154: 45.78 | I154: 46.57 | J154: 47.13 | K154: 46 | L154: 44.65 | M154: 87.89647
A155: 146 | B155: OBEROIRLTY | C155: 545.55 | D155: 539.58 | E155: 521.17 | F155: 496.78 | G155: 478.37 | H155: 563.97 | I155: 582.38 | J155: 606.77 | K155: 558 | L155: 515.2 | M155: 8.84386
A156: 147 | B156: ONGC | C156: 143.85 | D156: 143.35 | E156: 141.90 | F156: 139.95 | G156: 138.50 | H156: 145.30 | I156: 146.75 | J156: 148.70 | K156: 144.8 | L156: 141.4 | M156: 280.0478
A157: 148 | B157: OIL | C157: 155.9 | D157: 155.97 | E157: 154.58 | F157: 153.27 | G157: 151.88 | H157: 157.28 | I157: 158.67 | J157: 159.98 | K157: 157.35 | L157: 154.65 | M157: 39.00524
A158: 149 | B158: OFSS | C158: 3297.95 | D158: 3285.30 | E158: 3255.55 | F158: 3213.15 | G158: 3183.40 | H158: 3327.70 | I158: 3357.45 | J158: 3399.85 | K158: 3315.05 | L158: 3242.9 | M158: 0.31482
A159: 150 | B159: PIIND | C159: 1094.85 | D159: 1100.47 | E159: 1081.53 | F159: 1068.22 | G159: 1049.28 | H159: 1113.78 | I159: 1132.72 | J159: 1146.03 | K159: 1119.4 | L159: 1087.15 | M159: 3.27734
A160: 151 | B160: PNBHOUSING | C160: 702.05 | D160: 704.70 | E160: 695.40 | F160: 688.75 | G160: 679.45 | H160: 711.35 | I160: 720.65 | J160: 727.30 | K160: 714 | L160: 698.05 | M160: 0.92443
A161: 152 | B161: PAGEIND | C161: 19040.7 | D161: 19124.73 | E161: 18679.47 | F161: 18318.23 | G161: 17872.97 | H161: 19485.97 | I161: 19931.23 | J161: 20292.47 | K161: 19570 | L161: 18763.5 | M161: 0.64957
A162: 153 | B162: PETRONET | C162: 232.3 | D162: 233.50 | E162: 230.45 | F162: 228.60 | G162: 225.55 | H162: 235.35 | I162: 238.40 | J162: 240.25 | K162: 236.55 | L162: 231.65 | M162: 36.99452
A163: 154 | B163: PFIZER | C163: 3174.05 | D163: 3172.90 | E163: 3148.85 | F163: 3123.65 | G163: 3099.60 | H163: 3198.10 | I163: 3222.15 | J163: 3247.35 | K163: 3196.95 | L163: 3147.7 | M163: 0.11828
A164: 155 | B164: PIDILITIND | C164: 1234.55 | D164: 1232.93 | E164: 1221.62 | F164: 1208.68 | G164: 1197.37 | H164: 1245.87 | I164: 1257.18 | J164: 1270.12 | K164: 1244.25 | L164: 1220 | M164: 5.29053
A165: 156 | B165: PEL | C165: 1751 | D165: 1760.27 | E165: 1716.73 | F165: 1682.47 | G165: 1638.93 | H165: 1794.53 | I165: 1838.07 | J165: 1872.33 | K165: 1803.8 | L165: 1726 | M165: 11.87078
A166: 157 | B166: PFC | C166: 112.2 | D166: 111.88 | E166: 110.62 | F166: 109.03 | G166: 107.77 | H166: 113.47 | I166: 114.73 | J166: 116.32 | K166: 113.15 | L166: 110.3 | M166: 139.49637
A167: 158 | B167: POWERGRID | C167: 213.15 | D167: 212.47 | E167: 210.53 | F167: 207.92 | G167: 205.98 | H167: 215.08 | I167: 217.02 | J167: 219.63 | K167: 214.4 | L167: 209.85 | M167: 157.98251
A168: 159 | B168: PRESTIGE | C168: 268.45 | D168: 267.58 | E168: 260.17 | F168: 251.88 | G168: 244.47 | H168: 275.87 | I168: 283.28 | J168: 291.57 | K168: 275 | L168: 259.3 | M168: 2.96555
A169: 160 | B169: PGHH | C169: 10692.05 | D169: 10628.63 | E169: 10557.27 | F169: 10422.48 | G169: 10351.12 | H169: 10763.42 | I169: 10834.78 | J169: 10969.57 | K169: 10700 | L169: 10493.85 | M169: 0.01084
A170: 161 | B170: PNB | C170: 66.05 | D170: 66.88 | E170: 64.77 | F170: 63.48 | G170: 61.37 | H170: 68.17 | I170: 70.28 | J170: 71.57 | K170: 69 | L170: 65.6 | M170: 258.00387
A171: 162 | B171: QUESS | C171: 445.8 | D171: 448.28 | E171: 438.57 | F171: 431.33 | G171: 421.62 | H171: 455.52 | I171: 465.23 | J171: 472.47 | K171: 458 | L171: 441.05 | M171: 1.98181
A172: 163 | B172: RBLBANK | C172: 454.95 | D172: 454.28 | E172: 445.02 | F172: 435.08 | G172: 425.82 | H172: 464.22 | I172: 473.48 | J172: 483.42 | K172: 463.55 | L172: 444.35 | M172: 88.01161
A173: 164 | B173: RECLTD | C173: 146.5 | D173: 145.55 | E173: 144.15 | F173: 141.80 | G173: 140.40 | H173: 147.90 | I173: 149.30 | J173: 151.65 | K173: 146.95 | L173: 143.2 | M173: 58.43831
A174: 165 | B174: RAJESHEXPO | C174: 711.35 | D174: 704.57 | E174: 691.53 | F174: 671.72 | G174: 658.68 | H174: 724.38 | I174: 737.42 | J174: 757.23 | K174: 717.6 | L174: 684.75 | M174: 2.31198
A175: 166 | B175: RELCAPITAL | C175: 50.1 | D175: 51.53 | E175: 48.22 | F175: 46.33 | G175: 43.02 | H175: 53.42 | I175: 56.73 | J175: 58.62 | K175: 54.85 | L175: 49.65 | M175: 335.85633
A176: 167 | B176: RELIANCE | C176: 1231.5 | D176: 1242.52 | E176: 1215.98 | F176: 1200.47 | G176: 1173.93 | H176: 1258.03 | I176: 1284.57 | J176: 1300.08 | K176: 1269.05 | L176: 1227 | M176: 99.68545
A177: 168 | B177: RELINFRA | C177: 47.15 | D177: 47.47 | E177: 43.98 | F177: 40.82 | G177: 37.33 | H177: 50.63 | I177: 54.12 | J177: 57.28 | K177: 50.95 | L177: 44.3 | M177: 511.18467
A178: 169 | B178: RPOWER | C178: 3.6 | D178: 3.63 | E178: 3.52 | F178: 3.43 | G178: 3.32 | H178: 3.72 | I178: 3.83 | J178: 3.92 | K178: 3.75 | L178: 3.55 | M178: 142.54685
A179: 170 | B179: SBILIFE | C179: 797.4 | D179: 788.82 | E179: 777.63 | F179: 757.87 | G179: 746.68 | H179: 808.58 | I179: 819.77 | J179: 839.53 | K179: 800 | L179: 769.05 | M179: 8.923
A180: 171 | B180: SRF | C180: 2655.4 | D180: 2665.50 | E180: 2631.00 | F180: 2606.60 | G180: 2572.10 | H180: 2689.90 | I180: 2724.40 | J180: 2748.80 | K180: 2700 | L180: 2641.1 | M180: 1.32346
A181: 172 | B181: SHREECEM | C181: 21189.55 | D181: 20995.85 | E181: 20696.70 | F181: 20203.85 | G181: 19904.70 | H181: 21488.70 | I181: 21787.85 | J181: 22280.70 | K181: 21295 | L181: 20503 | M181: 0.24595
A182: 173 | B182: SRTRANSFIN | C182: 986.35 | D182: 985.45 | E182: 955.90 | F182: 925.45 | G182: 895.90 | H182: 1015.90 | I182: 1045.45 | J182: 1075.90 | K182: 1015 | L182: 955 | M182: 103.31033
A183: 174 | B183: SIEMENS | C183: 1171.6 | D183: 1179.75 | E183: 1159.50 | F183: 1147.40 | G183: 1127.15 | H183: 1191.85 | I183: 1212.10 | J183: 1224.20 | K183: 1200 | L183: 1167.65 | M183: 2.83198
A184: 175 | B184: SBIN | C184: 341.3 | D184: 340.63 | E184: 338.07 | F184: 334.83 | G184: 332.27 | H184: 343.87 | I184: 346.43 | J184: 349.67 | K184: 343.2 | L184: 337.4 | M184: 198.57643
A185: 176 | B185: SAIL | C185: 43.15 | D185: 43.43 | E185: 42.57 | F185: 41.98 | G185: 41.12 | H185: 44.02 | I185: 44.88 | J185: 45.47 | K185: 44.3 | L185: 42.85 | M185: 189.9294
A186: 177 | B186: STRTECH | C186: 149.5 | D186: 149.48 | E186: 145.22 | F186: 140.93 | G186: 136.67 | H186: 153.77 | I186: 158.03 | J186: 162.32 | K186: 153.75 | L186: 145.2 | M186: 17.59542
A187: 178 | B187: SPARC | C187: 162.95 | D187: 161.72 | E187: 157.73 | F187: 152.52 | G187: 148.53 | H187: 166.93 | I187: 170.92 | J187: 176.13 | K187: 165.7 | L187: 156.5 | M187: 16.23174
A188: 179 | B188: SUNPHARMA | C188: 437.15 | D188: 434.13 | E188: 428.57 | F188: 419.98 | G188: 414.42 | H188: 442.72 | I188: 448.28 | J188: 456.87 | K188: 439.7 | L188: 425.55 | M188: 114.12685
A189: 180 | B189: SUNTV | C189: 477.45 | D189: 478.73 | E189: 469.77 | F189: 462.08 | G189: 453.12 | H189: 486.42 | I189: 495.38 | J189: 503.07 | K189: 487.7 | L189: 471.05 | M189: 18.62107
A190: 181 | B190: SYNGENE | C190: 309.4 | D190: 308.20 | E190: 302.30 | F190: 295.20 | G190: 289.30 | H190: 315.30 | I190: 321.20 | J190: 328.30 | K190: 314.1 | L190: 301.1 | M190: 1.75443
A191: 182 | B191: TVSMOTOR | C191: 363.8 | D191: 362.42 | E191: 357.83 | F191: 351.87 | G191: 347.28 | H191: 368.38 | I191: 372.97 | J191: 378.93 | K191: 367 | L191: 356.45 | M191: 18.16332
A192: 183 | B192: TATACHEM | C192: 598.1 | D192: 597.30 | E192: 593.30 | F192: 588.50 | G192: 584.50 | H192: 602.10 | I192: 606.10 | J192: 610.90 | K192: 601.3 | L192: 592.5 | M192: 3.89291
A193: 184 | B193: TCS | C193: 2127.9 | D193: 2118.48 | E193: 2101.97 | F193: 2076.03 | G193: 2059.52 | H193: 2144.42 | I193: 2160.93 | J193: 2186.87 | K193: 2135 | L193: 2092.55 | M193: 25.44464
A194: 185 | B194: TATAGLOBAL | C194: 251.6 | D194: 251.83 | E194: 249.07 | F194: 246.53 | G194: 243.77 | H194: 254.37 | I194: 257.13 | J194: 259.67 | K194: 254.6 | L194: 249.3 | M194: 15.09879
A195: 186 | B195: TATAMTRDVR | C195: 69.8 | D195: 70.62 | E195: 68.48 | F195: 67.17 | G195: 65.03 | H195: 71.93 | I195: 74.07 | J195: 75.38 | K195: 72.75 | L195: 69.3 | M195: 34.97569
A196: 187 | B196: TATAMOTORS | C196: 144.3 | D196: 146.85 | E196: 141.20 | F196: 138.10 | G196: 132.45 | H196: 149.95 | I196: 155.60 | J196: 158.70 | K196: 152.5 | L196: 143.75 | M196: 343.64032
A197: 188 | B197: TATAPOWER | C197: 61.55 | D197: 62.37 | E197: 60.43 | F197: 59.32 | G197: 57.38 | H197: 63.48 | I197: 65.42 | J197: 66.53 | K197: 64.3 | L197: 61.25 | M197: 105.79797
A198: 189 | B198: TATASTEEL | C198: 440.35 | D198: 443.53 | E198: 435.12 | F198: 429.88 | G198: 421.47 | H198: 448.77 | I198: 457.18 | J198: 462.42 | K198: 451.95 | L198: 438.3 | M198: 75.28091
A199: 190 | B199: TECHM | C199: 652.5 | D199: 650.55 | E199: 643.45 | F199: 634.40 | G199: 627.30 | H199: 659.60 | I199: 666.70 | J199: 675.75 | K199: 657.65 | L199: 641.5 | M199: 27.51865
A200: 191 | B200: NIACL | C200: 124.85 | D200: 125.23 | E200: 123.67 | F200: 122.48 | G200: 120.92 | H200: 126.42 | I200: 127.98 | J200: 129.17 | K200: 126.8 | L200: 124.05 | M200: 0.38904
A201: 192 | B201: RAMCOCEM | C201: 743.45 | D201: 746.57 | E201: 733.48 | F201: 723.52 | G201: 710.43 | H201: 756.53 | I201: 769.62 | J201: 779.58 | K201: 759.65 | L201: 736.6 | M201: 2.09194
A202: 193 | B202: TITAN | C202: 1090.45 | D202: 1091.92 | E202: 1083.13 | F202: 1075.82 | G202: 1067.03 | H202: 1099.23 | I202: 1108.02 | J202: 1115.33 | K202: 1100.7 | L202: 1084.6 | M202: 17.7022
A203: 194 | B203: TORNTPHARM | C203: 1624.2 | D203: 1610.53 | E203: 1586.07 | F203: 1547.93 | G203: 1523.47 | H203: 1648.67 | I203: 1673.13 | J203: 1711.27 | K203: 1635 | L203: 1572.4 | M203: 9.67919
A204: 195 | B204: TORNTPOWER | C204: 300.65 | D204: 302.35 | E204: 295.95 | F204: 291.25 | G204: 284.85 | H204: 307.05 | I204: 313.45 | J204: 318.15 | K204: 308.75 | L204: 297.65 | M204: 11.31486
A205: 196 | B205: UPL | C205: 604.35 | D205: 610.07 | E205: 595.68 | F205: 587.02 | G205: 572.63 | H205: 618.73 | I205: 633.12 | J205: 641.78 | K205: 624.45 | L205: 601.4 | M205: 40.49926
... 30 more rows

Sheet MidCap Intra
L5: Back To Main Page
A6: FOR INTRA DAY TRADING | K6: =Main!B10 -> 2019-07-26
A9: Sr.no | B9: Scrip | C9: CLOSE RATE | D9: Pivot Point | E9: Supports | H9: Resistances
C10: Point | E10: S1 | F10: S2 | G10: S3 | H10: R1 | I10: R2 | J10: R3 | K10: HIGH | L10: LOW | M10: Total Trade Quanity in Lakhs
A11: 1 | B11: 3MINDIA | C11: 21162.15 | D11: 21317.38 | E11: 20946.77 | F11: 20731.38 | G11: 20360.77 | H11: 21532.77 | I11: 21903.38 | J11: 22118.77 | K11: 21688 | L11: 21102 | M11: 0.0106
A12: 2 | B12: ABB | C12: 1402.8 | D12: 1394.27 | E12: 1374.63 | F12: 1346.47 | G12: 1326.83 | H12: 1422.43 | I12: 1442.07 | J12: 1470.23 | K12: 1413.9 | L12: 1366.1 | M12: 4.45967
A13: 3 | B13: ACC | C13: 1585.25 | D13: 1585.67 | E13: 1569.43 | F13: 1553.62 | G13: 1537.38 | H13: 1601.48 | I13: 1617.72 | J13: 1633.53 | K13: 1601.9 | L13: 1569.85 | M13: 9.06465
A14: 4 | B14: AIAENG | C14: 1756.55 | D14: 1742.45 | E14: 1723.90 | F14: 1691.25 | G14: 1672.70 | H14: 1775.10 | I14: 1793.65 | J14: 1826.30 | K14: 1761 | L14: 1709.8 | M14: 0.16165
A15: 5 | B15: APLAPOLLO | C15: 1466.45 | D15: 1485.03 | E15: 1440.17 | F15: 1413.88 | G15: 1369.02 | H15: 1511.32 | I15: 1556.18 | J15: 1582.47 | K15: 1529.9 | L15: 1458.75 | M15: 0.10773
A16: 6 | B16: AUBANK | C16: 634.1 | D16: 638.03 | E16: 624.07 | F16: 614.03 | G16: 600.07 | H16: 648.07 | I16: 662.03 | J16: 672.07 | K16: 652 | L16: 628 | M16: 3.28573
A17: 7 | B17: AAVAS | C17: 1469.5 | D17: 1470.88 | E17: 1453.77 | F17: 1438.03 | G17: 1420.92 | H17: 1486.62 | I17: 1503.73 | J17: 1519.47 | K17: 1488 | L17: 1455.15 | M17: 0.53725
A18: 8 | B18: ADANIGREEN | C18: 48.8 | D18: 48.85 | E18: 48.30 | F18: 47.80 | G18: 47.25 | H18: 49.35 | I18: 49.90 | J18: 50.40 | K18: 49.4 | L18: 48.35 | M18: 6.77095
A19: 9 | B19: ADANIPORTS | C19: 380.35 | D19: 380.97 | E19: 376.38 | F19: 372.42 | G19: 367.83 | H19: 384.93 | I19: 389.52 | J19: 393.48 | K19: 385.55 | L19: 377 | M19: 29.9897
A20: 10 | B20: ADANIPOWER | C20: 62.1 | D20: 62.03 | E20: 60.07 | F20: 58.03 | G20: 56.07 | H20: 64.07 | I20: 66.03 | J20: 68.07 | K20: 64 | L20: 60 | M20: 148.90472
A21: 11 | B21: ADANITRANS | C21: 215.4 | D21: 212.87 | E21: 208.73 | F21: 202.07 | G21: 197.93 | H21: 219.53 | I21: 223.67 | J21: 230.33 | K21: 217 | L21: 206.2 | M21: 0.73508
A22: 12 | B22: ABCAPITAL | C22: 85.9 | D22: 85.30 | E22: 84.25 | F22: 82.60 | G22: 81.55 | H22: 86.95 | I22: 88.00 | J22: 89.65 | K22: 86.35 | L22: 83.65 | M22: 10.55567
A23: 13 | B23: ABFRL | C23: 204.95 | D23: 204.55 | E23: 202.40 | F23: 199.85 | G23: 197.70 | H23: 207.10 | I23: 209.25 | J23: 211.80 | K23: 206.7 | L23: 202 | M23: 2.60515
A24: 14 | B24: ADVENZYMES | C24: 155.65 | D24: 156.23 | E24: 154.47 | F24: 153.28 | G24: 151.52 | H24: 157.42 | I24: 159.18 | J24: 160.37 | K24: 158 | L24: 155.05 | M24: 0.18777
A25: 15 | B25: AEGISCHEM | C25: 200.4 | D25: 200.27 | E25: 197.58 | F25: 194.77 | G25: 192.08 | H25: 203.08 | I25: 205.77 | J25: 208.58 | K25: 202.95 | L25: 197.45 | M25: 0.53132
A26: 16 | B26: AJANTPHARM | C26: 884.05 | D26: 886.35 | E26: 864.70 | F26: 845.35 | G26: 823.70 | H26: 905.70 | I26: 927.35 | J26: 946.70 | K26: 908 | L26: 867 | M26: 2.42767
A27: 17 | B27: AKZOINDIA | C27: 1730.65 | D27: 1727.63 | E27: 1715.37 | F27: 1700.08 | G27: 1687.82 | H27: 1742.92 | I27: 1755.18 | J27: 1770.47 | K27: 1739.9 | L27: 1712.35 | M27: 0.02021
A28: 18 | B28: APLLTD | C28: 536.75 | D28: 534.13 | E28: 525.32 | F28: 513.88 | G28: 505.07 | H28: 545.57 | I28: 554.38 | J28: 565.82 | K28: 542.95 | L28: 522.7 | M28: 0.20672
A29: 19 | B29: ALKEM | C29: 1815.15 | D29: 1807.08 | E29: 1789.37 | F29: 1763.58 | G29: 1745.87 | H29: 1832.87 | I29: 1850.58 | J29: 1876.37 | K29: 1824.8 | L29: 1781.3 | M29: 0.20147
A30: 20 | B30: ALBK | C30: 40.35 | D30: 40.15 | E30: 39.40 | F30: 38.45 | G30: 37.70 | H30: 41.10 | I30: 41.85 | J30: 42.80 | K30: 40.9 | L30: 39.2 | M30: 25.58919
A31: 21 | B31: ALLCARGO | C31: 100.15 | D31: 99.72 | E31: 98.53 | F31: 96.92 | G31: 95.73 | H31: 101.33 | I31: 102.52 | J31: 104.13 | K31: 100.9 | L31: 98.1 | M31: 0.56732
A32: 22 | B32: AMARAJABAT | C32: 635.95 | D32: 634.77 | E32: 628.03 | F32: 620.12 | G32: 613.38 | H32: 642.68 | I32: 649.42 | J32: 657.33 | K32: 641.5 | L32: 626.85 | M32: 3.30436
A33: 23 | B33: AMBUJACEM | C33: 214.05 | D33: 215.02 | E33: 210.03 | F33: 206.02 | G33: 201.03 | H33: 219.03 | I33: 224.02 | J33: 228.03 | K33: 220 | L33: 211 | M33: 41.48175
A34: 24 | B34: ANDHRABANK | C34: 21.8 | D34: 21.90 | E34: 21.55 | F34: 21.30 | G34: 20.95 | H34: 22.15 | I34: 22.50 | J34: 22.75 | K34: 22.25 | L34: 21.65 | M34: 4.9877
A35: 25 | B35: APOLLOHOSP | C35: 1343.6 | D35: 1335.53 | E35: 1322.07 | F35: 1300.53 | G35: 1287.07 | H35: 1357.07 | I35: 1370.53 | J35: 1392.07 | K35: 1349 | L35: 1314 | M35: 3.91683
A36: 26 | B36: APOLLOTYRE | C36: 161.35 | D36: 162.48 | E36: 159.57 | F36: 157.78 | G36: 154.87 | H36: 164.27 | I36: 167.18 | J36: 168.97 | K36: 165.4 | L36: 160.7 | M36: 25.89689
A37: 27 | B37: ASHOKLEY | C37: 72.3 | D37: 72.35 | E37: 71.50 | F37: 70.70 | G37: 69.85 | H37: 73.15 | I37: 74.00 | J37: 74.80 | K37: 73.2 | L37: 71.55 | M37: 175.74892
A38: 28 | B38: ASHOKA | C38: 120.1 | D38: 119.40 | E38: 117.70 | F38: 115.30 | G38: 113.60 | H38: 121.80 | I38: 123.50 | J38: 125.90 | K38: 121.1 | L38: 117 | M38: 2.6263
A39: 29 | B39: ASIANPAINT | C39: 1495.85 | D39: 1486.25 | E39: 1468.65 | F39: 1441.45 | G39: 1423.85 | H39: 1513.45 | I39: 1531.05 | J39: 1558.25 | K39: 1503.85 | L39: 1459.05 | M39: 41.94809
A40: 30 | B40: ASTERDM | C40: 123 | D40: 122.93 | E40: 121.67 | F40: 120.33 | G40: 119.07 | H40: 124.27 | I40: 125.53 | J40: 126.87 | K40: 124.2 | L40: 121.6 | M40: 0.69844
A41: 31 | B41: ASTRAZEN | C41: 1852.1 | D41: 1857.72 | E41: 1835.38 | F41: 1818.67 | G41: 1796.33 | H41: 1874.43 | I41: 1896.77 | J41: 1913.48 | K41: 1880.05 | L41: 1841 | M41: 0.11268
A42: 32 | B42: ASTRAL | C42: 1204.8 | D42: 1210.40 | E42: 1180.70 | F42: 1156.60 | G42: 1126.90 | H42: 1234.50 | I42: 1264.20 | J42: 1288.30 | K42: 1240.1 | L42: 1186.3 | M42: 0.32389
A43: 33 | B43: ATUL | C43: 3678.3 | D43: 3654.78 | E43: 3609.57 | F43: 3540.83 | G43: 3495.62 | H43: 3723.52 | I43: 3768.73 | J43: 3837.47 | K43: 3700 | L43: 3586.05 | M43: 0.08024
A44: 34 | B44: AUROPHARMA | C44: 553.9 | D44: 555.42 | E44: 548.98 | F44: 544.07 | G44: 537.63 | H44: 560.33 | I44: 566.77 | J44: 571.68 | K44: 561.85 | L44: 550.5 | M44: 18.89831
A45: 35 | B45: AVANTIFEED | C45: 319.1 | D45: 320.82 | E45: 315.03 | F45: 310.97 | G45: 305.18 | H45: 324.88 | I45: 330.67 | J45: 334.73 | K45: 326.6 | L45: 316.75 | M45: 2.08314
A46: 36 | B46: DMART | C46: 1420.15 | D46: 1423.32 | E46: 1397.83 | F46: 1375.52 | G46: 1350.03 | H46: 1445.63 | I46: 1471.12 | J46: 1493.43 | K46: 1448.8 | L46: 1401 | M46: 3.31496
A47: 37 | B47: AXISBANK | C47: 723.15 | D47: 718.58 | E47: 710.92 | F47: 698.68 | G47: 691.02 | H47: 730.82 | I47: 738.48 | J47: 750.72 | K47: 726.25 | L47: 706.35 | M47: 99.72204
A48: 38 | B48: BASF | C48: 1076.7 | D48: 1081.53 | E48: 1053.17 | F48: 1029.63 | G48: 1001.27 | H48: 1105.07 | I48: 1133.43 | J48: 1156.97 | K48: 1109.9 | L48: 1058 | M48: 0.0732
A49: 39 | B49: BEML | C49: 888.95 | D49: 894.03 | E49: 880.12 | F49: 871.28 | G49: 857.37 | H49: 902.87 | I49: 916.78 | J49: 925.62 | K49: 907.95 | L49: 885.2 | M49: 3.7206
A50: 40 | B50: BSE | C50: 559.8 | D50: 557.42 | E50: 552.48 | F50: 545.17 | G50: 540.23 | H50: 564.73 | I50: 569.67 | J50: 576.98 | K50: 562.35 | L50: 550.1 | M50: 3.34665
A51: 41 | B51: BAJAJ-AUTO | C51: 2547 | D51: 2542.63 | E51: 2517.37 | F51: 2487.73 | G51: 2462.47 | H51: 2572.27 | I51: 2597.53 | J51: 2627.17 | K51: 2567.9 | L51: 2513 | M51: 5.49808
A52: 42 | B52: BAJAJCON | C52: 289.3 | D52: 286.90 | E52: 280.80 | F52: 272.30 | G52: 266.20 | H52: 295.40 | I52: 301.50 | J52: 310.00 | K52: 293 | L52: 278.4 | M52: 1.15786
A53: 43 | B53: BAJAJELEC | C53: 408.95 | D53: 409.20 | E53: 400.85 | F53: 392.75 | G53: 384.40 | H53: 417.30 | I53: 425.65 | J53: 433.75 | K53: 417.55 | L53: 401.1 | M53: 1.08842
A54: 44 | B54: BAJFINANCE | C54: 3046.5 | D54: 3095.37 | E54: 2947.33 | F54: 2848.17 | G54: 2700.13 | H54: 3194.53 | I54: 3342.57 | J54: 3441.73 | K54: 3243.4 | L54: 2996.2 | M54: 102.90577
A55: 45 | B55: BAJAJFINSV | C55: 6782.3 | D55: 6904.10 | E55: 6638.20 | F55: 6494.10 | G55: 6228.20 | H55: 7048.20 | I55: 7314.10 | J55: 7458.20 | K55: 7170 | L55: 6760 | M55: 10.95745
A56: 46 | B56: BAJAJHLDNG | C56: 3372.6 | D56: 3357.07 | E56: 3314.13 | F56: 3255.67 | G56: 3212.73 | H56: 3415.53 | I56: 3458.47 | J56: 3516.93 | K56: 3400 | L56: 3298.6 | M56: 0.34631
A57: 47 | B57: BALKRISIND | C57: 725.15 | D57: 721.15 | E57: 709.30 | F57: 693.45 | G57: 681.60 | H57: 737.00 | I57: 748.85 | J57: 764.70 | K57: 733 | L57: 705.3 | M57: 3.75145
A58: 48 | B58: BALMLAWRIE | C58: 172.85 | D58: 173.38 | E58: 171.77 | F58: 170.68 | G58: 169.07 | H58: 174.47 | I58: 176.08 | J58: 177.17 | K58: 175 | L58: 172.3 | M58: 0.39368
A59: 49 | B59: BALRAMCHIN | C59: 151.15 | D59: 151.67 | E59: 147.88 | F59: 144.62 | G59: 140.83 | H59: 154.93 | I59: 158.72 | J59: 161.98 | K59: 155.45 | L59: 148.4 | M59: 14.10656
A60: 50 | B60: BANDHANBNK | C60: 461.4 | D60: 457.13 | E60: 449.37 | F60: 437.33 | G60: 429.57 | H60: 469.17 | I60: 476.93 | J60: 488.97 | K60: 464.9 | L60: 445.1 | M60: 18.02292
A61: 51 | B61: BANKBARODA | C61: 109.55 | D61: 109.65 | E61: 108.20 | F61: 106.85 | G61: 105.40 | H61: 111.00 | I61: 112.45 | J61: 113.80 | K61: 111.1 | L61: 108.3 | M61: 189.73739
A62: 52 | B62: BANKINDIA | C62: 75.4 | D62: 75.77 | E62: 74.03 | F62: 72.67 | G62: 70.93 | H62: 77.13 | I62: 78.87 | J62: 80.23 | K62: 77.5 | L62: 74.4 | M62: 74.57025
A63: 53 | B63: MAHABANK | C63: 14.25 | D63: 14.33 | E63: 14.12 | F63: 13.98 | G63: 13.77 | H63: 14.47 | I63: 14.68 | J63: 14.82 | K63: 14.55 | L63: 14.2 | M63: 2.18228
A64: 54 | B64: BATAINDIA | C64: 1301.3 | D64: 1302.85 | E64: 1291.10 | F64: 1280.90 | G64: 1269.15 | H64: 1313.05 | I64: 1324.80 | J64: 1335.00 | K64: 1314.6 | L64: 1292.65 | M64: 5.7169
A65: 55 | B65: BERGEPAINT | C65: 327.05 | D65: 327.25 | E65: 323.80 | F65: 320.55 | G65: 317.10 | H65: 330.50 | I65: 333.95 | J65: 337.20 | K65: 330.7 | L65: 324 | M65: 22.37357
A66: 56 | B66: BDL | C66: 294.45 | D66: 296.45 | E66: 289.60 | F66: 284.75 | G66: 277.90 | H66: 301.30 | I66: 308.15 | J66: 313.00 | K66: 303.3 | L66: 291.6 | M66: 0.14226
A67: 57 | B67: BEL | C67: 99.15 | D67: 98.87 | E67: 97.48 | F67: 95.82 | G67: 94.43 | H67: 100.53 | I67: 101.92 | J67: 103.58 | K67: 100.25 | L67: 97.2 | M67: 135.32297
A68: 58 | B68: BHARATFORG | C68: 428.25 | D68: 431.02 | E68: 424.03 | F68: 419.82 | G68: 412.83 | H68: 435.23 | I68: 442.22 | J68: 446.43 | K68: 438 | L68: 426.8 | M68: 9.54127
A69: 59 | B69: BHEL | C69: 61.15 | D69: 61.38 | E69: 60.37 | F69: 59.58 | G69: 58.57 | H69: 62.17 | I69: 63.18 | J69: 63.97 | K69: 62.4 | L69: 60.6 | M69: 83.19563
A70: 60 | B70: BPCL | C70: 340.3 | D70: 343.73 | E70: 335.97 | F70: 331.63 | G70: 323.87 | H70: 348.07 | I70: 355.83 | J70: 360.17 | K70: 351.5 | L70: 339.4 | M70: 35.1565
A71: 61 | B71: BHARTIARTL | C71: 339 | D71: 339.00 | E71: 334.55 | F71: 330.10 | G71: 325.65 | H71: 343.45 | I71: 347.90 | J71: 352.35 | K71: 343.45 | L71: 334.55 | M71: 74.6011
A72: 62 | B72: INFRATEL | C72: 261.9 | D72: 267.02 | E72: 254.18 | F72: 246.47 | G72: 233.63 | H72: 274.73 | I72: 287.57 | J72: 295.28 | K72: 279.85 | L72: 259.3 | M72: 84.54229
A73: 63 | B73: BIOCON | C73: 238.6 | D73: 237.17 | E73: 234.43 | F73: 230.27 | G73: 227.53 | H73: 241.33 | I73: 244.07 | J73: 248.23 | K73: 239.9 | L73: 233 | M73: 31.09298
A74: 64 | B74: BIRLACORPN | C74: 576.75 | D74: 580.95 | E74: 570.80 | F74: 564.85 | G74: 554.70 | H74: 586.90 | I74: 597.05 | J74: 603.00 | K74: 591.1 | L74: 575 | M74: 0.41285
A75: 65 | B75: BLISSGVS | C75: 157.25 | D75: 157.45 | E75: 155.30 | F75: 153.35 | G75: 151.20 | H75: 159.40 | I75: 161.55 | J75: 163.50 | K75: 159.6 | L75: 155.5 | M75: 19.04902
A76: 66 | B76: BLUEDART | C76: 2427.35 | D76: 2425.45 | E76: 2400.90 | F76: 2374.45 | G76: 2349.90 | H76: 2451.90 | I76: 2476.45 | J76: 2502.90 | K76: 2450 | L76: 2399 | M76: 0.02829
A77: 67 | B77: BLUESTARCO | C77: 740.1 | D77: 744.05 | E77: 734.10 | F77: 728.10 | G77: 718.15 | H77: 750.05 | I77: 760.00 | J77: 766.00 | K77: 754 | L77: 738.05 | M77: 0.15968
A78: 68 | B78: BBTC | C78: 886.85 | D78: 890.47 | E78: 874.48 | F78: 862.12 | G78: 846.13 | H78: 902.83 | I78: 918.82 | J78: 931.18 | K78: 906.45 | L78: 878.1 | M78: 0.54701
A79: 69 | B79: BOMDYEING | C79: 84.8 | D79: 85.23 | E79: 83.97 | F79: 83.13 | G79: 81.87 | H79: 86.07 | I79: 87.33 | J79: 88.17 | K79: 86.5 | L79: 84.4 | M79: 4.96648
A80: 70 | B80: BOSCHLTD | C80: 15002.45 | D80: 14897.13 | E80: 14720.32 | F80: 14438.18 | G80: 14261.37 | H80: 15179.27 | I80: 15356.08 | J80: 15638.22 | K80: 15073.95 | L80: 14615 | M80: 0.17367
A81: 71 | B81: BRIGADE | C81: 279.9 | D81: 279.82 | E81: 274.63 | F81: 269.37 | G81: 264.18 | H81: 285.08 | I81: 290.27 | J81: 295.53 | K81: 285 | L81: 274.55 | M81: 1.62169
A82: 72 | B82: BRITANNIA | C82: 2671.55 | D82: 2662.55 | E82: 2640.10 | F82: 2608.65 | G82: 2586.20 | H82: 2694.00 | I82: 2716.45 | J82: 2747.90 | K82: 2685 | L82: 2631.1 | M82: 7.71878
A83: 73 | B83: CARERATING | C83: 757.1 | D83: 772.17 | E83: 715.53 | F83: 673.97 | G83: 617.33 | H83: 813.73 | I83: 870.37 | J83: 911.93 | K83: 828.8 | L83: 730.6 | M83: 0.50364
A84: 74 | B84: CCL | C84: 244.75 | D84: 244.12 | E84: 240.73 | F84: 236.72 | G84: 233.33 | H84: 248.13 | I84: 251.52 | J84: 255.53 | K84: 247.5 | L84: 240.1 | M84: 1.14632
A85: 75 | B85: CESC | C85: 760.25 | D85: 758.93 | E85: 754.37 | F85: 748.48 | G85: 743.92 | H85: 764.82 | I85: 769.38 | J85: 775.27 | K85: 763.5 | L85: 753.05 | M85: 1.61568
A86: 76 | B86: CGPOWER | C86: 20.5 | D86: 20.33 | E86: 19.72 | F86: 18.93 | G86: 18.32 | H86: 21.12 | I86: 21.73 | J86: 22.52 | K86: 20.95 | L86: 19.55 | M86: 15.65341
A87: 77 | B87: CRISIL | C87: 1361.85 | D87: 1363.97 | E87: 1351.88 | F87: 1341.92 | G87: 1329.83 | H87: 1373.93 | I87: 1386.02 | J87: 1395.98 | K87: 1376.05 | L87: 1354 | M87: 0.02012
A88: 78 | B88: CADILAHC | C88: 230.2 | D88: 230.63 | E88: 226.07 | F88: 221.93 | G88: 217.37 | H88: 234.77 | I88: 239.33 | J88: 243.47 | K88: 235.2 | L88: 226.5 | M88: 14.60683
A89: 79 | B89: CANFINHOME | C89: 384.05 | D89: 387.48 | E89: 379.07 | F89: 374.08 | G89: 365.67 | H89: 392.47 | I89: 400.88 | J89: 405.87 | K89: 395.9 | L89: 382.5 | M89: 4.52668
A90: 80 | B90: CANBK | C90: 239.25 | D90: 241.63 | E90: 233.27 | F90: 227.28 | G90: 218.92 | H90: 247.62 | I90: 255.98 | J90: 261.97 | K90: 250 | L90: 235.65 | M90: 120.27668
A91: 81 | B91: CAPLIPOINT | C91: 425.9 | D91: 415.17 | E91: 393.78 | F91: 361.67 | G91: 340.28 | H91: 447.28 | I91: 468.67 | J91: 500.78 | K91: 436.55 | L91: 383.05 | M91: 1.9691
A92: 82 | B92: CARBORUNIV | C92: 334.85 | D92: 336.05 | E92: 329.10 | F92: 323.35 | G92: 316.40 | H92: 341.80 | I92: 348.75 | J92: 354.50 | K92: 343 | L92: 330.3 | M92: 0.21157
A93: 83 | B93: CASTROLIND | C93: 124.8 | D93: 124.50 | E93: 122.30 | F93: 119.80 | G93: 117.60 | H93: 127.00 | I93: 129.20 | J93: 131.70 | K93: 126.7 | L93: 122 | M93: 10.75232
A94: 84 | B94: CEATLTD | C94: 856.9 | D94: 859.82 | E94: 847.68 | F94: 838.47 | G94: 826.33 | H94: 869.03 | I94: 881.17 | J94: 890.38 | K94: 871.95 | L94: 850.6 | M94: 1.23154
A95: 85 | B95: CENTRALBK | C95: 18.35 | D95: 18.58 | E95: 16.97 | F95: 15.58 | G95: 13.97 | H95: 19.97 | I95: 21.58 | J95: 22.97 | K95: 20.2 | L95: 17.2 | M95: 10.43748
A96: 86 | B96: CDSL | C96: 196 | D96: 196.53 | E96: 194.47 | F96: 192.93 | G96: 190.87 | H96: 198.07 | I96: 200.13 | J96: 201.67 | K96: 198.6 | L96: 195 | M96: 1.40566
A97: 87 | B97: CENTURYPLY | C97: 128.25 | D97: 128.53 | E97: 125.77 | F97: 123.28 | G97: 120.52 | H97: 131.02 | I97: 133.78 | J97: 136.27 | K97: 131.3 | L97: 126.05 | M97: 0.75512
A98: 88 | B98: CERA | C98: 2548.35 | D98: 2556.07 | E98: 2517.28 | F98: 2486.22 | G98: 2447.43 | H98: 2587.13 | I98: 2625.92 | J98: 2656.98 | K98: 2594.85 | L98: 2525 | M98: 0.03405
A99: 89 | B99: CHAMBLFERT | C99: 154.35 | D99: 157.08 | E99: 148.97 | F99: 143.58 | G99: 135.47 | H99: 162.47 | I99: 170.58 | J99: 175.97 | K99: 165.2 | L99: 151.7 | M99: 2.0838
A100: 90 | B100: CHENNPETRO | C100: 194.7 | D100: 194.72 | E100: 193.53 | F100: 192.37 | G100: 191.18 | H100: 195.88 | I100: 197.07 | J100: 198.23 | K100: 195.9 | L100: 193.55 | M100: 0.71608
A101: 91 | B101: CHOLAHLDNG | C101: 482.45 | D101: 484.73 | E101: 474.22 | F101: 465.98 | G101: 455.47 | H101: 492.97 | I101: 503.48 | J101: 511.72 | K101: 495.25 | L101: 476.5 | M101: 0.25586
A102: 92 | B102: CHOLAFIN | C102: 249.05 | D102: 247.50 | E102: 241.40 | F102: 233.75 | G102: 227.65 | H102: 255.15 | I102: 261.25 | J102: 268.90 | K102: 253.6 | L102: 239.85 | M102: 15.50083
A103: 93 | B103: CIPLA | C103: 536.65 | D103: 531.62 | E103: 524.03 | F103: 511.42 | G103: 503.83 | H103: 544.23 | I103: 551.82 | J103: 564.43 | K103: 539.2 | L103: 519 | M103: 31.8351
A104: 94 | B104: CUB | C104: 196.9 | D104: 197.68 | E104: 194.87 | F104: 192.83 | G104: 190.02 | H104: 199.72 | I104: 202.53 | J104: 204.57 | K104: 200.5 | L104: 195.65 | M104: 3.45224
A105: 95 | B105: COALINDIA | C105: 209.05 | D105: 211.60 | E105: 205.55 | F105: 202.05 | G105: 196.00 | H105: 215.10 | I105: 221.15 | J105: 224.65 | K105: 217.65 | L105: 208.1 | M105: 192.51346
A106: 96 | B106: COCHINSHIP | C106: 358.15 | D106: 358.75 | E106: 354.55 | F106: 350.95 | G106: 346.75 | H106: 362.35 | I106: 366.55 | J106: 370.15 | K106: 362.95 | L106: 355.15 | M106: 0.24777
A107: 97 | B107: COFFEEDAY | C107: 194.85 | D107: 195.63 | E107: 193.47 | F107: 192.08 | G107: 189.92 | H107: 197.02 | I107: 199.18 | J107: 200.57 | K107: 197.8 | L107: 194.25 | M107: 0.95507
A108: 98 | B108: COLPAL | C108: 1143.35 | D108: 1148.87 | E108: 1133.43 | F108: 1123.52 | G108: 1108.08 | H108: 1158.78 | I108: 1174.22 | J108: 1184.13 | K108: 1164.3 | L108: 1138.95 | M108: 5.08201
A109: 99 | B109: CONCOR | C109: 528 | D109: 529.47 | E109: 523.43 | F109: 518.87 | G109: 512.83 | H109: 534.03 | I109: 540.07 | J109: 544.63 | K109: 535.5 | L109: 524.9 | M109: 17.24285
A110: 100 | B110: COROMANDEL | C110: 383.85 | D110: 385.23 | E110: 380.82 | F110: 377.78 | G110: 373.37 | H110: 388.27 | I110: 392.68 | J110: 395.72 | K110: 389.65 | L110: 382.2 | M110: 0.71589
A111: 101 | B111: CORPBANK | C111: 24.15 | D111: 24.08 | E111: 23.77 | F111: 23.38 | G111: 23.07 | H111: 24.47 | I111: 24.78 | J111: 25.17 | K111: 24.4 | L111: 23.7 | M111: 1.19808
A112: 102 | B112: COX&KINGS | C112: 14.1 | D112: 14.10 | E112: 14.10 | F112: 14.10 | G112: 14.10 | H112: 14.10 | I112: 14.10 | J112: 14.10 | K112: 14.1 | L112: 14.1 | M112: 0.31923
A113: 103 | B113: CREDITACC | C113: 534.95 | D113: 532.17 | E113: 528.33 | F113: 521.72 | G113: 517.88 | H113: 538.78 | I113: 542.62 | J113: 549.23 | K113: 536 | L113: 525.55 | M113: 1.04838
A114: 104 | B114: CROMPTON | C114: 225.25 | D114: 226.57 | E114: 221.68 | F114: 218.12 | G114: 213.23 | H114: 230.13 | I114: 235.02 | J114: 238.58 | K114: 231.45 | L114: 223 | M114: 7.83221
A115: 105 | B115: CUMMINSIND | C115: 750.7 | D115: 748.90 | E115: 732.80 | F115: 714.90 | G115: 698.80 | H115: 766.80 | I115: 782.90 | J115: 800.80 | K115: 765 | L115: 731 | M115: 8.12365
A116: 106 | B116: CYIENT | C116: 486.95 | D116: 487.78 | E116: 480.67 | F116: 474.38 | G116: 467.27 | H116: 494.07 | I116: 501.18 | J116: 507.47 | K116: 494.9 | L116: 481.5 | M116: 2.02289
A117: 107 | B117: DBCORP | C117: 164.15 | D117: 165.27 | E117: 161.88 | F117: 159.62 | G117: 156.23 | H117: 167.53 | I117: 170.92 | J117: 173.18 | K117: 168.65 | L117: 163 | M117: 0.1449
A118: 108 | B118: DCBBANK | C118: 195.05 | D118: 194.43 | E118: 191.37 | F118: 187.68 | G118: 184.62 | H118: 198.12 | I118: 201.18 | J118: 204.87 | K118: 197.5 | L118: 190.75 | M118: 7.51271
A119: 109 | B119: DCMSHRIRAM | C119: 439.1 | D119: 445.85 | E119: 428.25 | F119: 417.40 | G119: 399.80 | H119: 456.70 | I119: 474.30 | J119: 485.15 | K119: 463.45 | L119: 435 | M119: 1.73036
A120: 110 | B120: DLF | C120: 176.35 | D120: 177.00 | E120: 174.15 | F120: 171.95 | G120: 169.10 | H120: 179.20 | I120: 182.05 | J120: 184.25 | K120: 179.85 | L120: 174.8 | M120: 72.73037
A121: 111 | B121: DABUR | C121: 422.85 | D121: 422.75 | E121: 419.15 | F121: 415.45 | G121: 411.85 | H121: 426.45 | I121: 430.05 | J121: 433.75 | K121: 426.35 | L121: 419.05 | M121: 20.74309
A122: 112 | B122: DEEPAKFERT | C122: 87.95 | D122: 88.58 | E122: 86.47 | F122: 84.98 | G122: 82.87 | H122: 90.07 | I122: 92.18 | J122: 93.67 | K122: 90.7 | L122: 87.1 | M122: 1.59746
A123: 113 | B123: DEEPAKNTR | C123: 278.1 | D123: 275.65 | E123: 269.20 | F123: 260.30 | G123: 253.85 | H123: 284.55 | I123: 291.00 | J123: 299.90 | K123: 282.1 | L123: 266.75 | M123: 1.30442
A124: 114 | B124: DELTACORP | C124: 146.3 | D124: 147.35 | E124: 144.70 | F124: 143.10 | G124: 140.45 | H124: 148.95 | I124: 151.60 | J124: 153.20 | K124: 150 | L124: 145.75 | M124: 5.73903
A125: 115 | B125: DHFL | C125: 55.2 | D125: 55.48 | E125: 53.17 | F125: 51.13 | G125: 48.82 | H125: 57.52 | I125: 59.83 | J125: 61.87 | K125: 57.8 | L125: 53.45 | M125: 373.78917
A126: 116 | B126: DBL | C126: 420 | D126: 420.67 | E126: 413.33 | F126: 406.67 | G126: 399.33 | H126: 427.33 | I126: 434.67 | J126: 441.33 | K126: 428 | L126: 414 | M126: 1.20805
A127: 117 | B127: DISHTV | C127: 32.25 | D127: 32.27 | E127: 31.78 | F127: 31.32 | G127: 30.83 | H127: 32.73 | I127: 33.22 | J127: 33.68 | K127: 32.75 | L127: 31.8 | M127: 168.27494
A128: 118 | B128: DCAL | C128: 210.5 | D128: 209.67 | E128: 206.33 | F128: 202.17 | G128: 198.83 | H128: 213.83 | I128: 217.17 | J128: 221.33 | K128: 213 | L128: 205.5 | M128: 0.60079
A129: 119 | B129: DIVISLAB | C129: 1641.75 | D129: 1631.57 | E129: 1613.18 | F129: 1584.62 | G129: 1566.23 | H129: 1660.13 | I129: 1678.52 | J129: 1707.08 | K129: 1649.95 | L129: 1603 | M129: 3.8213
A130: 120 | B130: DIXON | C130: 2195 | D130: 2202.20 | E130: 2178.30 | F130: 2161.60 | G130: 2137.70 | H130: 2218.90 | I130: 2242.80 | J130: 2259.50 | K130: 2226.1 | L130: 2185.5 | M130: 2.80346
A131: 121 | B131: LALPATHLAB | C131: 1148 | D131: 1131.00 | E131: 1102.00 | F131: 1056.00 | G131: 1027.00 | H131: 1177.00 | I131: 1206.00 | J131: 1252.00 | K131: 1160 | L131: 1085 | M131: 0.58112
A132: 122 | B132: DRREDDY | C132: 2654.1 | D132: 2642.45 | E132: 2618.90 | F132: 2583.70 | G132: 2560.15 | H132: 2677.65 | I132: 2701.20 | J132: 2736.40 | K132: 2666 | L132: 2607.25 | M132: 5.16388
A133: 123 | B133: EIDPARRY | C133: 162.25 | D133: 163.18 | E133: 161.07 | F133: 159.88 | G133: 157.77 | H133: 164.37 | I133: 166.48 | J133: 167.67 | K133: 165.3 | L133: 162 | M133: 0.32113
A134: 124 | B134: EIHOTEL | C134: 163.5 | D134: 163.45 | E134: 161.90 | F134: 160.30 | G134: 158.75 | H134: 165.05 | I134: 166.60 | J134: 168.20 | K134: 165 | L134: 161.85 | M134: 0.49669
A135: 125 | B135: EDELWEISS | C135: 149.2 | D135: 148.20 | E135: 145.55 | F135: 141.90 | G135: 139.25 | H135: 151.85 | I135: 154.50 | J135: 158.15 | K135: 150.85 | L135: 144.55 | M135: 11.37388
A136: 126 | B136: EICHERMOT | C136: 16436.85 | D136: 16448.15 | E136: 16176.45 | F136: 15916.05 | G136: 15644.35 | H136: 16708.55 | I136: 16980.25 | J136: 17240.65 | K136: 16719.85 | L136: 16187.75 | M136: 2.05968
A137: 127 | B137: ELGIEQUIP | C137: 256.95 | D137: 257.92 | E137: 254.08 | F137: 251.22 | G137: 247.38 | H137: 260.78 | I137: 264.62 | J137: 267.48 | K137: 261.75 | L137: 255.05 | M137: 0.2275
A138: 128 | B138: EMAMILTD | C138: 319.25 | D138: 320.12 | E138: 315.23 | F138: 311.22 | G138: 306.33 | H138: 324.13 | I138: 329.02 | J138: 333.03 | K138: 325 | L138: 316.1 | M138: 2.67344
A139: 129 | B139: ENDURANCE | C139: 931.15 | D139: 932.02 | E139: 906.68 | F139: 882.22 | G139: 856.88 | H139: 956.48 | I139: 981.82 | J139: 1006.28 | K139: 957.35 | L139: 907.55 | M139: 0.5415
A140: 130 | B140: ENGINERSIN | C140: 104.1 | D140: 104.32 | E140: 103.13 | F140: 102.17 | G140: 100.98 | H140: 105.28 | I140: 106.47 | J140: 107.43 | K140: 105.5 | L140: 103.35 | M140: 11.61003
A141: 131 | B141: EQUITAS | C141: 112.65 | D141: 113.12 | E141: 111.13 | F141: 109.62 | G141: 107.63 | H141: 114.63 | I141: 116.62 | J141: 118.13 | K141: 115.1 | L141: 111.6 | M141: 12.79842
A142: 132 | B142: ERIS | C142: 397.9 | D142: 400.93 | E142: 391.97 | F142: 386.03 | G142: 377.07 | H142: 406.87 | I142: 415.83 | J142: 421.77 | K142: 409.9 | L142: 395 | M142: 0.26534
A143: 133 | B143: ESCORTS | C143: 470.2 | D143: 476.03 | E143: 462.22 | F143: 454.23 | G143: 440.42 | H143: 484.02 | I143: 497.83 | J143: 505.82 | K143: 489.85 | L143: 468.05 | M143: 23.47765
A144: 134 | B144: ESSELPACK | C144: 132.55 | D144: 132.53 | E144: 132.22 | F144: 131.88 | G144: 131.57 | H144: 132.87 | I144: 133.18 | J144: 133.52 | K144: 132.85 | L144: 132.2 | M144: 15.07045
A145: 135 | B145: EXIDEIND | C145: 181.4 | D145: 182.47 | E145: 179.93 | F145: 178.47 | G145: 175.93 | H145: 183.93 | I145: 186.47 | J145: 187.93 | K145: 185 | L145: 181 | M145: 18.61099
A146: 136 | B146: FDC | C146: 160 | D146: 160.20 | E146: 158.95 | F146: 157.90 | G146: 156.65 | H146: 161.25 | I146: 162.50 | J146: 163.55 | K146: 161.45 | L146: 159.15 | M146: 0.1221
A147: 137 | B147: FEDERALBNK | C147: 92.45 | D147: 92.58 | E147: 91.52 | F147: 90.58 | G147: 89.52 | H147: 93.52 | I147: 94.58 | J147: 95.52 | K147: 93.65 | L147: 91.65 | M147: 113.6423
A148: 138 | B148: FINEORG | C148: 1435.45 | D148: 1425.15 | E148: 1405.30 | F148: 1375.15 | G148: 1355.30 | H148: 1455.30 | I148: 1475.15 | J148: 1505.30 | K148: 1445 | L148: 1395 | M148: 0.0351
A149: 139 | B149: FINCABLES | C149: 382.85 | D149: 381.25 | E149: 376.50 | F149: 370.15 | G149: 365.40 | H149: 387.60 | I149: 392.35 | J149: 398.70 | K149: 386 | L149: 374.9 | M149: 0.28603
A150: 140 | B150: FINPIPE | C150: 505.7 | D150: 505.40 | E150: 500.85 | F150: 496.00 | G150: 491.45 | H150: 510.25 | I150: 514.80 | J150: 519.65 | K150: 509.95 | L150: 500.55 | M150: 0.26087
A151: 141 | B151: FSL | C151: 49.6 | D151: 49.23 | E151: 48.62 | F151: 47.63 | G151: 47.02 | H151: 50.22 | I151: 50.83 | J151: 51.82 | K151: 49.85 | L151: 48.25 | M151: 14.76683
A152: 142 | B152: FORTIS | C152: 127 | D152: 126.87 | E152: 126.18 | F152: 125.37 | G152: 124.68 | H152: 127.68 | I152: 128.37 | J152: 129.18 | K152: 127.55 | L152: 126.05 | M152: 2.96647
A153: 143 | B153: FCONSUMER | C153: 29.15 | D153: 30.32 | E153: 27.03 | F153: 24.92 | G153: 21.63 | H153: 32.43 | I153: 35.72 | J153: 37.83 | K153: 33.6 | L153: 28.2 | M153: 48.63577
A154: 144 | B154: FLFL | C154: 461.45 | D154: 458.88 | E154: 453.77 | F154: 446.08 | G154: 440.97 | H154: 466.57 | I154: 471.68 | J154: 479.37 | K154: 464 | L154: 451.2 | M154: 0.22747
A155: 145 | B155: FRETAIL | C155: 425.1 | D155: 423.37 | E155: 418.83 | F155: 412.57 | G155: 408.03 | H155: 429.63 | I155: 434.17 | J155: 440.43 | K155: 427.9 | L155: 417.1 | M155: 1.60336
A156: 146 | B156: GAIL | C156: 134.75 | D156: 135.47 | E156: 133.43 | F156: 132.12 | G156: 130.08 | H156: 136.78 | I156: 138.82 | J156: 140.13 | K156: 137.5 | L156: 134.15 | M156: 80.82602
A157: 147 | B157: GEPIL | C157: 792.75 | D157: 809.58 | E157: 765.17 | F157: 737.58 | G157: 693.17 | H157: 837.17 | I157: 881.58 | J157: 909.17 | K157: 854 | L157: 782 | M157: 0.18021
A158: 148 | B158: GET&D | C158: 197.15 | D158: 198.55 | E158: 191.25 | F158: 185.35 | G158: 178.05 | H158: 204.45 | I158: 211.75 | J158: 217.65 | K158: 205.85 | L158: 192.65 | M158: 0.80924
A159: 149 | B159: GHCL | C159: 207.15 | D159: 208.63 | E159: 203.32 | F159: 199.48 | G159: 194.17 | H159: 212.47 | I159: 217.78 | J159: 221.62 | K159: 213.95 | L159: 204.8 | M159: 1.3177
A160: 150 | B160: GMRINFRA | C160: 14.6 | D160: 14.67 | E160: 14.43 | F160: 14.27 | G160: 14.03 | H160: 14.83 | I160: 15.07 | J160: 15.23 | K160: 14.9 | L160: 14.5 | M160: 125.30295
A161: 151 | B161: GALAXYSURF | C161: 1220.85 | D161: 1216.33 | E161: 1208.37 | F161: 1195.88 | G161: 1187.92 | H161: 1228.82 | I161: 1236.78 | J161: 1249.27 | K161: 1224.3 | L161: 1203.85 | M161: 0.05409
A162: 152 | B162: GDL | C162: 115.75 | D162: 116.00 | E162: 114.20 | F162: 112.65 | G162: 110.85 | H162: 117.55 | I162: 119.35 | J162: 120.90 | K162: 117.8 | L162: 114.45 | M162: 0.1847
A163: 153 | B163: GAYAPROJ | C163: 143.95 | D163: 141.55 | E163: 138.40 | F163: 132.85 | G163: 129.70 | H163: 147.10 | I163: 150.25 | J163: 155.80 | K163: 144.7 | L163: 136 | M163: 0.29557
A164: 154 | B164: GICRE | C164: 212.8 | D164: 214.13 | E164: 209.67 | F164: 206.53 | G164: 202.07 | H164: 217.27 | I164: 221.73 | J164: 224.87 | K164: 218.6 | L164: 211 | M164: 0.43766
A165: 155 | B165: GILLETTE | C165: 7108.8 | D165: 7064.60 | E165: 6984.20 | F165: 6859.60 | G165: 6779.20 | H165: 7189.20 | I165: 7269.60 | J165: 7394.20 | K165: 7145 | L165: 6940 | M165: 0.02939
A166: 156 | B166: GSKCONS | C166: 7444.05 | D166: 7445.10 | E166: 7398.95 | F166: 7353.85 | G166: 7307.70 | H166: 7490.20 | I166: 7536.35 | J166: 7581.45 | K166: 7491.25 | L166: 7400 | M166: 0.11675
A167: 157 | B167: GLAXO | C167: 1198.95 | D167: 1195.73 | E167: 1190.32 | F167: 1181.68 | G167: 1176.27 | H167: 1204.37 | I167: 1209.78 | J167: 1218.42 | K167: 1201.15 | L167: 1187.1 | M167: 0.15764
A168: 158 | B168: GLENMARK | C168: 425.6 | D168: 423.87 | E168: 416.73 | F168: 407.87 | G168: 400.73 | H168: 432.73 | I168: 439.87 | J168: 448.73 | K168: 431 | L168: 415 | M168: 12.01471
A169: 159 | B169: GODFRYPHLP | C169: 719.75 | D169: 722.77 | E169: 713.03 | F169: 706.32 | G169: 696.58 | H169: 729.48 | I169: 739.22 | J169: 745.93 | K169: 732.5 | L169: 716.05 | M169: 0.28141
A170: 160 | B170: GODREJAGRO | C170: 461.55 | D170: 465.17 | E170: 456.48 | F170: 451.42 | G170: 442.73 | H170: 470.23 | I170: 478.92 | J170: 483.98 | K170: 473.85 | L170: 460.1 | M170: 0.32443
A171: 161 | B171: GODREJCP | C171: 616.7 | D171: 616.58 | E171: 608.57 | F171: 600.43 | G171: 592.42 | H171: 624.72 | I171: 632.73 | J171: 640.87 | K171: 624.6 | L171: 608.45 | M171: 8.05919
A172: 162 | B172: GODREJIND | C172: 458.25 | D172: 460.65 | E172: 448.15 | F172: 438.05 | G172: 425.55 | H172: 470.75 | I172: 483.25 | J172: 493.35 | K172: 473.15 | L172: 450.55 | M172: 1.3621
A173: 163 | B173: GODREJPROP | C173: 944.25 | D173: 940.37 | E173: 932.83 | F173: 921.42 | G173: 913.88 | H173: 951.78 | I173: 959.32 | J173: 970.73 | K173: 947.9 | L173: 928.95 | M173: 2.39565
A174: 164 | B174: GRANULES | C174: 84.8 | D174: 85.32 | E174: 83.83 | F174: 82.87 | G174: 81.38 | H174: 86.28 | I174: 87.77 | J174: 88.73 | K174: 86.8 | L174: 84.35 | M174: 3.82611
A175: 165 | B175: GRAPHITE | C175: 293.35 | D175: 291.37 | E175: 284.13 | F175: 274.92 | G175: 267.68 | H175: 300.58 | I175: 307.82 | J175: 317.03 | K175: 298.6 | L175: 282.15 | M175: 15.00333
A176: 166 | B176: GRASIM | C176: 868.65 | D176: 872.58 | E176: 859.27 | F176: 849.88 | G176: 836.57 | H176: 881.97 | I176: 895.28 | J176: 904.67 | K176: 885.9 | L176: 863.2 | M176: 9.69227
A177: 167 | B177: GESHIP | C177: 239.5 | D177: 239.78 | E177: 237.57 | F177: 235.63 | G177: 233.42 | H177: 241.72 | I177: 243.93 | J177: 245.87 | K177: 242 | L177: 237.85 | M177: 0.22464
A178: 168 | B178: GREAVESCOT | C178: 139.95 | D178: 139.12 | E178: 137.53 | F178: 135.12 | G178: 133.53 | H178: 141.53 | I178: 143.12 | J178: 145.53 | K178: 140.7 | L178: 136.7 | M178: 1.79915
A179: 169 | B179: GRINDWELL | C179: 536.3 | D179: 541.73 | E179: 528.62 | F179: 520.93 | G179: 507.82 | H179: 549.42 | I179: 562.53 | J179: 570.22 | K179: 554.85 | L179: 534.05 | M179: 0.29334
A180: 170 | B180: GRUH | C180: 252 | D180: 248.92 | E180: 243.88 | F180: 235.77 | G180: 230.73 | H180: 257.03 | I180: 262.07 | J180: 270.18 | K180: 253.95 | L180: 240.8 | M180: 8.20518
A181: 171 | B181: GUJALKALI | C181: 440.15 | D181: 442.38 | E181: 428.77 | F181: 417.38 | G181: 403.77 | H181: 453.77 | I181: 467.38 | J181: 478.77 | K181: 456 | L181: 431 | M181: 0.55254
A182: 172 | B182: GUJFLUORO
A183: 173 | B183: GUJGASLTD | C183: 161.65 | D183: 162.78 | E183: 159.77 | F183: 157.88 | G183: 154.87 | H183: 164.67 | I183: 167.68 | J183: 169.57 | K183: 165.8 | L183: 160.9 | M183: 1.86156
A184: 174 | B184: GMDCLTD | C184: 70.75 | D184: 70.70 | E184: 70.10 | F184: 69.45 | G184: 68.85 | H184: 71.35 | I184: 71.95 | J184: 72.60 | K184: 71.3 | L184: 70.05 | M184: 0.41876
A185: 175 | B185: GNFC | C185: 212.65 | D185: 211.92 | E185: 209.83 | F185: 207.02 | G185: 204.93 | H185: 214.73 | I185: 216.82 | J185: 219.63 | K185: 214 | L185: 209.1 | M185: 1.66317
A186: 176 | B186: GPPL | C186: 79.9 | D186: 79.48 | E186: 78.72 | F186: 77.53 | G186: 76.77 | H186: 80.67 | I186: 81.43 | J186: 82.62 | K186: 80.25 | L186: 78.3 | M186: 1.99645
A187: 177 | B187: GSFC | C187: 84.25 | D187: 84.03 | E187: 83.27 | F187: 82.28 | G187: 81.52 | H187: 85.02 | I187: 85.78 | J187: 86.77 | K187: 84.8 | L187: 83.05 | M187: 3.41506
A188: 178 | B188: GSPL | C188: 205.9 | D188: 206.13 | E188: 203.97 | F188: 202.03 | G188: 199.87 | H188: 208.07 | I188: 210.23 | J188: 212.17 | K188: 208.3 | L188: 204.2 | M188: 6.09504
A189: 179 | B189: GULFOILLUB | C189: 770.45 | D189: 781.50 | E189: 753.00 | F189: 735.55 | G189: 707.05 | H189: 798.95 | I189: 827.45 | J189: 844.90 | K189: 810 | L189: 764.05 | M189: 0.08334
A190: 180 | B190: HEG | C190: 958.1 | D190: 954.92 | E190: 935.83 | F190: 913.57 | G190: 894.48 | H190: 977.18 | I190: 996.27 | J190: 1018.53 | K190: 974 | L190: 932.65 | M190: 6.54385
A191: 181 | B191: HCLTECH | C191: 1011.3 | D191: 1013.98 | E191: 1000.32 | F191: 989.33 | G191: 975.67 | H191: 1024.97 | I191: 1038.63 | J191: 1049.62 | K191: 1027.65 | L191: 1003 | M191: 30.2102
A192: 182 | B192: HDFCAMC | C192: 2091.15 | D192: 2096.78 | E192: 2059.57 | F192: 2027.98 | G192: 1990.77 | H192: 2128.37 | I192: 2165.58 | J192: 2197.17 | K192: 2134 | L192: 2065.2 | M192: 4.21226
A193: 183 | B193: HDFCBANK | C193: 2286.05 | D193: 2293.92 | E193: 2272.38 | F193: 2258.72 | G193: 2237.18 | H193: 2307.58 | I193: 2329.12 | J193: 2342.78 | K193: 2315.45 | L193: 2280.25 | M193: 48.65502
A194: 184 | B194: HDFCLIFE | C194: 501.2 | D194: 503.37 | E194: 496.03 | F194: 490.87 | G194: 483.53 | H194: 508.53 | I194: 515.87 | J194: 521.03 | K194: 510.7 | L194: 498.2 | M194: 26.30537
A195: 185 | B195: HATHWAY | C195: 21.65 | D195: 22.32 | E195: 20.83 | F195: 20.02 | G195: 18.53 | H195: 23.13 | I195: 24.62 | J195: 25.43 | K195: 23.8 | L195: 21.5 | M195: 1.48198
A196: 186 | B196: HATSUN | C196: 690.35 | D196: 695.00 | E196: 681.35 | F196: 672.35 | G196: 658.70 | H196: 704.00 | I196: 717.65 | J196: 726.65 | K196: 708.65 | L196: 686 | M196: 0.09476
A197: 187 | B197: HAVELLS | C197: 691.45 | D197: 692.75 | E197: 686.80 | F197: 682.15 | G197: 676.20 | H197: 697.40 | I197: 703.35 | J197: 708.00 | K197: 698.7 | L197: 688.1 | M197: 9.90859
A198: 188 | B198: HEIDELBERG | C198: 196.8 | D198: 198.08 | E198: 194.22 | F198: 191.63 | G198: 187.77 | H198: 200.67 | I198: 204.53 | J198: 207.12 | K198: 201.95 | L198: 195.5 | M198: 0.73035
A199: 189 | B199: HERITGFOOD | C199: 359.3 | D199: 355.17 | E199: 350.13 | F199: 340.97 | G199: 335.93 | H199: 364.33 | I199: 369.37 | J199: 378.53 | K199: 360.2 | L199: 346 | M199: 0.17971
A200: 190 | B200: HEROMOTOCO | C200: 2386.5 | D200: 2404.87 | E200: 2361.73 | F200: 2336.97 | G200: 2293.83 | H200: 2429.63 | I200: 2472.77 | J200: 2497.53 | K200: 2448 | L200: 2380.1 | M200: 8.12832
A201: 191 | B201: HEXAWARE | C201: 361.4 | D201: 360.53 | E201: 352.07 | F201: 342.73 | G201: 334.27 | H201: 369.87 | I201: 378.33 | J201: 387.67 | K201: 369 | L201: 351.2 | M201: 14.3396
A202: 192 | B202: HFCL | C202: 19.3 | D202: 19.28 | E202: 19.12 | F202: 18.93 | G202: 18.77 | H202: 19.47 | I202: 19.63 | J202: 19.82 | K202: 19.45 | L202: 19.1 | M202: 6.9494
A203: 193 | B203: HSCL | C203: 82.3 | D203: 82.93 | E203: 79.87 | F203: 77.43 | G203: 74.37 | H203: 85.37 | I203: 88.43 | J203: 90.87 | K203: 86 | L203: 80.5 | M203: 6.13287
A204: 194 | B204: HIMATSEIDE | C204: 142.5 | D204: 143.65 | E204: 140.40 | F204: 138.30 | G204: 135.05 | H204: 145.75 | I204: 149.00 | J204: 151.10 | K204: 146.9 | L204: 141.55 | M204: 0.61735
A205: 195 | B205: HINDALCO | C205: 196.75 | D205: 197.48 | E205: 194.72 | F205: 192.68 | G205: 189.92 | H205: 199.52 | I205: 202.28 | J205: 204.32 | K205: 200.25 | L205: 195.45 | M205: 57.20563
A206: 196 | B206: HAL | C206: 672.8 | D206: 671.60 | E206: 668.20 | F206: 663.60 | G206: 660.20 | H206: 676.20 | I206: 679.60 | J206: 684.20 | K206: 675 | L206: 667 | M206: 0.04199
... 320 more rows

Sheet Bulk Deals
E6: Back To Main Page
A7: Subject : | B7: BULK DEAL | D7: =Main!B10 -> 2019-07-26
A9: Date | B9: Scrip code | C9: Scrip Name | D9: Client Name | E9: Buy / Sell | F9: Quantity Traded | G9: Trade Price / Wt.Avg.trade price | H9: Exchange
A10: 2019-07-25 | B10: 538778 | C10: AKASHDEEP | D10: SIRIUS ADVISORS PRIVATE LIMITED. | E10: SELL | F10: 43,395 | G10: 34.91 | H10: BSE
A11: 2019-07-25 | B11: 537766 | C11: BCP | D11: ACHINTYA COMMODITIES PRIVATE LIMITED | E11: BUY | F11: 830,718 | G11: 41.97 | H11: BSE
A12: 2019-07-25 | B12: 537766 | C12: BCP | D12: ACHINTYA COMMODITIES PRIVATE LIMITED | E12: SELL | F12: 828,208 | G12: 41.39 | H12: BSE
A13: 2019-07-25 | B13: 542724 | C13: EARUM | D13: MOHIT PRAKASH JALAN | E13: SELL | F13: 36,000 | G13: 44 | H13: BSE
A14: 2019-07-25 | B14: 538765 | C14: JSHL | D14: JAWAHAR LAL AGARWAL | E14: SELL | F14: 100,000 | G14: 8.29 | H14: BSE
A15: 2019-07-25 | B15: 540468 | C15: KMSMEDI | D15: NAWAL AGRAWAL HUF | E15: BUY | F15: 20,000 | G15: 30.15 | H15: BSE
A16: 2019-07-25 | B16: 540468 | C16: KMSMEDI | D16: PRAVIN H DOSHI HUF | E16: BUY | F16: 4,000 | G16: 30.2 | H16: BSE
A17: 2019-07-25 | B17: 540468 | C17: KMSMEDI | D17: PRAVIN H DOSHI HUF | E17: SELL | F17: 20,000 | G17: 30.07 | H17: BSE
A18: 2019-07-25 | B18: 538860 | C18: PANAFIC | D18: TRUSHA PRANAY MEHTA | E18: SELL | F18: 460,400 | G18: 0.31 | H18: BSE
A19: 2019-07-25 | B19: 531802 | C19: PRERINFRA | D19: VIJAY SHAH | E19: BUY | F19: 125,000 | G19: 16.97 | H19: BSE
A20: 2019-07-25 | B20: 500390 | C20: RELINFRA | D20: TOWER RESEARCH CAPITAL MARKETS INDIA PRIVATE LIMITED | E20: BUY | F20: 1,571,420 | G20: 47.62 | H20: BSE
A21: 2019-07-25 | B21: 500390 | C21: RELINFRA | D21: TOWER RESEARCH CAPITAL MARKETS INDIA PRIVATE LIMITED | E21: SELL | F21: 1,571,420 | G21: 47.63 | H21: BSE
A22: 2019-07-25 | B22: 500390 | C22: RELINFRA | D22: ESS & ESS HRM SERVICES PVT LTD | E22: BUY | F22: 1,331,660 | G22: 47.57 | H22: BSE
A23: 2019-07-25 | B23: 500390 | C23: RELINFRA | D23: ESS & ESS HRM SERVICES PVT LTD | E23: SELL | F23: 1,331,660 | G23: 47.61 | H23: BSE
A24: 2019-07-25 | B24: 542145 | C24: RONI | D24: PRAMOD JAGANNATH WARADKAR | E24: BUY | F24: 30,000 | G24: 30.00 | H24: BSE
A25: 2019-07-25 | B25: 542145 | C25: RONI | D25: OVERSKUD MULTI ASSET MANAGEMENT PRIVATE LIMITED | E25: SELL | F25: 30,000 | G25: 30 | H25: BSE
A26: 2019-07-25 | B26: 531797 | C26: SCANPRO | D26: ALKA CHANDRA | E26: BUY | F26: 20,000 | G26: 3.55 | H26: BSE
A27: 2019-07-25 | B27: 531797 | C27: SCANPRO | D27: PRADEEP AZAD | E27: SELL | F27: 25,000 | G27: 3.55 | H27: BSE
A28: 2019-07-25 | B28: 539026 | C28: SSPNFIN | D28: PRIYA SINGH | E28: BUY | F28: 12,000 | G28: 40.95 | H28: BSE
A29: 2019-07-25 | B29: 539026 | C29: SSPNFIN | D29: MANSI R KAPADIYA | E29: BUY | F29: 12,000 | G29: 44.13 | H29: BSE
A30: 2019-07-25 | B30: 530045 | C30: TITANSEC | D30: S UDIT SECURITIES (P) LTD | E30: SELL | F30: 176,000 | G30: 3.48 | H30: BSE
A31: 2019-07-25 | B31: 530045 | C31: TITANSEC | D31: PAVAN KUMAR AGRAWAL | E31: BUY | F31: 250,000 | G31: 3.46 | H31: BSE
A32: 2019-07-25 | B32: ABINFRA | C32: A B Infrabuild Limited | D32: KUSUM JAGDISH GUPTA | E32: BUY | F32: 100,000 | G32: 25.1 | H32: NSE
A33: 2019-07-25 | B33: ABINFRA | C33: A B Infrabuild Limited | D33: SHALINI NALIN GUPTA | E33: BUY | F33: 80,000 | G33: 25.1 | H33: NSE
A34: 2019-07-25 | B34: ABINFRA | C34: A B Infrabuild Limited | D34: SONAL KAMAL GUPTA | E34: BUY | F34: 100,000 | G34: 25.1 | H34: NSE
A35: 2019-07-25 | B35: APTECHT | C35: Aptech Limited | D35: WASHINGTON UNIVERSITY | E35: BUY | F35: 384,378 | G35: 126.56 | H35: NSE
A36: 2019-07-25 | B36: BLISSGVS | C36: Bliss GVS Pharma Ltd | D36: ACHINTYA COMMODITIES PRIVATE LIMITED | E36: BUY | F36: 772,855 | G36: 158.19 | H36: NSE
A37: 2019-07-25 | B37: DHFL | C37: Dewan Housing Fin Corp | D37: TOWER RESEARCH CAPITAL MARKETS INDIA PRIVATE LIMITED | E37: BUY | F37: 3,309,115 | G37: 55.13 | H37: NSE
A38: 2019-07-25 | B38: DHFL | C38: Dewan Housing Fin Corp | D38: ALPHAGREP SECURITIES PRIVATE LIMITED | E38: BUY | F38: 3,068,521 | G38: 55.22 | H38: NSE
A39: 2019-07-25 | B39: DIXON | C39: Dixon Techno (India) Ltd | D39: SBI MUTUAL FUND | E39: BUY | F39: 269,282 | G39: 2195 | H39: NSE
A40: 2019-07-25 | B40: RELCAPITAL | C40: Reliance Capital Limited | D40: ALPHAGREP SECURITIES PRIVATE LIMITED | E40: BUY | F40: 1,336,243 | G40: 52.28 | H40: NSE
A41: 2019-07-25 | B41: RELCAPITAL | C41: Reliance Capital Limited | D41: TOWER RESEARCH CAPITAL MARKETS INDIA PRIVATE LIMITED | E41: BUY | F41: 4,076,053 | G41: 52.25 | H41: NSE
A42: 2019-07-25 | B42: RELCAPITAL | C42: Reliance Capital Limited | D42: QE SECURITIES | E42: BUY | F42: 1,638,143 | G42: 52.5 | H42: NSE
A43: 2019-07-25 | B43: RELINFRA | C43: Reliance Infrastructu Ltd | D43: VAIBHAV STOCK AND DERIVATIVES BROKING PRIVATE LIMITED | E43: BUY | F43: 1,766,827 | G43: 48.07 | H43: NSE
A44: 2019-07-25 | B44: RELINFRA | C44: Reliance Infrastructu Ltd | D44: ALPHAGREP SECURITIES PRIVATE LIMITED | E44: BUY | F44: 1,689,763 | G44: 47.7 | H44: NSE
A45: 2019-07-25 | B45: RELINFRA | C45: Reliance Infrastructu Ltd | D45: KBC EQUITY FUND | E45: BUY | F45: 3,299,169 | G45: 47.43 | H45: NSE
A46: 2019-07-25 | B46: RELINFRA | C46: Reliance Infrastructu Ltd | D46: TOWER RESEARCH CAPITAL MARKETS INDIA PRIVATE LIMITED | E46: BUY | F46: 4730955 | G46: 47.44 | H46: NSE
A47: 2019-07-25 | B47: RELINFRA | C47: Reliance Infrastructu Ltd | D47: ADROIT FINANCIAL SERVICES PVT LTD | E47: BUY | F47: 1413461 | G47: 48.27 | H47: NSE
A48: 2019-07-25 | B48: ABINFRA | C48: A B Infrabuild Limited | D48: AARAV FINANCIAL SERVICES PVT.LTD | E48: SELL | F48: 68000 | G48: 23.15 | H48: NSE
A49: 2019-07-25 | B49: ABINFRA | C49: A B Infrabuild Limited | D49: MARK CORPORATE ADVIOSRS PVT LTD | E49: SELL | F49: 280000 | G49: 25.1 | H49: NSE
A50: 2019-07-25 | B50: APTECHT | C50: Aptech Limited | D50: WASHINGTON UNIVERSITY | E50: SELL | F50: 428000 | G50: 126.25 | H50: NSE
A51: 2019-07-25 | B51: BLISSGVS | C51: Bliss GVS Pharma Ltd | D51: ACHINTYA COMMODITIES PRIVATE LIMITED | E51: SELL | F51: 628736 | G51: 157.16 | H51: NSE
A52: 2019-07-25 | B52: DHFL | C52: Dewan Housing Fin Corp | D52: TOWER RESEARCH CAPITAL MARKETS INDIA PRIVATE LIMITED | E52: SELL | F52: 3309115 | G52: 55.05 | H52: NSE
A53: 2019-07-25 | B53: DHFL | C53: Dewan Housing Fin Corp | D53: ALPHAGREP SECURITIES PRIVATE LIMITED | E53: SELL | F53: 3070456 | G53: 55.21 | H53: NSE
A54: 2019-07-25 | B54: DIXON | C54: Dixon Techno (India) Ltd | D54: SBI MUTUAL FUND | E54: SELL | F54: 269276 | G54: 2195 | H54: NSE
A55: 2019-07-25 | B55: INFOBEAN | C55: InfoBeans Techno. Ltd. | D55: INDO THAI SECURITIES LTD. | E55: SELL | F55: 155701 | G55: 68 | H55: NSE
A56: 2019-07-25 | B56: RELCAPITAL | C56: Reliance Capital Limited | D56: QE SECURITIES | E56: SELL | F56: 1672714 | G56: 51.97 | H56: NSE
A57: 2019-07-25 | B57: RELCAPITAL | C57: Reliance Capital Limited | D57: ALPHAGREP SECURITIES PRIVATE LIMITED | E57: SELL | F57: 1336243 | G57: 52.28 | H57: NSE
A58: 2019-07-25 | B58: RELCAPITAL | C58: Reliance Capital Limited | D58: TOWER RESEARCH CAPITAL MARKETS INDIA PRIVATE LIMITED | E58: SELL | F58: 4076053 | G58: 52.31 | H58: NSE
A59: 2019-07-25 | B59: RELINFRA | C59: Reliance Infrastructu Ltd | D59: TOWER RESEARCH CAPITAL MARKETS INDIA PRIVATE LIMITED | E59: SELL | F59: 4730955 | G59: 47.58 | H59: NSE
A60: 2019-07-25 | B60: RELINFRA | C60: Reliance Infrastructu Ltd | D60: VAIBHAV STOCK AND DERIVATIVES BROKING PRIVATE LIMITED | E60: SELL | F60: 1766827 | G60: 48.09 | H60: NSE
A61: 2019-07-25 | B61: RELINFRA | C61: Reliance Infrastructu Ltd | D61: ADROIT FINANCIAL SERVICES PVT LTD | E61: SELL | F61: 1435590 | G61: 48.25 | H61: NSE
A62: 2019-07-25 | B62: RELINFRA | C62: Reliance Infrastructu Ltd | D62: ALPHAGREP SECURITIES PRIVATE LIMITED | E62: SELL | F62: 1689763 | G62: 47.75 | H62: NSE
A63: 2019-07-25 | B63: SRTRANSFIN | C63: Shriram Trans Fin Co. Ltd | D63: NEW WORLD FUND INC. | E63: SELL | F63: 1509204 | G63: 978.68 | H63: NSE
A64: 2019-07-25 | B64: SSINFRA | C64: S S Infra Devp Consl Ltd | D64: HSBC SMALL CAP FUND | E64: SELL | F64: 102000 | G64: 9.78 | H64: NSE

Sheet Call Tracker (Equity & F&O)
M5: Back To Main Page
A6: Retail Research Technical Calls & Fundamental Performance Report for the month of July-2019
M7: =Main!B10 -> 2019-07-26
B8: Positional Call
A9: Sr.no | B9: Date | D9: Company | E9: Rec | F9: Rec Price | G9: Stop Loss*** | H9: Call Closed At | I9: Target | J9: Remark | K9: Profit / Loss per Share | L9: Gain / Loss % | M9: Status | N9: Closed Date | O9: NSE Closed Price
A10: 1 | B10: 2019-05-27 | D10: TATAELXSI | E10: Buy | F10: 874 | G10: 818.7 | H10: 863 | I10: 970-990 | J10: Loss of Rs.11/- | K10: =H10-F10 -> -11 | L10: =K10/F10 -> -1.26% | M10: Unsuccessful | N10: 2019-07-16 | R10: R
A11: 2 | B11: 2019-05-28 | D11: BAJAJFINSV | E11: Sell | F11: 8175 | G11: 8625 | H11: 7925 | I11: 7300 | J11: Profit of Rs.250/- | K11: =F11-H11 -> 250 | L11: 3.06% | M11: Successful | N11: 2019-07-08 | R11: H
A12: 3 | B12: 2019-05-31 | D12: ITC | E12: Buy | F12: 286 | G12: 268.3 | H12: 265.5 | I12: 315-325 | J12: Loss of Rs.20.5/- | K12: =H12-F12 -> -20.5 | L12: =K12/F12 -> -7.17% | M12: Unsuccessful | N12: 2019-07-22 | R12: R
A13: 4 | B13: 2019-06-13 | D13: GODREJCP | E13: Buy | F13: 677.5 | G13: 644 | H13: 639.5 | I13: 740-750 | J13: Loss of Rs.38/- | K13: =H13-F13 -> -38 | L13: =K13/F13 -> -5.61% | M13: Unsuccessful | N13: 2019-07-10 | R13: H
A14: 5 | B14: 2019-06-17 | D14: SUNTV | E14: Buy | F14: 517 | G14: 476 | H14: 507 | I14: 575-585 | J14: Loss of Rs.10/- | K14: =H14-F14 -> -10 | L14: =K14/F14 -> -1.93% | M14: Unsuccessful | N14: 2019-07-08 | R14: R
A15: 6 | B15: 2019-06-21 | D15: AJANTPHARM | E15: Buy | F15: 955 | G15: 897.7 | H15: 894 | I15: 1060-1080 | J15: Loss of Rs.61/- | K15: =H15-F15 -> -61 | L15: =K15/F15 -> -6.39% | M15: Unsuccessful | N15: 2019-07-11 | R15: R
A16: 7 | B16: 2019-06-24 | D16: ESCORTS | E16: Buy | F16: 549.5 | G16: 518 | H16: 545.25 | I16: 600 | J16: Loss of Rs.4.25/- | K16: -4.25 | L16: -0.77% | M16: Neutral | N16: 2019-07-08 | R16: H
A17: 8 | B17: 2019-06-25 | D17: JUBLFOOD | E17: Buy | F17: 1262.5 | G17: 1158.3 | H17: 1145 | I17: 1450 -1470 | J17: Loss of Rs.117.50/- | K17: -117.5 | L17: -9.31% | M17: Unsuccessful | N17: 2019-07-24 | R17: R
A18: 9 | B18: 2019-07-04 | D18: TORNTPHARM | E18: Buy | F18: 1545 | G18: 1454 | H18: 1610 | I18: 1730-1750 | J18: Part Profit of Rs.65/- | K18: =H18-F18 -> 65 | L18: =K18/F18 -> 4.21% | M18: Successful | N18: 2019-07-16 | O18: =VLOOKUP(D18,Sheet2!A5:M1644,6,0) -> 1607 | R18: R
A19: 10 | B19: 2019-07-10 | D19: TCS | E19: Buy | F19: 2105-2115 | G19: 1973 | I19: 2295-2345 | J19: Open | O19: =VLOOKUP(D19,Sheet2!A6:M1645,6,0) -> 2096.8 | R19: H
A20: 11 | B20: 2019-07-11 | D20: BAJAJ-AUTO | E20: Buy | F20: 2670 | G20: 2527 | H20: 2527 | I20: 1920-1950 | J20: Loss of Rs.143/- | K20: =H20-F20 -> -143 | L20: =K20/F20 -> -5.36% | M20: Unsuccessful | N20: 2019-07-22 | R20: R
A21: 12 | B21: 2019-07-11 | D21: BERGEPAINT | E21: Buy | F21: 304 | G21: 288 | H21: 316.25 | I21: 330-340 | J21: Profit of Rs.12.25/- | K21: =H21-F21 -> 12.25 | L21: =K21/F21 -> 4.03% | M21: Successful | N21: 2019-07-24 | R21: H
A22: 13 | B22: 2019-07-12 | D22: ABFRL | E22: Buy | F22: 201 | G22: 189.3 | H22: 208.75 | I22: 222-226 | J22: Profit of Rs.7.75/- | K22: =H22-F22 -> 7.75 | L22: =K22/F22 -> 3.86% | M22: Successful | N22: 2019-07-12 | R22: R
A23: 14 | B23: 2019-07-12 | D23: LT | E23: Buy<> | F23: 1457 | G23: 1353 | I23: 1630-1680 | J23: Open | O23: =VLOOKUP(D23,Sheet2!A10:M1649,6,0) -> 1387.35 | R23: H
A24: 15 | B24: 2019-07-15 | D24: BIOCON | E24: Buy | F24: 251.5 | G24: 237 | H24: 262.25 | I24: 270 -280 | J24: Part Profit of Rs.10.75/- | K24: =H24-F24 -> 10.75 | L24: =K24/F24 -> 4.27% | M24: Successful | N24: 2019-07-17 | O24: =VLOOKUP(D24,Sheet2!A11:M1650,6,0) -> 238.2 | R24: H
A25: 16 | B25: 2019-07-16 | D25: ABFRL | E25: Buy | F25: 201-203 | G25: 189.3 | I25: 222-226 | J25: Open | O25: =VLOOKUP(D25,Sheet2!A12:M1651,6,0) -> 204.05 | R25: R
A26: 17 | B26: 2019-07-17 | D26: BANKINDIA | E26: Buy | F26: 84.5 | G26: 82 | H26: 80.5 | I26: 90 | J26: Loss of Rs.4/- | K26: =H26-F26 -> -4 | L26: =K26/F26 -> -4.73% | M26: Unsuccessful | N26: 2019-07-19 | R26: H
A27: 18 | B27: 2019-07-17 | D27: BHARTIARTL | E27: Buy | F27: 347-349 | G27: 322 | I27: 392 -396 | J27: Open | O27: =VLOOKUP(D27,Sheet2!A14:M1653,6,0) -> 338.9 | R27: R
A28: 19 | B28: 2019-07-18 | D28: NAVINFLUOR | E28: Buy | F28: 608-616 | G28: 570 | I28: 680 -700 | J28: Open | O28: =VLOOKUP(D28,Sheet2!A15:M1654,6,0) -> 596.55 | R28: H
A29: 20 | B29: 2019-07-19 | D29: ACC | E29: Buy | F29: 1615-1625 | G29: 1518 | I29: 1750-1800 | J29: Open | O29: =VLOOKUP(D29,Sheet2!A16:M1655,6,0) -> 1569.6 | R29: H
A30: 21 | B30: 2019-07-22 | D30: BAJFINANCE | E30: Buy | F30: 3290 | G30: 3140 | H30: 3115 | I30: 3500-3600 | J30: Loss of Rs.175/- | K30: =H30-F30 -> -175 | L30: =K30/F30 -> -5.32% | M30: Unsuccessful | N30: 2019-07-25 | R30: H
A31: 22 | B31: 2019-07-22 | D31: MOTHERSUMI | E31: Buy | F31: 109-111 | G31: 103 | I31: 121-123 | J31: Open | O31: =VLOOKUP(D31,Sheet2!A18:M1657,6,0) -> 110.3 | R31: R
A35: CLBS = Closing Basis *** | F35: Reinitiated $
A36: Dividend adjusted <> | F36: Revised stoploss # | I36: =1475-18 -> 1457
A37: Part book {}
B39: Momentum Call
A40: Sr.no | B40: Date | D40: Company | E40: Rec | F40: Rec Price | G40: Stop Loss | H40: Call Closed At | I40: Target | J40: Remark | K40: Profit / Loss per Share/Lot | L40: Gain / Loss % | M40: Gain / Loss per Lot | N40: Lot | O40: Status | P40: Closed Date
A41: 1 | B41: 2019-06-26 | D41: INDUSINDBK | E41: Buy | F41: 1437.5 | G41: 1395 | H41: 1475.5 | I41: 1480-1500 | J41: Profit of Rs.38 /- | K41: =H41-F41 -> 38 | L41: =K41/F41 -> 2.64% | O41: Successful | P41: 2019-07-03 | R41: H
A42: 2 | B42: 2019-06-26 | D42: HEROMOTOCO | E42: Buy | F42: 2590 | G42: 2490 | H42: 2530 | I42: 2750-2800 | J42: Loss of Rs.9.5 /- | K42: =H42-F42 -> -60 | L42: -2.32% | O42: Unsuccessful | P42: 2019-07-05 | R42: H
A43: 3 | B43: 2019-06-27 | D43: ASIANPAINT JUL FUT | E43: Buy | F43: 1372 | G43: 1352 | H43: 1352 | I43: 1400 -1410 | J43: Loss of Rs.20 /- | K43: =H43-F43 -> -20 | M43: =K43*N43 -> -12000 | N43: 600 | O43: Unsuccessful | P43: 2019-07-02 | R43: N
A44: 4 | B44: 2019-06-27 | D44: TITAN JULY FUT | E44: Sell | F44: 1331 | G44: 1350 | H44: 1322 | I44: 1290 | J44: Profit of Rs.9 /- | K44: =F44-H44 -> 9 | M44: 6750 | N44: 750 | O44: Successful | P44: 2019-07-02 | R44: H
A45: 5 | B45: 2019-06-27 | D45: COLPAL JUL FUT | E45: Buy | F45: 1137 | G45: 1120 | H45: 1149 | I45: 1170 | J45: Profit of Rs.12 /- | K45: =H45-F45 -> 12 | M45: 8400 | N45: 700 | O45: Successful | P45: 2019-07-02 | R45: N
A46: 6 | B46: 2019-06-28 | D46: CIPLA JULY FUT | E46: Buy | F46: 556 | G46: 545 | H46: 545 | I46: 575-580 | J46: Loss of Rs.11 /- | K46: =H46-F46 -> -11 | M46: -11000 | N46: 1000 | O46: Unsuccessful | P46: 2019-07-08 | R46: H
A47: 7 | B47: 2019-06-28 | D47: NIITTECH JUL FUT | E47: Sell | F47: 1326.5 | G47: 1345 | H47: 1318 | I47: 1290 | J47: Profit of Rs.8.5 /- | K47: =F47-H47 -> 8.5 | M47: 6375 | N47: 750 | O47: Successful | P47: 2019-07-05 | R47: R
A48: 8 | B48: 2019-06-28 | D48: POWERGRID JUL FUT | E48: Buy | F48: 206.25 | G48: 203 | H48: 208.5 | I48: 213 | J48: Profit of Rs.2.25 /- | K48: =H48-F48 -> 2.25 | M48: 9000 | N48: 4000 | O48: Successful | P48: 2019-07-01 | R48: N
A49: 9 | B49: 2019-06-28 | D49: LT JUL FUT | E49: Buy | F49: 1549 | G49: 1519 | H49: 1568 | I49: 1600 | J49: Profit of Rs.19 /- | K49: =H49-F49 -> 19 | M49: 7125 | N49: 375 | O49: Successful | P49: 2019-07-03 | R49: N
A50: 10 | B50: 2019-07-01 | D50: BATAINDIA JUL FUT | E50: Sell | F50: 1435 | G50: 1458.7 | H50: 1458.7 | I50: 1400 | J50: Loss of Rs.23.7 /- | K50: =F50-H50 -> -23.7 | M50: -13035 | N50: 550 | O50: Unsuccessful | P50: 2019-07-03 | R50: R
A51: 11 | B51: 2019-07-01 | D51: CADILAHC JUL FUT | E51: Buy | F51: 242.5 | G51: 235 | H51: 235 | I51: 260 | J51: Loss of Rs.7.5 /- | K51: =H51-F51 -> -7.5 | M51: -12000 | N51: 1600 | O51: Unsuccessful | P51: 2019-07-02 | R51: H
A52: 12 | B52: 2019-07-01 | D52: MCDOWELL-N | E52: Sell | F52: 592.5 | G52: 610 | H52: 580 | I52: 565-560 | J52: Profit of Rs.12.5 /- | K52: =F52-H52 -> 12.5 | L52: =K52/F52 -> 2.11% | O52: Successful | P52: 2019-07-03 | R52: H
A53: 13 | B53: 2019-07-02 | D53: HDFC JULY FUT | E53: Sell | F53: 2239 | G53: 2262 | H53: 2259 | I53: 2200 | J53: Loss of Rs.20/- | K53: =F53-H53 -> -20 | M53: =K53*N53 -> -10000 | N53: 500 | O53: Unsuccessful | P53: 2019-07-02 | R53: H
A54: 14 | B54: 2019-07-02 | D54: BHARTIARTL JUL FUT | E54: Buy | F54: 351 | G54: 344.3 | H54: 355.5 | I54: 362-365 | J54: Profit of Rs.4.5 /- | K54: =H54-F54 -> 4.5 | M54: =K54*N54 -> 8329.5 | N54: 1851 | O54: Successful | P54: 2019-07-02 | R54: R
A55: 15 | B55: 2019-07-02 | D55: TVSMOTOR JUL FUT | E55: Sell | F55: 429 | G55: 441 | H55: 429 | I55: 410 | J55: Neutral | K55: =H55-F55 -> 0 | M55: =K55*N55 -> 0 | N55: 1100 | O55: Neutral | P55: 2019-07-05 | R55: N
A56: 16 | B56: 2019-07-02 | D56: RECLTD | E56: Sell | F56: 163.5 | G56: 168.2 | H56: 166.5 | I56: 156-154 | J56: Loss of Rs.3/- | K56: =F56-H56 -> -3 | L56: =K56/F56 -> -1.83% | O56: Unsuccessful | P56: 2019-07-03 | R56: R
A57: 17 | B57: 2019-07-02 | D57: TITAN JUL FUT | E57: Sell | F57: 1333.5 | G57: 1353 | H57: 1324.5 | I57: 1300-1290 | J57: Profit of Rs.9 /- | K57: =F57-H57 -> 9 | M57: =K57*N57 -> 6750 | N57: 750 | O57: Successful | P57: 2019-07-03 | R57: H
A58: 18 | B58: 2019-07-02 | D58: RAYMOND JUL FUT | E58: Buy | F58: 745 | G58: 730 | H58: 754.5 | I58: 765-770 | J58: Profit of Rs.9.5 /- | K58: =H58-F58 -> 9.5 | M58: =K58*N58 -> 7600 | N58: 800 | O58: Successful | P58: 2019-07-03 | R58: N
A59: 19 | B59: 2019-07-03 | D59: IGL | E59: Buy | F59: 307.5 | G59: 298 | H59: 298 | I59: 325-339 | J59: Loss of Rs.9.5 /- | K59: =H59-F59 -> -9.5 | L59: =K59/F59 -> -3.09% | O59: Unsuccessful | P59: 2019-07-05 | R59: H
A60: 20 | B60: 2019-07-03 | D60: SUNPHARMA | E60: Buy | F60: 395.5 | G60: 379 | H60: 385.5 | I60: 420-425 | J60: Loss of Rs.10 /- | K60: =H60-F60 -> -10 | L60: =K60/F60 -> -2.53% | O60: Unsuccessful | P60: 2019-07-05 | R60: H
A61: 21 | B61: 2019-07-03 | D61: BANKBARODA | E61: Buy | F61: 121.5 | G61: 118 | H61: 124.1 | I61: 128 | J61: Profit of Rs.2.6 /- | K61: =H61-F61 -> 2.6 | L61: =K61/F61 -> 2.14% | O61: Successful | P61: 2019-07-03 | R61: H
A62: 22 | B62: 2019-07-03 | D62: M&MFIN JUL FUT | E62: Buy | F62: 387.5 | G62: 379 | H62: 394 | I62: 408 | J62: Profit of Rs.6.5 /- | K62: =H62-F62 -> 6.5 | M62: =K62*N62 -> 8125 | N62: 1250 | O62: Successful | P62: 2019-07-04 | R62: H
A63: 23 | B63: 2019-07-04 | D63: UPL JUL FUT | E63: Sell | F63: 667 | G63: 681 | H63: 681 | I63: 645 | J63: Loss of Rs.14/- | K63: =F63-H63 -> -14 | M63: =K63*N63 -> -12600 | N63: 900 | O63: Unsuccessful | P63: 2019-07-04 | R63: R
A64: 24 | B64: 2019-07-04 | D64: INDUSINDBK JUL FUT | E64: Buy | F64: 1497.5 | G64: 1467 | H64: 1517.5 | I64: 1550-1560 | J64: Profit of Rs.20 /- | K64: =H64-F64 -> 20 | M64: =K64*N64 -> 8000 | N64: 400 | O64: Successful | P64: 2019-07-05 | R64: N
A65: 25 | B65: 2019-07-05 | D65: BERGEPAINT | E65: Buy | F65: 314 | G65: 304 | H65: 304 | I65: 330-333 | J65: Loss of Rs.10/- | K65: =H65-F65 -> -10 | L65: =K65/F65 -> -3.18% | O65: Unsuccessful | P65: 2019-07-08 | R65: H
A66: 26 | B66: 2019-07-05 | D66: WIPRO JULY FUT | E66: Sell | F66: 278 | G66: 282 | H66: 274.75 | I66: 270 | J66: Profit of Rs.3.25/- | K66: =F66-H66 -> 3.25 | M66: =K66*N66 -> 10400 | N66: 3200 | O66: Successful | P66: 2019-07-05 | R66: H
A67: 27 | B67: 2019-07-05 | D67: MUTHOOTFIN JUL FUT | E67: Buy | F67: 635 | G67: 625 | H67: 629 | I67: 655 | J67: Loss of Rs.6 /- | K67: =H67-F67 -> -6 | M67: -9000 | N67: 1500 | O67: Unsuccessful | P67: 2019-07-05 | R67: N
A68: 28 | B68: 2019-07-05 | D68: EXIDEIND JUL FUT | E68: Buy | F68: 204 | G68: 199.5 | H68: 199.5 | I68: 215 | J68: Loss of Rs.4.5 /- | K68: -4.5 | M68: -10800 | N68: 2400 | O68: Unsuccessful | P68: 2019-07-08 | R68: N
A69: 29 | B69: 2019-07-05 | D69: TVSMOTOR JUL FUT | E69: Buy | F69: 429 | G69: 417.3 | H69: 417.3 | I69: 450 | J69: Loss of Rs.11.7/- | K69: -11.7 | M69: -12870 | N69: 1100 | O69: Unsuccessful | P69: 2019-07-08 | R69: R
A70: 30 | B70: 2019-07-08 | D70: CANBK JUL FUT | E70: Buy | F70: 289 | G70: 284 | H70: 284 | I70: 300 | J70: Loss of Rs.5 /- | K70: -5 | M70: -10000 | N70: 2000 | O70: Unsuccessful | P70: 2019-07-08 | R70: H
A71: 31 | B71: 2019-07-08 | D71: KOTAKBANK JUL FUT | E71: Buy | F71: 1500 | G71: 1470 | H71: 1470 | I71: 1550-1560 | J71: Loss of Rs.30 /- | K71: -30 | M71: -12000 | N71: 400 | O71: Unsuccessful | P71: 2019-07-09 | R71: H
A72: 32 | B72: 2019-07-09 | D72: RELIANCE | E72: Buy | F72: 1255 | G72: 1218 | H72: 1276 | I72: 1320-1330 | J72: Profit of Rs.21/- | K72: 21 | L72: =K72/F72 -> 1.67% | O72: Successful | P72: 2019-07-09 | R72: H
A73: 33 | B73: 2019-07-09 | D73: NIFTY JUL FUT | E73: Buy | F73: 11525 | G73: 11470 | H73: 11575 | I73: 11600 | J73: Profit of Rs.50/- | K73: 50 | M73: =K73*N73 -> 3750 | N73: 75 | O73: Successful | P73: 2019-07-09 | R73: R
A74: 34 | B74: 2019-07-09 | D74: M&MFIN | E74: Buy | F74: 390.5 | G74: 378 | H74: 379 | I74: 410-415 | J74: Loss of Rs.11.50/- | K74: =H74-F74 -> -11.5 | L74: =K74/F74 -> -2.94% | O74: Unsuccessful | P74: 2019-07-11 | R74: H
A75: 35 | B75: 2019-07-09 | D75: RBLBANK JUL FUT | E75: Buy | F75: 628 | G75: 618 | H75: 635 | I75: 645-650 | J75: Profit of Rs.7/- | K75: =H75-F75 -> 7 | M75: =K75*N75 -> 8400 | N75: 1200 | O75: Successful | P75: 2019-07-10 | R75: N
A76: 36 | B76: 2019-07-09 | D76: BANKNIFTY JUL FUT | E76: Buy | F76: 30560 | G76: 30440 | H76: 30670 | I76: 30750-30800 | J76: Profit of Rs.110/- | K76: =H76-F76 -> 110 | M76: =K76*N76 -> 2200 | N76: 20 | O76: Successful | P76: 2019-07-09 | R76: R
A77: 37 | B77: 2019-07-10 | D77: AMARAJABAT JUL FUT | E77: Buy | F77: 637 | G77: 620 | H77: 646.5 | I77: 670 | J77: Profit of Rs.9.50/- | K77: =H77-F77 -> 9.5 | M77: =K77*N77 -> 6650 | N77: 700 | O77: Successful | P77: 2019-07-11 | R77: N
A78: 38 | B78: 2019-07-10 | D78: CIPLA | E78: Buy | F78: 550 | G78: 535 | H78: 562 | I78: 575-580 | J78: Profit of Rs.12/- | K78: =H78-F78 -> 12 | L78: =K78/F78 -> 2.18% | O78: Successful | P78: 2019-07-12 | R78: H
A79: 39 | B79: 2019-07-10 | D79: BANKINDIA | E79: Buy | F79: 85.4 | G79: 83.5 | H79: 87.1 | I79: 90-92 | J79: Profit of Rs.1.70/- | K79: =H79-F79 -> 1.7 | L79: 1.99% | O79: Successful | P79: 2019-07-11 | R79: H
A80: 40 | B80: 2019-07-10 | D80: COLPAL JUL FUT | E80: Buy | F80: 1156.5 | G80: 1139 | H80: 1140 | I80: 1180-1190 | J80: Loss of Rs.16.50 /- | K80: =H80-F80 -> -16.5 | M80: =K80*N80 -> -11550 | N80: 700 | O80: Unsuccessful | P80: 2019-07-11 | R80: N
A81: 41 | B81: 2019-07-10 | D81: APOLLOHOSP | E81: Buy | F81: 1312.5 | G81: 1277 | H81: 1348.5 | I81: 1370-1380 | J81: Profit of Rs.36- | K81: 36 | L81: 2.74% | O81: Successful | P81: 2019-07-12 | R81: R
A82: 42 | B82: 2019-07-10 | D82: NIFTY JUL FUT | E82: Buy | F82: 11492.5 | G82: 11445 | H82: 11555 | I82: 11570-11590 | J82: Profit of Rs.62.50/- | K82: =H82-F82 -> 62.5 | M82: =K82*N82 -> 4687.5 | N82: 75 | O82: Successful | P82: 2019-07-11 | R82: R
A83: 43 | B83: 2019-07-11 | D83: HINDUNILVR | E83: Buy | F83: 1710 | G83: 1645 | H83: 1736 | I83: 1800 | J83: Profit of Rs.26/- | K83: =H83-F83 -> 26 | L83: =K83/F83 -> 1.52% | O83: Successful | P83: 2019-07-11 | R83: H
A84: 44 | B84: 2019-07-11 | D84: EXIDEIND | E84: Buy | F84: 201.5 | G84: 195 | H84: 204.75 | I84: 210-212 | J84: Profit of Rs.3.25/- | K84: 3.25 | L84: 1.61% | O84: Successful | P84: 2019-07-11 | R84: H
A85: 45 | B85: 2019-07-12 | D85: BATAINDIA JUL FUT | E85: Buy | F85: 1337.5 | G85: 1315 | H85: 1353 | I85: 1375 | J85: Profit of Rs.15.5/- | K85: 15.5 | M85: =K85*N85 -> 8525 | N85: 550 | O85: Successful | P85: 2019-07-12 | R85: N
A86: 46 | B86: 2019-07-12 | D86: POWERGRID JUL FUT | E86: Buy | F86: 206.75 | G86: 203.75 | H86: 208.75 | I86: 212 -213 | J86: Profit of Rs.2/- | K86: 2 | M86: =K86*N86 -> 8000 | N86: 4000 | O86: Successful | P86: 2019-07-16 | R86: N
A87: 47 | B87: 2019-07-12 | D87: RBLBANK JUL FUT | E87: Buy | F87: 637 | G87: 627 | H87: 627 | I87: 660 | J87: Loss of Rs.10 /- | K87: -10 | M87: =K87*N87 -> -12000 | N87: 1200 | O87: Unsuccessful | P87: 2019-07-15 | R87: N
A88: 48 | B88: 2019-07-15 | D88: TVSMOTORS | E88: Buy | F88: 430.5 | G88: 417 | H88: 417 | I88: 450 | J88: Loss of Rs.13.5 /- | K88: =H88-F88 -> -13.5 | L88: =K88/F88 -> -3.14% | O88: Unsuccessful | P88: 2019-07-18 | R88: H
A89: 49 | B89: 2019-07-15 | D89: NIFTY JUL FUT | E89: Buy | F89: 11525 | G89: 11470 | H89: 11565 | I89: 11600 | J89: Profit of Rs.40/- | K89: =H89-F89 -> 40 | M89: =K89*N89 -> 3000 | N89: 75 | O89: Successful | P89: 2019-07-15 | R89: R
A90: 50 | B90: 2019-07-15 | D90: APOLLOHOSP | E90: Sell | F90: 1399 | G90: 1430 | H90: 1382 | I90: 1360-1350 | J90: Profit of Rs.17/- | K90: =F90-H90 -> 17 | L90: =K90/F90 -> 1.22% | O90: Successful | P90: 2019-07-15 | R90: H
A91: 51 | B91: 2019-07-15 | D91: AMBUJACEM JUL FUT | E91: Sell | F91: 219.5 | G91: 225.3 | H91: 216.25 | I91: 212-210 | J91: Profit of Rs.3.25/- | K91: =F91-H91 -> 3.25 | M91: =K91*N91 -> 8125 | N91: 2500 | O91: Successful | P91: 2019-07-18 | R91: R
A92: 52 | B92: 2019-07-16 | D92: NTPC JUL FUT | E92: Sell | F92: 128.5 | G92: 131.5 | H92: 131 | I92: 123-122 | J92: Loss of Rs.2.5 /- | K92: =F92-H92 -> -2.5 | M92: -12000 | N92: 4800 | O92: Unsuccessful | P92: 2019-07-17 | R92: N
A93: 53 | B93: 2019-07-16 | D93: M&M JUL FUT | E93: Buy | F93: 616 | G93: 605 | H93: 605 | I93: 640 | J93: Loss of Rs.11 /- | K93: =H93-F93 -> -11 | M93: -11000 | N93: 1000 | O93: Unsuccessful | P93: 2019-07-18 | R93: H
A94: 54 | B94: 2019-07-16 | D94: ACC JUL FUT | E94: Sell | F94: 1597 | G94: 1625 | H94: 1580.5 | I94: 1550 | J94: Profit of Rs.16.5/- | K94: =F94-H94 -> 16.5 | M94: 6600 | N94: 400 | O94: Successful | P94: 2019-07-18 | R94: H
A95: 55 | B95: 2019-07-16 | D95: INDUSINDBK JUL FUT | E95: Buy | F95: 1485.5 | G95: 1457 | H95: 1505.5 | I95: 1540 -1550 | J95: Profit of Rs.20/- | K95: =H95-F95 -> 20 | M95: 8000 | N95: 400 | O95: Successful | P95: 2019-07-17 | R95: N
A96: 56 | B96: 2019-07-16 | D96: NIFTY JUL FUT | E96: Sell | F96: 11655 | G96: 11740 | H96: 11635 | I96: 11500 | J96: Profit of Rs.20/- | K96: =F96-H96 -> 20 | M96: 1500 | N96: 75 | O96: Successful | P96: 2019-07-18 | R96: R
A97: 57 | B97: 2019-07-17 | D97: CIPLA | E97: Buy | F97: 549 | G97: 535 | H97: 557.5 | I97: 575-580 | J97: Profit of Rs.8.5/- | K97: =H97-F97 -> 8.5 | L97: =K97/F97 -> 1.55% | O97: Successful | P97: 2019-07-17 | R97: H
A98: 58 | B98: 2019-07-17 | D98: AXISBANK | E98: Buy | F98: 758.5 | G98: 738 | H98: 734 | I98: 790-800 | J98: Loss of Rs.24.5 /- | K98: -24.5 | L98: -3.23% | O98: Unsuccessful | P98: 2019-07-19 | R98: H
A99: 59 | B99: 2019-07-17 | D99: IGL | E99: Sell | F99: 319.5 | G99: 328 | H99: 318 | I99: 310 -305 | J99: Profit of Rs.1.5/- | K99: =F99-H99 -> 1.5 | L99: 0.47% | O99: Neutral | P99: 2019-07-22 | R99: H
A100: 60 | B100: 2019-07-17 | D100: RAYMOND JUL FUT | E100: Buy | F100: 701 | G100: 686 | H100: 686 | I100: 730 | J100: Loss of Rs.15 /- | K100: =H100-F100 -> -15 | M100: =K100*N100 -> -12000 | N100: 800 | O100: Unsuccessful | P100: 2019-07-19 | R100: N
A101: 61 | B101: 2019-07-18 | D101: LICHSGFIN | E101: Buy | F101: 541.5 | G101: 524.3 | H101: 524.3 | I101: 570-575 | J101: Loss of Rs.17.2 /- | K101: -17.2 | L101: =K101/F101 -> -3.18% | O101: Unsuccessful | P101: 2019-07-19 | R101: R
A102: 62 | B102: 2019-07-18 | D102: APOLLOHOSP JUL FUT | E102: Buy | F102: 1393 | G102: 1367 | H102: 1373 | I102: 1430-1440 | J102: Loss of Rs.20 /- | K102: =H102-F102 -> -20 | M102: =K102*N102 -> -10000 | N102: 500 | O102: Unsuccessful | P102: 2019-07-19 | R102: N
A103: 63 | B103: 2019-07-18 | D103: POWERGRID JUL FUT | E103: Buy | F103: 206.25 | G103: 203.25 | H103: 208.25 | I103: 212-213 | J103: Profit of Rs.2/- | K103: =H103-F103 -> 2 | M103: =K103*N103 -> 8000 | N103: 4000 | O103: Successful | P103: 2019-07-19 | R103: N
A104: 64 | B104: 2019-07-19 | D104: MCDOWELL-N | E104: Sell | F104: 602 | G104: 618 | H104: 591 | I104: 570 | J104: Profit of Rs.11/- | K104: =F104-H104 -> 11 | L104: =K104/F104 -> 1.83% | O104: Successful | P104: 2019-07-19 | R104: R
A105: 65 | B105: 2019-07-19 | D105: AMBUJACEM JUL FUT | E105: Buy | F105: 219.5 | G105: 214 | H105: 215 | I105: 230 | J105: Loss of Rs.4.5 /- | K105: =H105-F105 -> -4.5 | M105: =K105*N105 -> -11250 | N105: 2500 | O105: Unsuccessful | P105: 2019-07-19 | R105: N
A106: 66 | B106: 2019-07-19 | D106: NIFTY JUL FUT | E106: Buy | F106: 11532.5 | G106: 11487 | H106: 11487 | I106: 11600 | J106: Loss of Rs.45.5 /- | K106: =H106-F106 -> -45.5 | M106: =K106*N106 -> -3412.5 | N106: 75 | O106: Unsuccessful | P106: 2019-07-19 | R106: R
A107: 67 | B107: 2019-07-22 | D107: VEDL JUL FUT | E107: Sell | F107: 165 | G107: 169 | H107: 168.5 | I107: 155 | J107: Loss of Rs.3.5 /- | K107: 3.5 | M107: =K107*N107 -> 10500 | N107: 3000 | O107: Unsuccessful | P107: 2019-07-22 | R107: N
A108: 68 | B108: 2019-07-22 | D108: AXISBANK | E108: Buy | F108: 732 | G108: 715 | H108: 712.5 | I108: 755-765 | J108: Loss of Rs.19.50/- | K108: -19.5 | L108: =K108/F108 -> -2.66% | O108: Unsuccessful | P108: 2019-07-24 | R108: H
A109: 69 | B109: 2019-07-22 | D109: BANKINDIA | E109: Buy | F109: 80.5 | G109: 78 | H109: 78 | I109: 84-85 | J109: Loss of Rs.2.50/- | K109: =H109-F109 -> -2.5 | L109: =K109/F109 -> -3.11% | O109: Unsuccessful | P109: 2019-07-24 | R109: H
A110: 70 | B110: 2019-07-22 | D110: RAYMOND JUL FUT | E110: Buy | F110: 681 | G110: 666 | H110: 666 | I110: 700 | J110: Loss of Rs.15/- | K110: =H110-F110 -> -15 | M110: =K110*N110 -> -12000 | N110: 800 | O110: Unsuccessful | P110: 2019-07-23 | R110: R
A111: 71 | B111: 2019-07-22 | D111: POWERGRID JUL FUT | E111: Buy | F111: 204.25 | G111: 201.25 | H111: 206.15 | I111: 211 | J111: Profit of Rs.1.90/- | K111: =H111-F111 -> 1.9 | M111: =K111*N111 -> 7600 | N111: 4000 | O111: Successful | P111: 2019-07-23 | R111: N
A112: 72 | B112: 2019-07-23 | D112: MFSL AUG FUT | E112: Buy | F112: 408 | G112: 397 | H112: 414.5 | I112: 430 | J112: Profit of Rs.6.50/- | K112: =H112-F112 -> 6.5 | M112: =K112*N112 -> 7800 | N112: 1200 | O112: Successful | P112: 2019-07-24 | R112: N
A113: 73 | B113: 2019-07-24 | D113: IGL | E113: Sell | F113: 322.5 | G113: 331 | H113: 318.5 | I113: 310-305 | J113: Profit of Rs.4/- | K113: =F113-H113 -> 4 | L113: =K113/F113 -> 1.24% | O113: Successful | P113: 2019-07-24 | R113: H
A114: 74 | B114: 2019-07-24 | D114: NIFTY JUL FUT | E114: Buy | F114: 11235 | G114: 11177 | H114: 11277.5 | I114: 11280-11300 | J114: Profit of Rs.42.50/- | K114: =H114-F114 -> 42.5 | M114: =K114*N114 -> 3187.5 | N114: 75 | O114: Successful | P114: 2019-07-24 | R114: R
A115: 75 | B115: 2019-07-25 | D115: RELIANCE AUG FUT | E115: Buy | F115: 1240-1243 | G115: 1218 | I115: 1275-1280 | J115: Open
A116: 76 | B116: 2019-07-25 | D116: AMARAJABAT AUG FUT | E116: Buy | F116: 629-631 | G116: 613 | I116: 650-660 | J116: Open
A126: CLBS = Closing Basis ***
A127: Dividend adjusted <> | F127: Reinitiated $
F128: Revised stoploss #
A130: Master Trade High Risk
A131: Sr.no | B131: Date | D131: Company | E131: Rec | F131: Rec Price | G131: Stop Loss | H131: Call Closed At | I131: Target | J131: Remark | K131: Profit / Loss per share | L131: Gain / Loss per Lot | M131: Lot | N131: Status | O131: Closed Date
A132: 1 | B132: 2019-07-01 | D132: GAIL JUL FUT | E132: Buy | F132: 310.5 | G132: 298 | H132: 314.25 | I132: 325 | J132: Profit of Rs.3 /- | K132: =H132-F132 -> 3.75 | L132: =3*M132 -> 8001 | M132: 2667 | N132: Successful | O132: 2019-07-01 | R132: H
D133: GAIL 320 CE | E133: Sell | F133: 6 | H133: 6.75 | K133: =F133-H133 -> -0.75
A134: 2 | B134: 2019-07-03 | D134: BIOCON JUL FUT | E134: Buy | F134: 252 | G134: 243 | H134: 244 | I134: 265-268 | J134: Loss of Rs.8 /- | K134: =H134-F134 -> -8 | L134: =K134*M134 -> -14400 | M134: 1800 | N134: Unsuccessful | O134: 2019-07-05 | R134: R
A135: 3 | B135: 2019-07-03 | D135: GAIL JUL FUT | E135: Buy | F135: 153.25 | G135: 148.5 | H135: 148.5 | I135: 162.5 | J135: Loss of Rs.2.75 /- | K135: =H135-F135 -> -4.75 | L135: =-2.75*M135 -> -14668.5 | M135: 5334 | N135: Unsuccessful | O135: 2019-07-09 | R135: H
D136: GAIL 315 CE | E136: Sell | F136: 3 | H136: 1 | K136: =F136-H136 -> 2
A137: 4 | B137: 2019-07-12 | D137: HINDUNILVR JUL FUT | E137: Buy | F137: 1727.5 | G137: 1680 | H137: 1758 | I137: 1800 | J137: Profit of Rs.26.5 /- | K137: =H137-F137 -> 30.5 | L137: =26.5*M137 -> 7950 | M137: 300 | N137: Successful | O137: 2019-07-17 | R137: H
D138: HINDUNILVR 1760 CE | E138: Sell | F138: 21 | H138: 25 | K138: =F138-H138 -> -4
A139: 5 | B139: 2019-07-12 | D139: BRITANNIA JUL FUT | E139: Buy | F139: 2755 | G139: 2685 | H139: 2797.5 | I139: 2900 | J139: Profit of Rs.42.5/- | K139: =H139-F139 -> 42.5 | L139: =K139*M139 -> 8500 | M139: 200 | N139: Successful | O139: 2019-07-12 | R139: R
A140: 6 | B140: 2019-07-16 | D140: BRITANNIA JUL FUT | E140: Buy | F140: 2750 | G140: 2675 | H140: 2797.5 | I140: 2900 | J140: Profit of Rs.47.5/- | K140: =H140-F140 -> 47.5 | L140: =K140*M140 -> 9500 | M140: 200 | N140: Successful | O140: 2019-07-17 | R140: R
A141: 7 | B141: 2019-07-24 | D141: NIFTY AUG FUT | E141: Buy | F141: 11310-11330 | G141: 11130 | I141: 11600 | J141: Open | R141: H
D142: NIFTY 29AUG 11500 CE | E142: Sell | F142: 95-100 | R142: H
A143: 8 | B143: 2019-07-24 | D143: BANKNIFTY AUG FUT | E143: Buy | F143: 29060-29110 | G143: 28450 | I143: 30000 | J143: Open | R143: H
D144: BANKNIFTY 29AUG 29500 CE | E144: Sell | F144: 340-360 | R144: H
A149: Master Trade Medium Risk
A150: Sr.no | B150: Date | D150: Company | E150: Rec | F150: Rec Price | G150: Stop Loss | H150: Call Closed At | I150: Target | J150: Remark | K150: Profit/ Loss per lot | L150: Gain / Loss per Lot | M150: Lot | N150: Status | O150: Closed Date
A151: 1 | B151: 2019-06-28 | D151: NIFTY 11950 CE 4-JULY | E151: Buy | F151: 39.5 | G151: 18 | H151: 18 | I151: 70-80 | J151: Loss of Rs.21.5 /- | K151: =H151-F151 -> -21.5 | L151: =K151*M151 -> -1612.5 | M151: 75 | N151: Unsuccessful | O151: 2019-07-02 | R151: H
A152: 2 | B152: 2019-07-04 | D152: NIFTY 4-Jul 11950 PE | E152: Buy | F152: 16 | H152: 27 | I152: 45 | J152: Profit of Rs.11 /- | K152: 11 | L152: 825 | M152: 75 | N152: Successful | O152: 2019-07-04 | R152: R
A153: 3 | B153: 2019-07-05 | D153: NIFTY 11-Jul 11850 PE | E153: Buy | F153: 45 | H153: 60 | I153: 100 | J153: Profit of Rs.15 /- | K153: 15 | L153: 1125 | M153: 75 | N153: Successful | O153: 2019-07-05 | R153: H
A154: 4 | B154: 2019-07-05 | D154: NIFTY 11-Jul 11850 PE | E154: Buy | F154: 49 | H154: 64.5 | I154: 100 | J154: Profit of Rs.15.5 /- | K154: 15.5 | L154: 1162.5 | M154: 75 | N154: Successful | O154: 2019-07-05 | R154: H
A155: 5 | B155: 2019-07-05 | D155: NIFTY 11-Jul 11850 PE | E155: Buy | F155: 45 | H155: 59 | I155: 100 | J155: Profit of Rs.14 /- | K155: 14 | L155: 1050 | M155: 75 | N155: Successful | O155: 2019-07-05 | R155: H
A156: 6 | B156: 2019-07-08 | D156: NIFTY 11-Jul 11750 CE | E156: Buy | F156: 29.31 | H156: 12 | I156: 60-80 | J156: Loss of Rs.17.31/- | K156: -17.31 | L156: -1298.25 | M156: 75 | N156: Unsuccessful | O156: 2019-07-08 | R156: H
A157: 7 | B157: 2019-07-09 | D157: NIFTY 11550 CE 11-JULY | E157: Buy | F157: 42.5 | G157: 18 | H157: 55.5 | I157: 80-90 | J157: Profit of Rs.13 /- | K157: 13 | L157: 975 | M157: 75 | N157: Successful | O157: 2019-07-09 | R157: H
A158: 8 | B158: 2019-07-09 | D158: COALINDIA 240 CE JULY | E158: Buy | F158: 3.25 | G158: 1.8 | H158: 1.9 | I158: 6-6.5 | J158: Loss of Rs.1.35/- | K158: -1.35 | L158: -2970 | M158: 2200 | N158: Unsuccessful | O158: 2019-07-09 | R158: H
A159: 9 | B159: 2019-07-09 | D159: NIFTY 11550 CE 11-JULY | E159: Buy | F159: 38.5 | G159: 13 | H159: 49 | I159: 80-90 | J159: Profit of Rs.10.5 /- | K159: =H159-F159 -> 10.5 | L159: =K159*M159 -> 787.5 | M159: 75 | N159: Successful | O159: 2019-07-09 | R159: H
A160: 10 | B160: 2019-07-09 | D160: NIFTY 11550 CE 11-JULY | E160: Buy | F160: 31.5 | G160: 10 | H160: 48 | I160: 70 | J160: Profit of Rs.16.5/- | K160: =H160-F160 -> 16.5 | L160: =K160*M160 -> 1237.5 | M160: 75 | N160: Successful | O160: 2019-07-09 | R160: H
A161: 11 | B161: 2019-07-10 | D161: NIFTY 11600 CE 18-JULY | E161: Buy | F161: 61 | G161: 37 | H161: 37 | I161: 100 | J161: Loss of Rs.24/- | K161: =H161-F161 -> -24 | L161: =K161*M161 -> -1800 | M161: 75 | N161: Unsuccessful | O161: 2019-07-10 | R161: H
A162: 12 | B162: 2019-07-12 | D162: NIFTY 11550 PE 18-JULY | E162: Buy | F162: 31.5 | G162: 15 | H162: 41 | I162: 55 -60 | J162: Profit of Rs.9.5/- | K162: 9.5 | L162: 712.5 | M162: 75 | N162: Successful | O162: 2019-07-12 | R162: H
A163: 13 | B163: 2019-07-16 | D163: NIFTY 11600 PE 18-JULY | E163: Buy | F163: 30.5 | G163: 17 | H163: 20 | I163: 55 -60 | J163: Loss of Rs.10.5/- | K163: -10.5 | L163: -787.5 | M163: 75 | N163: Unsuccessful | O163: 2019-07-16 | R163: H
A164: 14 | B164: 2019-07-17 | D164: BANKNIFTY 30700 PE 18 JUL | E164: Buy | F164: 82.5 | H164: 122.5 | I164: 200 | J164: Profit of Rs.40/- | K164: 40 | L164: 800 | M164: 20 | N164: Successful | O164: 2019-07-17 | R164: R
A165: 15 | B165: 2019-07-18 | D165: HDFCBANK 2420 CE JULY | E165: Buy | F165: 29 | G165: 10 | H165: 8.5 | I165: 60 | J165: Loss of Rs.20.5/- | K165: -20.5 | L165: -5125 | M165: 250 | N165: Unsuccessful | O165: 2019-07-22 | R165: H
A166: 16 | B166: 2019-07-18 | D166: NIFTY 11700 PE 18 JUL | E166: Buy | F166: 37.5 | G166: 80 | H166: 55 | J166: Profit of Rs.17.5/- | K166: 17.5 | L166: 1312.5 | M166: 75 | N166: Successful | O166: 2019-07-18 | R166: R
A167: 17 | B167: 2019-07-18 | D167: DABUR 420 PE JUL | E167: Buy | F167: 3.55 | H167: 5.05 | I167: 6.-8 | J167: Profit of Rs.1.5/- | K167: 1.5 | L167: 1875 | M167: 1250 | N167: Successful | O167: 2019-07-18 | R167: H
A168: 18 | B168: 2019-07-19 | D168: BANKNIFTY 30700 CE JUL | E168: Buy | F168: 100 | H168: 0 | I168: 250 | J168: Loss of Rs.100/- | K168: -100 | L168: -2000 | M168: 20 | N168: Unsuccessful | O168: 2019-07-25 | R168: H
A169: 19 | B169: 2019-07-22 | D169: YESBANK JUL 90 PE | E169: Buy | F169: 2.1 | H169: 3.8 | I169: 7 | J169: Profit of Rs.1.7/- | K169: =H169-F169 -> 1.7 | L169: =K169*M169 -> 3740 | M169: 2200 | N169: Successful | O169: 2019-07-22 | R169: R
A170: 20 | B170: 2019-07-23 | D170: HINDALCO JUL 200 PE | E170: Buy | F170: 1.25 | H170: 2.9 | I170: 5 | J170: Profit of Rs.1.65/- | K170: =H170-F170 -> 1.65 | L170: =K170*M170 -> 5775 | M170: 3500 | N170: Successful | O170: 2019-07-24 | R170: R
A171: 21 | B171: 2019-07-23 | D171: SBIN JUL 350 CE | E171: Buy | F171: 2.25 | G171: 0.5 | H171: 0.5 | I171: 6 | J171: Loss of Rs.1.75/- | K171: =H171-F171 -> -1.75 | L171: =K171*M171 -> -5250 | M171: 3000 | N171: Unsuccessful | O171: 2019-07-24 | R171: R
A172: 22 | B172: 2019-07-24 | D172: NIFTY JUL 11300 CE | E172: Buy | F172: 26 | H172: 36.5 | I172: 70 | J172: Profit of Rs.10.50/- | K172: =H172-F172 -> 10.5 | L172: =K172*M172 -> 787.5 | M172: 75 | N172: Successful | O172: 2019-07-25 | R172: R
A173: 23 | B173: 2019-07-25 | D173: NIFTY 01-AUG 11350 CE | E173: Buy | F173: 35 | H173: 49 | I173: 60-80 | J173: Profit of Rs.14/- | K173: =H173-F173 -> 14 | L173: =K173*M173 -> 1050 | M173: 75 | N173: Successful | O173: 2019-07-25
A174: 24 | B174: 2019-07-25 | D174: NIFTY 01-AUG 11350 CE | E174: Buy | F174: 32-34 | I174: 60-80
A176: Techno -Funda (positional)
A177: Sr.no | B177: Date | D177: Company | E177: Rec | F177: Rec Price | G177: Stop Loss*** | H177: Call Closed At | I177: Target | J177: Remark | K177: Profit / Loss per Share | L177: Gain / Loss % | M177: Status | N177: Closed Date | O177: NSE Closed Price
A178: 1 | B178: 2019-04-04 | D178: FINPIPE | E178: Buy | F178: 474.5 | G178: 435 | H178: 524 | I178: 560 | J178: Profit of Rs.49.5 /- | K178: =H178-F178 -> 49.5 | L178: =K178/F178 -> 10.43% | M178: Successful | N178: 2019-07-01 | R178: H
A179: 2 | B179: 2019-05-24 | D179: APOLLOTYRE | E179: Buy | F179: 183.5 | G179: 178.7 | H179: 181.5 | I179: 220-230 | J179: Loss of Rs.2/- | K179: =H179-F179 -> -2 | L179: -1.09% | M179: Unsuccessful | N179: 2019-07-24 | R179: R
A182: CLBS = Closing Basis *** | F182: Reinitiated $
A183: Dividend adjusted <> | F183: Revised stoploss #
B188: Investment Idea
A189: Sr.no | B189: Date | D189: Company | E189: Rec | F189: Rec Price | G189: Point of Review | H189: Close Rate | I189: Target | J189: Remark | K189: Profit / Loss per Share | L189: Gain / Loss % | M189: Status | N189: Closed Date
A190: 1 | B190: 2013-11-01 | D190: L&T Finance Holding | E190: Accu | F190: 82.00 | G190: - | H190: 100 | I190: 100.00 | J190: Target Achieved | K190: =H190-F190 -> 18.00 | L190: =K190/F190 -> 21.95% | M190: Successful | N190: 2016-10-14
A191: 2 | B191: 2014-06-04 | D191: Finolex Inds | E191: Buy | F191: 257.00 | G191: - | H191: 300 | I191: 300.00 | J191: Target Achieved | K191: =H191-F191 -> 43.00 | L191: 16.73% | M191: Successful | N191: 2014-07-02
A192: 3 | B192: 2014-07-08 | D192: JK Cement | E192: Buy | F192: 393.00 | G192: - | H192: 468 | I192: 468.00 | J192: Target Achieved | K192: =H192-F192 -> 75.00 | L192: 19.08% | M192: Successful | N192: 2014-08-12
A193: 4 | B193: 2014-08-06 | D193: Finolex Cables | E193: Buy | F193: 205.00 | G193: - | H193: 275 | I193: 250.00 | J193: Target Achieved | K193: 70.00 | L193: 34.15% | M193: Successful | N193: 2014-11-19
A194: 5 | B194: 2014-09-04 | D194: Exide Inds | E194: Buy | F194: 162.00 | G194: - | H194: 190 | I194: 190.00 | J194: Target Achieved | K194: 28.00 | L194: 17.28% | M194: Successful | N194: 2015-01-02
A195: 6 | B195: 2014-09-04 | D195: Deepak Nitrite | E195: Buy | F195: 75.00 | G195: - | H195: 91.5 | I195: 95-100 | J195: Profit of Rs.16.50/- | K195: 16.50 | L195: 22.00% | M195: Successful | N195: 2014-11-11
A196: 7 | B196: 2014-10-01 | D196: Mercks | E196: Buy | F196: 850.00 | G196: - | H196: 982.5 | I196: 1050.00 | J196: Profit of Rs.132.50/- | K196: 132.50 | L196: 15.59% | M196: Successful | N196: 2015-02-04
A197: 8 | B197: 2014-10-01 | D197: Grindwell Norton | E197: Buy | F197: 475.00 | G197: - | H197: 515 | I197: 600.00 | J197: Profit of Rs.40/- | K197: 40.00 | L197: 8.42% | M197: Successful | N197: 2014-10-27
A198: 9 | B198: 2014-10-01 | D198: Snowman Logistics | E198: Buy | F198: 86.00 | G198: - | H198: 99 | I198: 140.00 | J198: Profit of Rs.13.00/- | K198: 13.00 | L198: 15.12% | M198: Successful | N198: 2014-10-27
A199: 10 | B199: 2014-10-14 | D199: Birla Corp | E199: Buy | F199: 496.60 | G199: - | H199: 621 | I199: 580.00 | J199: Target Achieved | K199: 124.40 | L199: 25.05% | M199: Successful | N199: 2016-08-23
A200: 11 | B200: 2014-10-14 | D200: Ultratech Cem | E200: Buy | F200: 2481.90 | G200: - | H200: 2840 | I200: 2870.00 | J200: Profit of Rs.358.10/- | K200: 358.10 | L200: 14.43% | M200: Successful | N200: 2015-01-13
A201: 12 | B201: 2014-10-16 | D201: Sintex Inds | E201: Buy | F201: 84.50 | G201: - | H201: 93 | I201: 110.00 | J201: Profit of Rs.8.50/- | K201: 8.50 | L201: 10.06% | M201: Successful | N201: 2014-10-27
A202: 13 | B202: 2014-10-16 | D202: HSIL | E202: Buy | F202: 401.00 | G202: - | H202: 428 | I202: 450.00 | J202: Profit of Rs.27.00/- | K202: 27.00 | L202: 6.73% | M202: Successful | N202: 2015-01-16
A203: 14 | B203: 2014-10-16 | D203: Eveready Inds | E203: Buy | F203: 101.00 | G203: - | H203: 112 | I203: 120.00 | J203: Profit of Rs.11.00/- | K203: 11.00 | L203: 10.89% | M203: Successful | N203: 2014-10-27
A204: 15 | B204: 2014-11-11 | D204: Pennar Inds | E204: Buy | F204: 59.00 | G204: - | H204: 76 | I204: 76.00 | J204: Target Achieved | K204: 17.00 | L204: 28.81% | M204: Successful | N204: 2017-10-24
A205: 16 | B205: 2014-11-11 | D205: Snowman Logistics | E205: Buy | F205: 99.00 | G205: - | H205: 120 | I205: 120.00 | J205: Profit of Rs.21/- | K205: 21.00 | L205: 21.21% | M205: Successful | N205: 2014-11-17
A206: 17 | B206: 2014-11-13 | D206: Dharamsi Morarji Chem | E206: Buy | F206: 22.00 | G206: - | H206: 33.55 | I206: 32.00 | J206: Profit of Rs 11.55/- | K206: 11.55 | L206: 52.50% | M206: Successful | N206: 2015-07-03
A207: 18 | B207: 2014-12-03 | D207: Tatachem | E207: Buy | F207: 440.00 | G207: - | H207: 520 | I207: 520.00 | J207: Profit of Rs 80.00/- | K207: 80.00 | L207: 18.18% | M207: Successful | N207: 2015-07-23
A208: 19 | B208: 2014-12-03 | D208: Advanta | E208: Buy | F208: 360.00 | G208: - | H208: 427 | I208: 425.00 | J208: Profit of Rs.67.00/- | K208: 67.00 | L208: 18.61% | M208: Successful | N208: 2015-02-23
A209: 20 | B209: 2015-01-08 | D209: GDL | E209: Buy | F209: 360.00 | G209: - | H209: 455 | I209: 420.00 | J209: Profit of Rs.95.00/- | K209: 95.00 | L209: 26.39% | M209: Successful | N209: 2015-01-20
A210: 21 | B210: 2015-01-08 | D210: NRB Bearing | E210: Buy | F210: 130.00 | H210: 175.5 | I210: 165.00 | J210: Profit of Rs 45.50/- | K210: 45.50 | L210: 35.00% | M210: Successful | N210: 2017-12-19
A211: 22 | B211: 2015-02-05 | D211: GSFC | E211: Accu | F211: 98.00 | H211: 120 | I211: 120.00 | J211: Target Achieved | K211: 22.00 | L211: 22.45% | M211: Successful | N211: 2017-01-18
A212: 23 | B212: 2015-02-05 | D212: Sundrmfast | E212: Accu | F212: 196.00 | H212: 262 | I212: 255.00 | J212: Target Achieved | K212: 66.00 | L212: 33.67% | M212: Successful | N212: 2016-08-17
A213: 24 | B213: 2015-03-04 | D213: GPPL | E213: Accu | F213: 235 | H213: 77.00 | I213: 280-285 | J213: Loss of Rs.158/- | K213: =H213-F213 -> -158.00 | L213: -67.23% | M213: Unsuccessful | N213: 2019-02-26
A214: 25 | B214: 2015-03-04 | D214: ORIENTCEM | E214: Accu | F214: 185.00 | H214: 224 | I214: 220-225 | J214: Target Achieved | K214: 39.00 | L214: =K214/F214 -> 21.08% | M214: Successful | N214: 2016-10-04
A215: 26 | B215: 2015-03-27 | D215: PFS | E215: Accu | F215: 49.5 | H215: 15.85 | I215: 67.00 | J215: Loss of Rs.33.65/- | K215: =H215-F215 -> -33.65 | L215: =K215/F215 -> -68% | M215: Unsuccessful | N215: 2019-06-11
A216: 27 | B216: 2015-03-30 | D216: Walchandnagar Ind Ltd | E216: Accu | F216: 183.50 | H216: 219 | I216: 218.00 | J216: Profit of Rs.35.50/- | K216: 35.50 | L216: =K216/F216 -> 19.35% | M216: Successful | N216: 2015-04-09
A217: 28 | B217: 2015-04-20 | D217: Kalpataru Power Transmission Ltd | E217: Accu | F217: =(227+237)/2 -> 232.00 | H217: 298 | I217: 298.00 | J217: Target Achieved | K217: 66.00 | L217: 28.45% | M217: Successful | N217: 2017-03-29
A218: 29 | B218: 2015-05-04 | D218: Mastek Ltd | E218: Buy | F218: 385.00 | H218: =212.5+331 -> 543.5 | I218: 510.00 | J218: Profit of Rs 158.50/- | K218: 158.50 | L218: 41.17% | M218: Successful | N218: 2015-08-19
A219: 30 | B219: 2015-05-04 | D219: Suprajit Eng | E219: Buy | F219: 115.50 | H219: 146 | I219: 142.00 | J219: Profit of Rs 30.50/- | K219: 30.50 | L219: 26.41% | M219: Successful | N219: 2015-07-17
A220: 31 | B220: 2015-05-27 | D220: TCI | E220: Buy | F220: 237.50 | H220: 279.5 | I220: 278.00 | J220: Target Achieved | K220: 42.00 | L220: 17.68% | M220: Successful | N220: 2015-08-06
A221: 32 | B221: 2015-06-19 | D221: HSIL | E221: Accu | F221: 340.00 | H221: 448 | I221: 448.00 | J221: Target Achieved | K221: 108.00 | L221: 31.76% | M221: Successful | N221: 2017-10-10
A222: 33 | B222: 2015-07-06 | D222: Capital First | E222: Accu | F222: 390.00 | H222: 460 | I222: 460.00 | J222: Target Achieved | K222: 70.00 | L222: 17.95% | M222: Successful | N222: 2016-04-18
A223: 34 | B223: 2015-07-10 | D223: Dolphin OffShore | E223: Accu | F223: 122.5 | H223: 61.00 | I223: 172.00 | J223: Loss of Rs.61.50/- | K223: -61.50 | L223: -50.20% | M223: Unsuccessful | N223: 2018-08-21
A224: 35 | B224: 2015-08-03 | D224: Allcargo logistics | E224: Accu | F224: 297.50 | H224: 350 | I224: 360.00 | J224: Profit of Rs 52.50/- | K224: 52.50 | L224: 17.65% | M224: Successful | N224: 2015-08-16
A225: 36 | B225: 2015-08-03 | D225: Camline Fine | E225: Accu | F225: 115.50 | H225: 149 | I225: 140.00 | J225: Profit of Rs 33.50/- | K225: 33.50 | L225: 29.00% | M225: Successful | N225: 2017-01-05
A226: 37 | B226: 2015-09-04 | D226: TCI | E226: Accu | F226: 226.00 | H226: 292 | I226: 292.00 | J226: Target Achieved | K226: 66.00 | L226: 29.20% | M226: Successful | N226: 2015-10-09
A227: 38 | B227: 2015-09-07 | D227: Kalpataru Power Transmission Ltd | E227: Accu | F227: 232.50 | H227: 312.5 | I227: 310.00 | J227: Target Achieved | K227: 80.00 | L227: 34.41% | M227: Successful | N227: 2017-03-29
A228: 39 | B228: 2015-09-21 | D228: LLOYD ELECTRIC & ENG LTD | E228: Accu | F228: 196.50 | H228: 238 | I228: 238.00 | J228: Target Achieved | K228: 41.50 | L228: 21.12% | M228: Successful | N228: 2015-10-14
A229: 40 | B229: 2015-09-24 | D229: L&T Finance Holding | E229: Accu | F229: 65.00 | H229: 82 | I229: 82.00 | J229: Target Achieved | K229: 17.00 | L229: 26.15% | M229: Successful | N229: 2016-07-27
... 108 more rows

Sheet Sheet2 (hidden)
A1: SYMBOL | B1: SERIES | C1: OPEN | D1: HIGH | E1: LOW | F1: CLOSE | G1: LAST | H1: PREVCLOSE | I1: TOTTRDQTY | J1: TOTTRDVAL | K1: TIMESTAMP | L1: TOTALTRADES | M1: ISIN | N1: ISIN
A2: 20MICRONS | B2: EQ | C2: 36.4 | D2: 36.95 | E2: 35.2 | F2: 35.95 | G2: 36 | H2: 35.95 | I2: 19014 | J2: 686168.3 | K2: 2019-07-24 | L2: 311 | M2: INE144J01027
A3: 21STCENMGM | B3: EQ | C3: 15.95 | D3: 15.95 | E3: 15.65 | F3: 15.95 | G3: 15.95 | H3: 15.95 | I3: 137 | J3: 2176.35 | K3: 2019-07-24 | L3: 9 | M3: INE253B01015
A4: 3IINFOTECH | B4: EQ | C4: 2.6 | D4: 2.6 | E4: 2.45 | F4: 2.55 | G4: 2.55 | H4: 2.6 | I4: 1297934 | J4: 3261628.95 | K4: 2019-07-24 | L4: 629 | M4: INE748C01020
A5: 3MINDIA | B5: EQ | C5: 21853.75 | D5: 21900 | E5: 21400 | F5: 21454.2 | G5: 21401.5 | H5: 21828.4 | I5: 912 | J5: 19656944.05 | K5: 2019-07-24 | L5: 461 | M5: INE470A01017
A6: 3PLAND | B6: EQ | C6: 7.9 | D6: 7.9 | E6: 7.6 | F6: 7.85 | G6: 7.85 | H6: 7.9 | I6: 1013 | J6: 7715.35 | K6: 2019-07-24 | L6: 6 | M6: INE105C01023
A7: 5PAISA | B7: EQ | C7: 191 | D7: 202.75 | E7: 191 | F7: 202.75 | G7: 202.75 | H7: 193.1 | I7: 12779 | J7: 2562353.45 | K7: 2019-07-24 | L7: 367 | M7: INE618L01018
A8: 63MOONS | B8: EQ | C8: 94 | D8: 94 | E8: 88.55 | F8: 89.35 | G8: 89.6 | H8: 93.2 | I8: 176495 | J8: 15896044.85 | K8: 2019-07-24 | L8: 1830 | M8: INE111B01023
A9: 8KMILES | B9: EQ | C9: 79.85 | D9: 81.15 | E9: 73.45 | F9: 73.45 | G9: 73.45 | H9: 77.3 | I9: 421508 | J9: 32430600.7 | K9: 2019-07-24 | L9: 2063 | M9: INE650K01021
A10: A2ZINFRA | B10: EQ | C10: 9.95 | D10: 10.6 | E10: 9.7 | F10: 10.25 | G10: 10.5 | H10: 9.95 | I10: 747762 | J10: 7559198.2 | K10: 2019-07-24 | L10: 898 | M10: INE619I01012
A11: AARTIDRUGS | B11: EQ | C11: 484 | D11: 485.5 | E11: 478 | F11: 481.3 | G11: 481 | H11: 486 | I11: 5902 | J11: 2848851.85 | K11: 2019-07-24 | L11: 446 | M11: INE767A01016
A12: AARTIIND | B12: EQ | C12: 1616.25 | D12: 1633.25 | E12: 1613.65 | F12: 1629.7 | G12: 1625 | H12: 1631.4 | I12: 41540 | J12: 67632382.85 | K12: 2019-07-24 | L12: 2988 | M12: INE769A01020
A13: AARVEEDEN | B13: EQ | C13: 17.8 | D13: 17.8 | E13: 16.25 | F13: 17.15 | G13: 17.3 | H13: 16.25 | I13: 4540 | J13: 77337.35 | K13: 2019-07-24 | L13: 112 | M13: INE273D01019
A14: AAVAS | B14: EQ | C14: 1497 | D14: 1499 | E14: 1445.25 | F14: 1455.2 | G14: 1460 | H14: 1497.85 | I14: 46525 | J14: 68317739.9 | K14: 2019-07-24 | L14: 1687 | M14: INE216P01012
A15: ABAN | B15: EQ | C15: 32 | D15: 32.9 | E15: 31.2 | F15: 31.9 | G15: 31.7 | H15: 32.35 | I15: 85338 | J15: 2720103.15 | K15: 2019-07-24 | L15: 821 | M15: INE421A01028
A16: ABB | B16: EQ | C16: 1381.1 | D16: 1391.4 | E16: 1351 | F16: 1361.95 | G16: 1356 | H16: 1374.95 | I16: 62557 | J16: 85593607.5 | K16: 2019-07-24 | L16: 5113 | M16: INE117A01022
A17: ABBOTINDIA | B17: EQ | C17: 8675 | D17: 8675.95 | E17: 8517 | F17: 8629 | G17: 8650 | H17: 8629.35 | I17: 7720 | J17: 66275562.75 | K17: 2019-07-24 | L17: 543 | M17: INE358A01014
A18: ABCAPITAL | B18: EQ | C18: 86.5 | D18: 86.55 | E18: 83.3 | F18: 84.2 | G18: 84.05 | H18: 86.4 | I18: 1318168 | J18: 111631383.8 | K18: 2019-07-24 | L18: 25944 | M18: INE674K01013
A19: ABFRL | B19: EQ | C19: 202.25 | D19: 204.75 | E19: 200 | F19: 204.05 | G19: 204.05 | H19: 201.85 | I19: 193974 | J19: 39381982.7 | K19: 2019-07-24 | L19: 4499 | M19: INE647O01011
A20: ABSLNN50ET | B20: EQ | C20: 266 | D20: 266 | E20: 260.67 | F20: 260.77 | G20: 260.77 | H20: 266 | I20: 62 | J20: 16208.83 | K20: 2019-07-24 | L20: 10 | M20: INF209KB1B87
A21: ACC | B21: EQ | C21: 1578.6 | D21: 1590.35 | E21: 1564 | F21: 1569.6 | G21: 1568 | H21: 1584.85 | I21: 594470 | J21: 935811604 | K21: 2019-07-24 | L21: 40623 | M21: INE012A01025
A22: ACCELYA | B22: EQ | C22: 829.3 | D22: 841.95 | E22: 815.3 | F22: 836.8 | G22: 840 | H22: 829.3 | I22: 7440 | J22: 6173842.75 | K22: 2019-07-24 | L22: 463 | M22: INE793A01012
A23: ACE | B23: EQ | C23: 76 | D23: 77.9 | E23: 75.9 | F23: 76.65 | G23: 76.6 | H23: 75.95 | I23: 63818 | J23: 4874484.1 | K23: 2019-07-24 | L23: 795 | M23: INE731H01025
A24: ADANIENT | B24: EQ | C24: 133.45 | D24: 134 | E24: 127.85 | F24: 129.8 | G24: 129.45 | H24: 134.05 | I24: 5403438 | J24: 702658790.2 | K24: 2019-07-24 | L24: 23638 | M24: INE423A01024
A25: ADANIGAS | B25: EQ | C25: 163.6 | D25: 164.75 | E25: 159.6 | F25: 161.3 | G25: 161.1 | H25: 163.5 | I25: 346275 | J25: 55882055.1 | K25: 2019-07-24 | L25: 4279 | M25: INE399L01023
A26: ADANIGREEN | B26: EQ | C26: 49.4 | D26: 49.5 | E26: 48.25 | F26: 48.45 | G26: 48.25 | H26: 48.8 | I26: 671080 | J26: 32586684.7 | K26: 2019-07-24 | L26: 2284 | M26: INE364U01010
A27: ADANIPORTS | B27: EQ | C27: 400 | D27: 400.55 | E27: 378 | F27: 380.8 | G27: 379.45 | H27: 399.75 | I27: 4748109 | J27: 1831840438 | K27: 2019-07-24 | L27: 62904 | M27: INE742F01042
A28: ADANIPOWER | B28: EQ | C28: 63.1 | D28: 63.65 | E28: 61.7 | F28: 62.55 | G28: 62.2 | H28: 63.1 | I28: 9184835 | J28: 573083682.7 | K28: 2019-07-24 | L28: 18574 | M28: INE814H01011
A29: ADANITRANS | B29: EQ | C29: 213.1 | D29: 214.5 | E29: 206 | F29: 208.3 | G29: 208 | H29: 214.05 | I29: 59323 | J29: 12364418.45 | K29: 2019-07-24 | L29: 2165 | M29: INE931S01010
A30: ADFFOODS | B30: EQ | C30: 257.05 | D30: 257.95 | E30: 245.3 | F30: 253.35 | G30: 252 | H30: 256.8 | I30: 18401 | J30: 4646008.55 | K30: 2019-07-24 | L30: 999 | M30: INE982B01019
A31: ADHUNIK | B31: EQ | C31: 1.1 | D31: 1.15 | E31: 1.1 | F31: 1.15 | G31: 1.15 | H31: 1.1 | I31: 64479 | J31: 74137.35 | K31: 2019-07-24 | L31: 30 | M31: INE400H01019
A32: ADHUNIKIND | B32: EQ | C32: 92.5 | D32: 101 | E32: 91.5 | F32: 93.7 | G32: 93.1 | H32: 92.2 | I32: 23369 | J32: 2214133.85 | K32: 2019-07-24 | L32: 431 | M32: INE452L01012
A33: ADLABS | B33: EQ | C33: 4.2 | D33: 4.3 | E33: 3.95 | F33: 3.95 | G33: 4.05 | H33: 4.15 | I33: 57974 | J33: 234026.2 | K33: 2019-07-24 | L33: 160 | M33: INE172N01012
A34: ADORWELD | B34: EQ | C34: 310 | D34: 310 | E34: 302.5 | F34: 302.85 | G34: 304.6 | H34: 304.2 | I34: 1921 | J34: 584725.3 | K34: 2019-07-24 | L34: 152 | M34: INE045A01017
A35: ADROITINFO | B35: EQ | C35: 9.15 | D35: 10.05 | E35: 9.15 | F35: 10 | G35: 9.8 | H35: 9.6 | I35: 8028 | J35: 79066.1 | K35: 2019-07-24 | L35: 53 | M35: INE737B01033
A36: ADSL | B36: EQ | C36: 13.9 | D36: 14.5 | E36: 13.5 | F36: 13.7 | G36: 13.85 | H36: 13.35 | I36: 13855 | J36: 194078.45 | K36: 2019-07-24 | L36: 76 | M36: INE102I01027
A37: ADVANIHOTR | B37: EQ | C37: 56.1 | D37: 56.1 | E37: 52 | F37: 54.8 | G37: 55 | H37: 56.1 | I37: 5723 | J37: 309026.75 | K37: 2019-07-24 | L37: 196 | M37: INE199C01026
A38: ADVENZYMES | B38: EQ | C38: 157.9 | D38: 159 | E38: 155 | F38: 156.45 | G38: 156.25 | H38: 157.75 | I38: 20596 | J38: 3219581.7 | K38: 2019-07-24 | L38: 534 | M38: INE837H01020
A39: AEGISCHEM | B39: EQ | C39: 198.05 | D39: 202.75 | E39: 195.4 | F39: 199 | G39: 201 | H39: 198.75 | I39: 81508 | J39: 16168866.75 | K39: 2019-07-24 | L39: 4739 | M39: INE208C01025
A40: AGARIND | B40: EQ | C40: 117.05 | D40: 117.05 | E40: 114.3 | F40: 116.85 | G40: 117 | H40: 118.55 | I40: 3854 | J40: 447943.8 | K40: 2019-07-24 | L40: 52 | M40: INE204E01012
A41: AGCNET | B41: EQ | C41: 100 | D41: 100 | E41: 90.35 | F41: 91.5 | G41: 90.4 | H41: 93.4 | I41: 2060 | J41: 189527.5 | K41: 2019-07-24 | L41: 59 | M41: INE676A01019
A42: AGLSL | B42: EQ | C42: 48.5 | D42: 50.9 | E42: 47.75 | F42: 48.1 | G42: 48.1 | H42: 50.95 | I42: 2618 | J42: 128064.95 | K42: 2019-07-24 | L42: 131 | M42: INE517U01013
A43: AGRITECH | B43: EQ | C43: 53.7 | D43: 54 | E43: 52 | F43: 52.4 | G43: 52 | H43: 52.5 | I43: 7707 | J43: 407645.95 | K43: 2019-07-24 | L43: 197 | M43: INE449G01018
A44: AGROPHOS | B44: BE | C44: 91 | D44: 96.6 | E44: 90.5 | F44: 91.7 | G44: 90.5 | H44: 92.05 | I44: 17877 | J44: 1648932.75 | K44: 2019-07-24 | L44: 80 | M44: INE740V01019
A45: AHLEAST | B45: EQ | C45: 166.1 | D45: 177.4 | E45: 166.05 | F45: 170.85 | G45: 171 | H45: 172.15 | I45: 243 | J45: 41420.3 | K45: 2019-07-24 | L45: 43 | M45: INE926K01017
A46: AHLUCONT | B46: EQ | C46: 299.3 | D46: 303.5 | E46: 295.65 | F46: 300.3 | G46: 301 | H46: 302.5 | I46: 2348 | J46: 703346.85 | K46: 2019-07-24 | L46: 145 | M46: INE758C01029
A47: AHLWEST | B47: EQ | C47: 290 | D47: 290 | E47: 270 | F47: 282.35 | G47: 280 | H47: 282.6 | I47: 487 | J47: 137679.9 | K47: 2019-07-24 | L47: 53 | M47: INE915K01010
A48: AIAENG | B48: EQ | C48: 1753.9 | D48: 1754.3 | E48: 1690 | F48: 1706.65 | G48: 1690 | H48: 1759.15 | I48: 8410 | J48: 14392337.4 | K48: 2019-07-24 | L48: 1048 | M48: INE212H01026
A49: AIONJSW | B49: EQ | C49: 17.75 | D49: 18.3 | E49: 17.05 | F49: 17.2 | G49: 17.15 | H49: 17.7 | I49: 25047 | J49: 436754 | K49: 2019-07-24 | L49: 168 | M49: INE743C01021
A50: AIRAN | B50: EQ | C50: 20.6 | D50: 23.4 | E50: 20.5 | F50: 20.8 | G50: 21 | H50: 21.3 | I50: 1434 | J50: 30410.7 | K50: 2019-07-24 | L50: 77 | M50: INE645W01026
A51: AJANTPHARM | B51: EQ | C51: 902.9 | D51: 908.95 | E51: 890.1 | F51: 891.6 | G51: 891.45 | H51: 907.25 | I51: 65761 | J51: 58970524.25 | K51: 2019-07-24 | L51: 2375 | M51: INE031B01049
A52: AJMERA | B52: EQ | C52: 140.15 | D52: 141.3 | E52: 130.6 | F52: 134 | G52: 135.15 | H52: 140.15 | I52: 30386 | J52: 4123198.85 | K52: 2019-07-24 | L52: 1203 | M52: INE298G01027
A53: AKSHARCHEM | B53: EQ | C53: 239.3 | D53: 241.9 | E53: 236.3 | F53: 238.65 | G53: 240 | H53: 240 | I53: 1218 | J53: 290665.55 | K53: 2019-07-24 | L53: 57 | M53: INE542B01011
A54: AKSHOPTFBR | B54: EQ | C54: 9.6 | D54: 9.6 | E54: 9.05 | F54: 9.1 | G54: 9.15 | H54: 9.15 | I54: 243092 | J54: 2215068.05 | K54: 2019-07-24 | L54: 568 | M54: INE523B01011
A55: AKZOINDIA | B55: EQ | C55: 1702.95 | D55: 1735.8 | E55: 1700 | F55: 1733.8 | G55: 1732 | H55: 1707.55 | I55: 2945 | J55: 5078998.2 | K55: 2019-07-24 | L55: 507 | M55: INE133A01011
A56: ALANKIT | B56: EQ | C56: 24.55 | D56: 25.2 | E56: 24 | F56: 24.55 | G56: 24.5 | H56: 24.9 | I56: 374320 | J56: 9150300.85 | K56: 2019-07-24 | L56: 2018 | M56: INE914E01040
A57: ALBERTDAVD | B57: EQ | C57: 376.5 | D57: 382.95 | E57: 371 | F57: 372.25 | G57: 371 | H57: 381.25 | I57: 961 | J57: 359213 | K57: 2019-07-24 | L57: 50 | M57: INE155C01010
A58: ALBK | B58: EQ | C58: 40.6 | D58: 40.85 | E58: 39.65 | F58: 39.85 | G58: 39.75 | H58: 40.65 | I58: 2042252 | J58: 81973017.3 | K58: 2019-07-24 | L58: 9709 | M58: INE428A01015
A59: ALCHEM | B59: BE | C59: 1.1 | D59: 1.2 | E59: 1.1 | F59: 1.15 | G59: 1.15 | H59: 1.15 | I59: 5631 | J59: 6531.45 | K59: 2019-07-24 | L59: 21 | M59: INE964B01033
A60: ALEMBICLTD | B60: EQ | C60: 42.8 | D60: 43.2 | E60: 42.2 | F60: 43.15 | G60: 43.2 | H60: 42.8 | I60: 148315 | J60: 6352793.55 | K60: 2019-07-24 | L60: 739 | M60: INE426A01027
A61: ALICON | B61: EQ | C61: 501.1 | D61: 506.75 | E61: 501.1 | F61: 503.75 | G61: 502.3 | H61: 508.9 | I61: 461 | J61: 232872.25 | K61: 2019-07-24 | L61: 39 | M61: INE062D01024
A62: ALKALI | B62: EQ | C62: 37.15 | D62: 38.1 | E62: 35.25 | F62: 36.15 | G62: 36.2 | H62: 37.25 | I62: 5038 | J62: 182818.65 | K62: 2019-07-24 | L62: 128 | M62: INE773I01017
A63: ALKEM | B63: EQ | C63: 1762 | D63: 1777.7 | E63: 1750 | F63: 1769.25 | G63: 1777.7 | H63: 1762.3 | I63: 6231 | J63: 10983454.7 | K63: 2019-07-24 | L63: 1644 | M63: INE540L01014
A64: ALKYLAMINE | B64: EQ | C64: 775.1 | D64: 786.9 | E64: 735.05 | F64: 769.8 | G64: 779 | H64: 775.15 | I64: 8760 | J64: 6662962 | K64: 2019-07-24 | L64: 1523 | M64: INE150B01021
A65: ALLCARGO | B65: EQ | C65: 97.2 | D65: 100.35 | E65: 95.4 | F65: 99.65 | G65: 99.45 | H65: 98.25 | I65: 75921 | J65: 7459412 | K65: 2019-07-24 | L65: 1544 | M65: INE418H01029
A66: ALLSEC | B66: EQ | C66: 310.1 | D66: 314.75 | E66: 297.75 | F66: 299.95 | G66: 297.75 | H66: 309.45 | I66: 5304 | J66: 1603970.45 | K66: 2019-07-24 | L66: 617 | M66: INE835G01018
A67: ALMONDZ | B67: EQ | C67: 14.1 | D67: 14.55 | E67: 13.95 | F67: 14.25 | G67: 14.45 | H67: 14.65 | I67: 1669 | J67: 23504 | K67: 2019-07-24 | L67: 40 | M67: INE326B01027
A68: ALOKTEXT | B68: EQ | C68: 2.85 | D68: 2.9 | E68: 2.7 | F68: 2.9 | G68: 2.9 | H68: 2.8 | I68: 6488380 | J68: 17846737.35 | K68: 2019-07-24 | L68: 1209 | M68: INE270A01011
A69: ALPA | B69: EQ | C69: 19.6 | D69: 19.6 | E69: 17.9 | F69: 18.1 | G69: 18.15 | H69: 19.8 | I69: 36042 | J69: 669560.2 | K69: 2019-07-24 | L69: 391 | M69: INE385I01010
A70: ALPHAGEO | B70: EQ | C70: 350 | D70: 350.8 | E70: 324.15 | F70: 325.1 | G70: 324.25 | H70: 345.55 | I70: 10152 | J70: 3350935.75 | K70: 2019-07-24 | L70: 700 | M70: INE137C01018
A71: ALPSINDUS | B71: BE | C71: 0.65 | D71: 0.7 | E71: 0.65 | F71: 0.65 | G71: 0.65 | H71: 0.7 | I71: 2860 | J71: 1860.5 | K71: 2019-07-24 | L71: 8 | M71: INE093B01015
A72: AMARAJABAT | B72: EQ | C72: 622 | D72: 642.75 | E72: 620.55 | F72: 633.5 | G72: 632 | H72: 628 | I72: 950507 | J72: 599731310.5 | K72: 2019-07-24 | L72: 14841 | M72: INE885A01032
A73: AMBER | B73: EQ | C73: 808 | D73: 826 | E73: 781.35 | F73: 801.85 | G73: 817 | H73: 811.3 | I73: 7570 | J73: 6055775.2 | K73: 2019-07-24 | L73: 812 | M73: INE371P01015
A74: AMBIKCO | B74: EQ | C74: 951.1 | D74: 954.95 | E74: 877 | F74: 934.8 | G74: 935.1 | H74: 945.1 | I74: 9308 | J74: 8461954.75 | K74: 2019-07-24 | L74: 1086 | M74: INE540G01014
A75: AMBUJACEM | B75: EQ | C75: 217.5 | D75: 218.95 | E75: 213.45 | F75: 215.7 | G75: 216.2 | H75: 217.65 | I75: 1690968 | J75: 364652481.6 | K75: 2019-07-24 | L75: 25930 | M75: INE079A01024
A76: AMDIND | B76: EQ | C76: 15.3 | D76: 16.25 | E76: 14.8 | F76: 14.9 | G76: 15.1 | H76: 16 | I76: 7490 | J76: 113110.1 | K76: 2019-07-24 | L76: 136 | M76: INE005I01014
A77: AMJLAND | B77: EQ | C77: 16.05 | D77: 17.25 | E77: 16.05 | F77: 17 | G77: 17.25 | H77: 16.4 | I77: 15415 | J77: 258238.35 | K77: 2019-07-24 | L77: 100 | M77: INE606A01024
A78: AMRUTANJAN | B78: EQ | C78: 299.4 | D78: 300.55 | E78: 293.05 | F78: 296.85 | G78: 294 | H78: 299.4 | I78: 8347 | J78: 2471932.7 | K78: 2019-07-24 | L78: 386 | M78: INE098F01031
A79: ANANTRAJ | B79: EQ | C79: 28.95 | D79: 29.35 | E79: 27.65 | F79: 27.8 | G79: 27.8 | H79: 28.9 | I79: 216267 | J79: 6096377.4 | K79: 2019-07-24 | L79: 755 | M79: INE242C01024
A80: ANDHRABANK | B80: EQ | C80: 21.5 | D80: 22.8 | E80: 21.2 | F80: 22.1 | G80: 22 | H80: 21.45 | I80: 1269334 | J80: 27732463.95 | K80: 2019-07-24 | L80: 3313 | M80: INE434A01013
A81: ANDHRACEMT | B81: EQ | C81: 3.05 | D81: 3.15 | E81: 3.05 | F81: 3.05 | G81: 3.05 | H81: 3.2 | I81: 44128 | J81: 134665.9 | K81: 2019-07-24 | L81: 63 | M81: INE666E01012
A82: ANDHRSUGAR | B82: EQ | C82: 291.3 | D82: 293 | E82: 285 | F82: 285.9 | G82: 288.95 | H82: 289.65 | I82: 20386 | J82: 5868233.85 | K82: 2019-07-24 | L82: 888 | M82: INE715B01013
A83: ANIKINDS | B83: EQ | C83: 8.1 | D83: 8.7 | E83: 8.1 | F83: 8.7 | G83: 8.7 | H83: 8.3 | I83: 8519 | J83: 72964 | K83: 2019-07-24 | L83: 81 | M83: INE087B01017
A84: ANKITMETAL | B84: BE | C84: 0.5 | D84: 0.6 | E84: 0.5 | F84: 0.6 | G84: 0.6 | H84: 0.55 | I84: 22827 | J84: 13180.75 | K84: 2019-07-24 | L84: 15 | M84: INE106I01010
A85: ANSALAPI | B85: EQ | C85: 4.7 | D85: 4.9 | E85: 4.6 | F85: 4.6 | G85: 4.6 | H85: 4.8 | I85: 40915 | J85: 192547.7 | K85: 2019-07-24 | L85: 95 | M85: INE436A01026
A86: ANSALHSG | B86: EQ | C86: 4.95 | D86: 4.95 | E86: 4.8 | F86: 4.85 | G86: 4.95 | H86: 5 | I86: 14662 | J86: 71408 | K86: 2019-07-24 | L86: 67 | M86: INE880B01015
A87: ANTGRAPHIC | B87: BE | C87: 0.9 | D87: 0.9 | E87: 0.85 | F87: 0.9 | G87: 0.9 | H87: 0.9 | I87: 22527 | J87: 19326.25 | K87: 2019-07-24 | L87: 18 | M87: INE414B01021
A88: ANUP | B88: EQ | C88: 480.1 | D88: 484.2 | E88: 477 | F88: 477.1 | G88: 477 | H88: 486 | I88: 2458 | J88: 1178208.25 | K88: 2019-07-24 | L88: 314 | M88: INE294Z01018
A89: APARINDS | B89: EQ | C89: 518.85 | D89: 533.05 | E89: 518.1 | F89: 525.6 | G89: 530 | H89: 523.2 | I89: 3951 | J89: 2075265.9 | K89: 2019-07-24 | L89: 435 | M89: INE372A01015
A90: APCL | B90: EQ | C90: 157 | D90: 157 | E90: 148.25 | F90: 150.1 | G90: 152.25 | H90: 157 | I90: 8971 | J90: 1358063 | K90: 2019-07-24 | L90: 163 | M90: INE071F01012
A91: APCOTEXIND | B91: EQ | C91: 184.95 | D91: 188 | E91: 182.5 | F91: 185.95 | G91: 186 | H91: 184.85 | I91: 7955 | J91: 1477323.9 | K91: 2019-07-24 | L91: 359 | M91: INE116A01032
A92: APEX | B92: EQ | C92: 247.7 | D92: 247.7 | E92: 237 | F92: 238 | G92: 237 | H92: 245.8 | I92: 25807 | J92: 6193941.55 | K92: 2019-07-24 | L92: 1722 | M92: INE346W01013
A93: APLAPOLLO | B93: EQ | C93: 1495.1 | D93: 1522 | E93: 1458.9 | F93: 1502.85 | G93: 1511 | H93: 1490.2 | I93: 21358 | J93: 31910472.05 | K93: 2019-07-24 | L93: 1800 | M93: INE702C01019
A94: APLLTD | B94: EQ | C94: 531 | D94: 532.1 | E94: 518.25 | F94: 527.65 | G94: 524 | H94: 530.3 | I94: 14453 | J94: 7584318.15 | K94: 2019-07-24 | L94: 1261 | M94: INE901L01018
A95: APOLLO | B95: EQ | C95: 94.85 | D95: 94.85 | E95: 86.55 | F95: 87.8 | G95: 87.25 | H95: 92.2 | I95: 26202 | J95: 2325297.1 | K95: 2019-07-24 | L95: 1008 | M95: INE713T01010
A96: APOLLOHOSP | B96: EQ | C96: 1360.1 | D96: 1372.65 | E96: 1317.7 | F96: 1335.45 | G96: 1332 | H96: 1366 | I96: 398286 | J96: 533489156.2 | K96: 2019-07-24 | L96: 27338 | M96: INE437A01024
A97: APOLLOTYRE | B97: EQ | C97: 167.5 | D97: 168 | E97: 162.5 | F97: 164.55 | G97: 164 | H97: 167.5 | I97: 3311058 | J97: 546001566.4 | K97: 2019-07-24 | L97: 39567 | M97: INE438A01022
A98: APOLSINHOT | B98: EQ | C98: 906.65 | D98: 906.7 | E98: 870.05 | F98: 900.05 | G98: 906.7 | H98: 897.6 | I98: 324 | J98: 288059.65 | K98: 2019-07-24 | L98: 50 | M98: INE451F01024
A99: APTECHT | B99: EQ | C99: 116 | D99: 133.3 | E99: 116 | F99: 129 | G99: 127.45 | H99: 115.85 | I99: 1087359 | J99: 140716545.2 | K99: 2019-07-24 | L99: 19805 | M99: INE266F01018
A100: ARCHIDPLY | B100: EQ | C100: 28.65 | D100: 28.9 | E100: 27.75 | F100: 27.95 | G100: 27.8 | H100: 28 | I100: 6243 | J100: 175150.45 | K100: 2019-07-24 | L100: 95 | M100: INE877I01016
A101: ARCHIES | B101: EQ | C101: 18.55 | D101: 19.05 | E101: 18 | F101: 18.45 | G101: 18.55 | H101: 18.35 | I101: 21284 | J101: 393869.55 | K101: 2019-07-24 | L101: 273 | M101: INE731A01020
A102: ARCOTECH | B102: EQ | C102: 2.6 | D102: 2.7 | E102: 2.55 | F102: 2.7 | G102: 2.6 | H102: 2.65 | I102: 45065 | J102: 119299.05 | K102: 2019-07-24 | L102: 57 | M102: INE574I01035
A103: ARIES | B103: EQ | C103: 52.5 | D103: 52.5 | E103: 49.65 | F103: 51.05 | G103: 51.1 | H103: 50.7 | I103: 17164 | J103: 869226.05 | K103: 2019-07-24 | L103: 230 | M103: INE298I01015
A104: ARIHANT | B104: EQ | C104: 20 | D104: 20.25 | E104: 20 | F104: 20.25 | G104: 20.25 | H104: 20.35 | I104: 42 | J104: 850 | K104: 2019-07-24 | L104: 3 | M104: INE413D01011
A105: ARIHANTSUP | B105: EQ | C105: 36.35 | D105: 38.45 | E105: 36.35 | F105: 37.3 | G105: 37.5 | H105: 38.1 | I105: 38148 | J105: 1427542.15 | K105: 2019-07-24 | L105: 363 | M105: INE643K01018
A106: ARMANFIN | B106: EQ | C106: 408 | D106: 408.4 | E106: 400.15 | F106: 404.85 | G106: 406.8 | H106: 405.4 | I106: 4697 | J106: 1900952.15 | K106: 2019-07-24 | L106: 95 | M106: INE109C01017
A107: AROGRANITE | B107: EQ | C107: 38.5 | D107: 39.35 | E107: 36.95 | F107: 37.15 | G107: 37.5 | H107: 38.85 | I107: 5498 | J107: 207498.5 | K107: 2019-07-24 | L107: 141 | M107: INE210C01013
A108: ARROWGREEN | B108: BE | C108: 57 | D108: 57 | E108: 53.3 | F108: 54.55 | G108: 56.5 | H108: 55.95 | I108: 6608 | J108: 364713.5 | K108: 2019-07-24 | L108: 53 | M108: INE570D01018
A109: ARROWTEX | B109: EQ | C109: 11.5 | D109: 11.8 | E109: 11.15 | F109: 11.7 | G109: 11.65 | H109: 11.65 | I109: 1794 | J109: 20660.4 | K109: 2019-07-24 | L109: 26 | M109: INE933J01015
A110: ARSHIYA | B110: EQ | C110: 16.85 | D110: 17.95 | E110: 16.85 | F110: 17.6 | G110: 17.8 | H110: 16.85 | I110: 19163 | J110: 333200.75 | K110: 2019-07-24 | L110: 62 | M110: INE968D01022
A111: ARSSINFRA | B111: EQ | C111: 30.15 | D111: 30.45 | E111: 29.75 | F111: 29.75 | G111: 29.75 | H111: 31.3 | I111: 4855 | J111: 145826.5 | K111: 2019-07-24 | L111: 86 | M111: INE267I01010
A112: ARVIND | B112: EQ | C112: 60 | D112: 60.5 | E112: 56.7 | F112: 58.3 | G112: 58.65 | H112: 60.15 | I112: 5193665 | J112: 301793195.8 | K112: 2019-07-24 | L112: 16278 | M112: INE034A01011
A113: ARVINDFASN | B113: EQ | C113: 651.15 | D113: 654.5 | E113: 650 | F113: 654 | G113: 654 | H113: 655.2 | I113: 78928 | J113: 51608632.75 | K113: 2019-07-24 | L113: 9933 | M113: INE955V01021
A114: ARVSMART | B114: EQ | C114: 91.2 | D114: 93.45 | E114: 90.15 | F114: 92.6 | G114: 90.5 | H114: 93.3 | I114: 10541 | J114: 967352.8 | K114: 2019-07-24 | L114: 775 | M114: INE034S01021
A115: ASAHIINDIA | B115: EQ | C115: 205 | D115: 207.25 | E115: 205 | F115: 205.1 | G115: 205 | H115: 205.95 | I115: 6524 | J115: 1339789 | K115: 2019-07-24 | L115: 190 | M115: INE439A01020
A116: ASAHISONG | B116: EQ | C116: 130.05 | D116: 135.4 | E116: 128.95 | F116: 129.75 | G116: 131 | H116: 132.85 | I116: 518 | J116: 67254.05 | K116: 2019-07-24 | L116: 48 | M116: INE228I01012
A117: ASAL | B117: EQ | C117: 39.1 | D117: 40.95 | E117: 39.1 | F117: 39.45 | G117: 40.95 | H117: 39.95 | I117: 1449 | J117: 57130.45 | K117: 2019-07-24 | L117: 34 | M117: INE900C01027
A118: ASHAPURMIN | B118: EQ | C118: 21.8 | D118: 21.8 | E118: 21.8 | F118: 21.8 | G118: 21.8 | H118: 20.8 | I118: 7564 | J118: 164895.2 | K118: 2019-07-24 | L118: 30 | M118: INE348A01023
A119: ASHIANA | B119: EQ | C119: 114.8 | D119: 115 | E119: 113.25 | F119: 114.75 | G119: 115 | H119: 114.05 | I119: 12815 | J119: 1463401.85 | K119: 2019-07-24 | L119: 232 | M119: INE365D01021
A120: ASHIMASYN | B120: EQ | C120: 8.15 | D120: 8.5 | E120: 7.9 | F120: 8.05 | G120: 7.95 | H120: 8.3 | I120: 17682 | J120: 142830.85 | K120: 2019-07-24 | L120: 104 | M120: INE440A01010
A121: ASHOKA | B121: EQ | C121: 119.05 | D121: 121.7 | E121: 113.9 | F121: 119.9 | G121: 121.5 | H121: 119.05 | I121: 1232246 | J121: 147636380.8 | K121: 2019-07-24 | L121: 2984 | M121: INE442H01029
A122: ASHOKLEY | B122: EQ | C122: 74.85 | D122: 75.3 | E122: 71.9 | F122: 72.55 | G122: 72.2 | H122: 75 | I122: 29917145 | J122: 2173552509 | K122: 2019-07-24 | L122: 102460 | M122: INE208A01029
A123: ASIANHOTNR | B123: EQ | C123: 117.45 | D123: 129.8 | E123: 107.95 | F123: 121.85 | G123: 119.25 | H123: 119.9 | I123: 2852 | J123: 340555.8 | K123: 2019-07-24 | L123: 407 | M123: INE363A01022
A124: ASIANPAINT | B124: EQ | C124: 1430.5 | D124: 1493.5 | E124: 1395.15 | F124: 1483.4 | G124: 1478.5 | H124: 1429.35 | I124: 7400250 | J124: 10756764457 | K124: 2019-07-24 | L124: 231051 | M124: INE021A01026
A125: ASIANTILES | B125: EQ | C125: 223.85 | D125: 224.7 | E125: 218.6 | F125: 221 | G125: 220.75 | H125: 222.7 | I125: 55387 | J125: 12241472.1 | K125: 2019-07-24 | L125: 1929 | M125: INE022I01019
A126: ASPINWALL | B126: EQ | C126: 141.25 | D126: 146 | E126: 140 | F126: 145.9 | G126: 145.9 | H126: 144.9 | I126: 824 | J126: 116443.75 | K126: 2019-07-24 | L126: 14 | M126: INE991I01015
A127: ASSAMCO | B127: BE | C127: 1.15 | D127: 1.25 | E127: 1.15 | F127: 1.2 | G127: 1.2 | H127: 1.2 | I127: 168672 | J127: 197005.1 | K127: 2019-07-24 | L127: 98 | M127: INE442A01024
A128: ASTEC | B128: EQ | C128: 354 | D128: 355 | E128: 323.35 | F128: 327.15 | G128: 326 | H128: 356.8 | I128: 19568 | J128: 6592631.95 | K128: 2019-07-24 | L128: 1601 | M128: INE563J01010
A129: ASTERDM | B129: EQ | C129: 121.3 | D129: 124.2 | E129: 121.25 | F129: 122 | G129: 122.7 | H129: 125 | I129: 31558 | J129: 3856417.45 | K129: 2019-07-24 | L129: 885 | M129: INE914M01019
A130: ASTRAL | B130: EQ | C130: 1230.7 | D130: 1238.1 | E130: 1180.05 | F130: 1193.55 | G130: 1183.2 | H130: 1230.7 | I130: 20780 | J130: 25079278.25 | K130: 2019-07-24 | L130: 2363 | M130: INE006I01046
A131: ASTRAMICRO | B131: EQ | C131: 83 | D131: 84.15 | E131: 80.25 | F131: 81.5 | G131: 80.9 | H131: 82.8 | I131: 50190 | J131: 4105048 | K131: 2019-07-24 | L131: 423 | M131: INE386C01029
A132: ASTRAZEN | B132: EQ | C132: 1850 | D132: 1876.55 | E132: 1830.1 | F132: 1853 | G132: 1859 | H132: 1854.3 | I132: 6630 | J132: 12248296.5 | K132: 2019-07-24 | L132: 825 | M132: INE203A01020
A133: ASTRON | B133: EQ | C133: 91.1 | D133: 95.8 | E133: 91.1 | F133: 95.55 | G133: 95.5 | H133: 92.2 | I133: 219160 | J133: 20627682.85 | K133: 2019-07-24 | L133: 2337 | M133: INE646X01014
A134: ATFL | B134: EQ | C134: 511.55 | D134: 526.35 | E134: 491 | F134: 494.5 | G134: 494.75 | H134: 516.35 | I134: 5189 | J134: 2585980.1 | K134: 2019-07-24 | L134: 573 | M134: INE209A01019
A135: ATLANTA | B135: EQ | C135: 8.35 | D135: 8.5 | E135: 8.15 | F135: 8.3 | G135: 8.15 | H135: 8.5 | I135: 13537 | J135: 112822.15 | K135: 2019-07-24 | L135: 85 | M135: INE285H01022
A136: ATLASCYCLE | B136: BE | C136: 42 | D136: 42 | E136: 39 | F136: 41.7 | G136: 42 | H136: 41.05 | I136: 4180 | J136: 168382.45 | K136: 2019-07-24 | L136: 58 | M136: INE446A01025
A137: ATNINTER | B137: BE | C137: 0.25 | D137: 0.25 | E137: 0.15 | F137: 0.25 | G137: 0.25 | H137: 0.2 | I137: 6319 | J137: 1270.55 | K137: 2019-07-24 | L137: 33 | M137: INE803A01027
A138: ATUL | B138: EQ | C138: 3653.65 | D138: 3720 | E138: 3628.45 | F138: 3662.35 | G138: 3675 | H138: 3699.6 | I138: 11020 | J138: 40440291.2 | K138: 2019-07-24 | L138: 2237 | M138: INE100A01010
A139: ATULAUTO | B139: EQ | C139: 262.8 | D139: 274.7 | E139: 259.9 | F139: 265.9 | G139: 264.05 | H139: 262 | I139: 14205 | J139: 3728442.5 | K139: 2019-07-24 | L139: 644 | M139: INE951D01028
A140: AUBANK | B140: EQ | C140: 658 | D140: 666 | E140: 624 | F140: 632.9 | G140: 659 | H140: 656.55 | I140: 213735 | J140: 136634882.4 | K140: 2019-07-24 | L140: 11108 | M140: INE949L01017
A141: AURIONPRO | B141: EQ | C141: 104.4 | D141: 105 | E141: 101.05 | F141: 104.2 | G141: 101.3 | H141: 104.35 | I141: 11321 | J141: 1169567.55 | K141: 2019-07-24 | L141: 165 | M141: INE132H01018
A142: AUROPHARMA | B142: EQ | C142: 562.8 | D142: 566.55 | E142: 545.7 | F142: 548.35 | G142: 550.5 | H142: 561.75 | I142: 1988213 | J142: 1105134273 | K142: 2019-07-24 | L142: 32269 | M142: INE406A01037
A143: AUSOMENT | B143: EQ | C143: 33.2 | D143: 34.85 | E143: 31.65 | F143: 32.6 | G143: 34.75 | H143: 33.2 | I143: 2431 | J143: 80065.9 | K143: 2019-07-24 | L143: 77 | M143: INE218C01016
A144: AUTOAXLES | B144: EQ | C144: 890 | D144: 890 | E144: 841.05 | F144: 847.75 | G144: 847 | H144: 879.45 | I144: 5276 | J144: 4537984 | K144: 2019-07-24 | L144: 867 | M144: INE449A01011
A145: AUTOIND | B145: EQ | C145: 45.1 | D145: 47 | E145: 43.45 | F145: 43.5 | G145: 43.5 | H145: 45.4 | I145: 5258 | J145: 232533.35 | K145: 2019-07-24 | L145: 83 | M145: INE718H01014
A146: AVADHSUGAR | B146: EQ | C146: 281.2 | D146: 284.45 | E146: 268 | F146: 274.55 | G146: 274.3 | H146: 275.5 | I146: 104810 | J146: 29095406.85 | K146: 2019-07-24 | L146: 3278 | M146: INE349W01017
A147: AVANTIFEED | B147: EQ | C147: 331 | D147: 333 | E147: 320.35 | F147: 322.1 | G147: 321.15 | H147: 328.25 | I147: 292511 | J147: 94820021.8 | K147: 2019-07-24 | L147: 7622 | M147: INE871C01038
A148: AVTNPL | B148: EQ | C148: 21.9 | D148: 22.7 | E148: 21.6 | F148: 21.7 | G148: 21.6 | H148: 22.15 | I148: 25893 | J148: 565976.8 | K148: 2019-07-24 | L148: 186 | M148: INE488D01021
A149: AXISBANK | B149: EQ | C149: 728 | D149: 732.8 | E149: 709.35 | F149: 712.3 | G149: 710.15 | H149: 728 | I149: 6618279 | J149: 4740970550 | K149: 2019-07-24 | L149: 163314 | M149: INE238A01034
A150: AXISCADES | B150: EQ | C150: 69 | D150: 72 | E150: 68.7 | F150: 71.05 | G150: 71.2 | H150: 69.05 | I150: 202715 | J150: 14362219.9 | K150: 2019-07-24 | L150: 1541 | M150: INE555B01013
A151: AXISGOLD | B151: EQ | C151: 3073.95 | D151: 3074 | E151: 3050.2 | F151: 3056.25 | G151: 3055 | H151: 3074 | I151: 58 | J151: 177887.1 | K151: 2019-07-24 | L151: 20 | M151: INF846K01347
A152: AXISNIFTY | B152: EQ | C152: 1171 | D152: 1171 | E152: 1155 | F152: 1161.72 | G152: 1161.72 | H152: 1169.53 | I152: 185 | J152: 214754.24 | K152: 2019-07-24 | L152: 17 | M152: INF846K01ZL0
A153: AYMSYNTEX | B153: EQ | C153: 31 | D153: 32.9 | E153: 29.2 | F153: 31 | G153: 32.4 | H153: 31.15 | I153: 5727 | J153: 178203.3 | K153: 2019-07-24 | L153: 91 | M153: INE193B01039
A154: BAFNAPHARM | B154: BE | C154: 5.8 | D154: 6 | E154: 5.55 | F154: 5.9 | G154: 6 | H154: 5.8 | I154: 3929 | J154: 22223.15 | K154: 2019-07-24 | L154: 40 | M154: INE878I01014
A155: BAGFILMS | B155: EQ | C155: 3.1 | D155: 3.2 | E155: 3 | F155: 3.05 | G155: 3.05 | H155: 3.15 | I155: 36114 | J155: 109769.55 | K155: 2019-07-24 | L155: 81 | M155: INE116D01028
A156: BAJAJ-AUTO | B156: EQ | C156: 2523.85 | D156: 2543 | E156: 2482 | F156: 2522.6 | G156: 2526.45 | H156: 2523.85 | I156: 481139 | J156: 1210552694 | K156: 2019-07-24 | L156: 32642 | M156: INE917I01010
A157: BAJAJCON | B157: EQ | C157: 302.95 | D157: 302.95 | E157: 281.35 | F157: 285.35 | G157: 282.2 | H157: 303.35 | I157: 245864 | J157: 70870101.95 | K157: 2019-07-24 | L157: 9987 | M157: INE933K01021
A158: BAJAJELEC | B158: EQ | C158: 425 | D158: 427.95 | E158: 404 | F158: 406.35 | G158: 405.2 | H158: 428 | I158: 154808 | J158: 63523040.2 | K158: 2019-07-24 | L158: 5602 | M158: INE193E01025
A159: BAJAJFINSV | B159: EQ | C159: 7205 | D159: 7223 | E159: 6966.05 | F159: 7065.3 | G159: 7063 | H159: 7170.35 | I159: 441763 | J159: 3118518563 | K159: 2019-07-24 | L159: 44444 | M159: INE918I01018
A160: BAJAJHIND | B160: EQ | C160: 6.85 | D160: 7.1 | E160: 6.85 | F160: 6.95 | G160: 6.95 | H160: 6.9 | I160: 1645144 | J160: 11491727.3 | K160: 2019-07-24 | L160: 1551 | M160: INE306A01021
A161: BAJAJHLDNG | B161: EQ | C161: 3360.15 | D161: 3417.7 | E161: 3262.25 | F161: 3294.45 | G161: 3300 | H161: 3367.35 | I161: 18182 | J161: 60194717.25 | K161: 2019-07-24 | L161: 2532 | M161: INE118A01012
A162: BAJFINANCE | B162: EQ | C162: 3274.1 | D162: 3294 | E162: 3135 | F162: 3173.55 | G162: 3163 | H162: 3276.9 | I162: 2767989 | J162: 8848650878 | K162: 2019-07-24 | L162: 148490 | M162: INE296A01024
A163: BALAJITELE | B163: EQ | C163: 54.05 | D163: 59 | E163: 54.05 | F163: 55.65 | G163: 55.8 | H163: 54.2 | I163: 112014 | J163: 6422729.55 | K163: 2019-07-24 | L163: 1562 | M163: INE794B01026
A164: BALAMINES | B164: EQ | C164: 275 | D164: 276 | E164: 264 | F164: 267.95 | G164: 267.05 | H164: 273.35 | I164: 32111 | J164: 8685018.9 | K164: 2019-07-24 | L164: 1232 | M164: INE050E01027
A165: BALAXI | B165: BE | C165: 65.05 | D165: 65.05 | E165: 65.05 | F165: 65.05 | G165: 65.05 | H165: 68.45 | I165: 898 | J165: 58414.9 | K165: 2019-07-24 | L165: 27 | M165: INE618N01014
A166: BALKRISHNA | B166: EQ | C166: 23.3 | D166: 23.3 | E166: 20.5 | F166: 21 | G166: 21 | H166: 22.55 | I166: 10602 | J166: 227518.75 | K166: 2019-07-24 | L166: 160 | M166: INE875R01011
A167: BALKRISIND | B167: EQ | C167: 731.1 | D167: 735.3 | E167: 712.35 | F167: 717.7 | G167: 713 | H167: 733.45 | I167: 425717 | J167: 308067646.4 | K167: 2019-07-24 | L167: 9651 | M167: INE787D01026
A168: BALLARPUR | B168: EQ | C168: 1 | D168: 1.1 | E168: 1 | F168: 1 | G168: 1 | H168: 1.05 | I168: 9000279 | J168: 9187213.35 | K168: 2019-07-24 | L168: 561 | M168: INE294A01037
A169: BALMLAWRIE | B169: EQ | C169: 175.8 | D169: 175.8 | E169: 173 | F169: 173.3 | G169: 173 | H169: 174.5 | I169: 39715 | J169: 6911938.65 | K169: 2019-07-24 | L169: 870 | M169: INE164A01016
A170: BALPHARMA | B170: EQ | C170: 48.15 | D170: 50 | E170: 45.8 | F170: 46.8 | G170: 47.45 | H170: 47.7 | I170: 6441 | J170: 301182.7 | K170: 2019-07-24 | L170: 199 | M170: INE083D01012
A171: BALRAMCHIN | B171: EQ | C171: 156.15 | D171: 158.5 | E171: 153.8 | F171: 154.6 | G171: 154.05 | H171: 152.75 | I171: 2115151 | J171: 328802351.9 | K171: 2019-07-24 | L171: 32145 | M171: INE119A01028
A172: BANARBEADS | B172: EQ | C172: 43.25 | D172: 44 | E172: 43.1 | F172: 43.2 | G172: 43.15 | H172: 43.05 | I172: 88 | J172: 3817.35 | K172: 2019-07-24 | L172: 15 | M172: INE655B01011
A173: BANARISUG | B173: EQ | C173: 1400.3 | D173: 1419.9 | E173: 1400 | F173: 1404.4 | G173: 1400 | H173: 1400.1 | I173: 252 | J173: 353729.3 | K173: 2019-07-24 | L173: 39 | M173: INE459A01010
A174: BANCOINDIA | B174: EQ | C174: 106 | D174: 108.95 | E174: 104.15 | F174: 107.45 | G174: 108.75 | H174: 106.15 | I174: 16381 | J174: 1747966.25 | K174: 2019-07-24 | L174: 366 | M174: INE213C01025
A175: BANDHANBNK | B175: EQ | C175: 469.5 | D175: 477.8 | E175: 432 | F175: 440.3 | G175: 443 | H175: 469.05 | I175: 2504413 | J175: 1112386473 | K175: 2019-07-24 | L175: 68432 | M175: INE545U01014
A176: BANG | B176: EQ | C176: 36.55 | D176: 36.55 | E176: 34.15 | F176: 34.8 | G176: 34.5 | H176: 35.95 | I176: 7209 | J176: 253278.25 | K176: 2019-07-24 | L176: 154 | M176: INE863I01016
A177: BANKBARODA | B177: EQ | C177: 112.6 | D177: 113.75 | E177: 109.2 | F177: 110.2 | G177: 109.5 | H177: 112.5 | I177: 20247743 | J177: 2261608188 | K177: 2019-07-24 | L177: 71682 | M177: INE028A01039
A178: BANKBEES | B178: EQ | C178: 2973 | D178: 2984 | E178: 2947.05 | F178: 2954.03 | G178: 2952 | H178: 2968.92 | I178: 4938 | J178: 14603147.9 | K178: 2019-07-24 | L178: 868 | M178: INF732E01078
A179: BANKINDIA | B179: EQ | C179: 78.6 | D179: 78.95 | E179: 76 | F179: 76.5 | G179: 76.05 | H179: 78.65 | I179: 8391943 | J179: 649968861.1 | K179: 2019-07-24 | L179: 23902 | M179: INE084A01016
A180: BANSWRAS | B180: EQ | C180: 65.25 | D180: 67 | E180: 65.25 | F180: 65.55 | G180: 65.75 | H180: 66.3 | I180: 1548 | J180: 102022.5 | K180: 2019-07-24 | L180: 13 | M180: INE629D01012
A181: BARTRONICS | B181: EQ | C181: 3.35 | D181: 3.35 | E181: 3.1 | F181: 3.3 | G181: 3.3 | H181: 3.15 | I181: 7247 | J181: 23299.45 | K181: 2019-07-24 | L181: 31 | M181: INE855F01034
A182: BASF | B182: EQ | C182: 1080.25 | D182: 1088.95 | E182: 1050 | F182: 1055.65 | G182: 1053 | H182: 1083.85 | I182: 4726 | J182: 5000916.3 | K182: 2019-07-24 | L182: 701 | M182: INE373A01013
A183: BASML | B183: EQ | C183: 130.2 | D183: 138 | E183: 130.2 | F183: 136.25 | G183: 138 | H183: 137 | I183: 221 | J183: 30012.15 | K183: 2019-07-24 | L183: 20 | M183: INE186H01014
A184: BATAINDIA | B184: EQ | C184: 1285 | D184: 1317.1 | E184: 1275.2 | F184: 1306.5 | G184: 1307 | H184: 1282.35 | I184: 689125 | J184: 893871443.1 | K184: 2019-07-24 | L184: 19972 | M184: INE176A01028
A185: BAYERCROP | B185: EQ | C185: 3239 | D185: 3239 | E185: 3141.3 | F185: 3162.25 | G185: 3150.05 | H185: 3248.9 | I185: 5600 | J185: 17731600.6 | K185: 2019-07-24 | L185: 2201 | M185: INE462A01022
A186: BBL | B186: EQ | C186: 946.05 | D186: 946.3 | E186: 926 | F186: 935.7 | G186: 945 | H186: 938.7 | I186: 2250 | J186: 2096073.95 | K186: 2019-07-24 | L186: 304 | M186: INE464A01028
A187: BBTC | B187: EQ | C187: 890 | D187: 895.85 | E187: 865 | F187: 885.7 | G187: 887.8 | H187: 888.9 | I187: 43584 | J187: 38260594.8 | K187: 2019-07-24 | L187: 3269 | M187: INE050A01025
A188: BCG | B188: EQ | C188: 3.45 | D188: 3.5 | E188: 3.25 | F188: 3.35 | G188: 3.3 | H188: 3.4 | I188: 390394 | J188: 1292320.7 | K188: 2019-07-24 | L188: 269 | M188: INE425B01027
A189: BDL | B189: EQ | C189: 301 | D189: 303 | E189: 297.1 | F189: 298.35 | G189: 298 | H189: 301.85 | I189: 14508 | J189: 4340139.3 | K189: 2019-07-24 | L189: 752 | M189: INE171Z01018
A190: BEARDSELL | B190: EQ | C190: 14.7 | D190: 14.7 | E190: 14.6 | F190: 14.6 | G190: 14.6 | H190: 13.85 | I190: 17 | J190: 248.3 | K190: 2019-07-24 | L190: 4 | M190: INE520H01022
A191: BEDMUTHA | B191: EQ | C191: 16.9 | D191: 16.9 | E191: 14.9 | F191: 15.05 | G191: 15.05 | H191: 15.35 | I191: 2654 | J191: 39929 | K191: 2019-07-24 | L191: 28 | M191: INE844K01012
A192: BEL | B192: EQ | C192: 99.15 | D192: 100.2 | E192: 95.85 | F192: 97.6 | G192: 97.5 | H192: 98.85 | I192: 8287123 | J192: 808312590.4 | K192: 2019-07-24 | L192: 24410 | M192: INE263A01024
A193: BEML | B193: EQ | C193: 909 | D193: 924.9 | E193: 891.3 | F193: 897.9 | G193: 895.5 | H193: 890.1 | I193: 1201432 | J193: 1091368287 | K193: 2019-07-24 | L193: 39369 | M193: INE258A01016
A194: BEPL | B194: EQ | C194: 62.8 | D194: 64 | E194: 62.1 | F194: 62.8 | G194: 62.65 | H194: 63.95 | I194: 222334 | J194: 13967999.4 | K194: 2019-07-24 | L194: 2154 | M194: INE922A01025
A195: BERGEPAINT | B195: EQ | C195: 314 | D195: 324.9 | E195: 312.8 | F195: 322.5 | G195: 322 | H195: 314.55 | I195: 1642379 | J195: 522630167.6 | K195: 2019-07-24 | L195: 20360 | M195: INE463A01038
A196: BFINVEST | B196: EQ | C196: 278.5 | D196: 282.9 | E196: 268.15 | F196: 269.9 | G196: 270 | H196: 270.1 | I196: 175273 | J196: 47986119.35 | K196: 2019-07-24 | L196: 4388 | M196: INE878K01010
A197: BFUTILITIE | B197: EQ | C197: 235 | D197: 240 | E197: 221.2 | F197: 223.2 | G197: 221.5 | H197: 225.05 | I197: 2140814 | J197: 493426416.1 | K197: 2019-07-24 | L197: 31956 | M197: INE243D01012
A198: BGLOBAL | B198: BE | C198: 1.25 | D198: 1.3 | E198: 1.25 | F198: 1.25 | G198: 1.25 | H198: 1.3 | I198: 10720 | J198: 13400.25 | K198: 2019-07-24 | L198: 16 | M198: INE224M01013
A199: BGRENERGY | B199: EQ | C199: 46.85 | D199: 46.85 | E199: 43.95 | F199: 44.8 | G199: 44.8 | H199: 45.75 | I199: 39620 | J199: 1776822.85 | K199: 2019-07-24 | L199: 623 | M199: INE661I01014
A200: BHAGERIA | B200: EQ | C200: 114.25 | D200: 119.95 | E200: 112.1 | F200: 113.25 | G200: 113.5 | H200: 116.1 | I200: 19932 | J200: 2308476.95 | K200: 2019-07-24 | L200: 271 | M200: INE354C01027
... 1465 more rows

Sheet Sheet1 (hidden)

Sheet Sheet3 (hidden)

Sheet Sheet4 (hidden)
